Transaction Date,Local Authority Department,Beneficiary,Purpose of Expenditure,Amount (excluding VAT),Non Recoverable VAT,Merchant Category
 01-09-2023,oneSource Non-Shared LBH,Dawsongroup Environmental Municipal Civil Ltd,Vehicle Hire,2802.68,0.00,COMMERCIAL SUPPLIER 
 01-09-2023,oneSource Non-Shared LBH,Dawsongroup Environmental Municipal Civil Ltd,Vehicle Hire,2802.68,0.00,COMMERCIAL SUPPLIER 
 01-09-2023,oneSource Non-Shared LBH,Dawsongroup Environmental Municipal Civil Ltd,Vehicle Hire,3497.92,0.00,COMMERCIAL SUPPLIER 
 01-09-2023,oneSource Non-Shared LBH,Dawsongroup Environmental Municipal Civil Ltd,Vehicle Hire,2802.68,0.00,COMMERCIAL SUPPLIER 
 01-09-2023,oneSource Non-Shared LBH,Dawsongroup Environmental Municipal Civil Ltd,Vehicle Hire,2802.68,0.00,COMMERCIAL SUPPLIER 
 01-09-2023,oneSource Non-Shared LBH,Mistral Bus and Coach PLC,Vehicle Hire,2718.85,0.00,COMMERCIAL SUPPLIER 
 01-09-2023,oneSource Non-Shared LBH,Mistral Bus and Coach PLC,Vehicle Hire,3198.83,0.00,COMMERCIAL SUPPLIER 
 01-09-2023,oneSource Non-Shared LBH,Mistral Bus and Coach PLC,Vehicle Hire,3198.83,0.00,COMMERCIAL SUPPLIER 
 01-09-2023,oneSource Non-Shared LBH,Mistral Bus and Coach PLC,Vehicle Hire,3433.47,0.00,COMMERCIAL SUPPLIER 
 01-09-2023,oneSource Non-Shared LBH,Mistral Bus and Coach PLC,Vehicle Hire,2514.52,0.00,COMMERCIAL SUPPLIER 
 01-09-2023,oneSource Non-Shared LBH,Mistral Bus and Coach PLC,Vehicle Hire,2641.07,0.00,COMMERCIAL SUPPLIER 
 01-09-2023,oneSource Non-Shared LBH,Mistral Bus and Coach PLC,Vehicle Hire,4157.42,0.00,COMMERCIAL SUPPLIER 
 01-09-2023,oneSource Non-Shared LBH,Digitec Security Ltd,Security Services (Excluding Premises),696.50,0.00,COMMERCIAL SUPPLIER 
 01-09-2023,oneSource Non-Shared LBH,Drainfix Services Ltd_a,Building Alterations And Materials,24944.00,0.00,CIS 
 04-09-2023,oneSource Non-Shared LBH,South Park Heating Services Ltd,Building Alterations And Materials,906.50,0.00,CIS 
 04-09-2023,oneSource Non-Shared LBH,Serco Ltd,Refuse Collection,1409.96,0.00,COMMERCIAL SUPPLIER 
 04-09-2023,oneSource Non-Shared LBH,Serco Ltd,Refuse Collection,561.82,0.00,COMMERCIAL SUPPLIER 
 04-09-2023,oneSource Non-Shared LBH,Sureserve Fire and Electrical Ltd,Health And Safety Works,7553.25,0.00,CIS 
 04-09-2023,oneSource Non-Shared LBH,John Burke Associates,Surveys,6925.00,0.00,COMMERCIAL SUPPLIER 
 05-09-2023,oneSource Non-Shared LBH,Albert Road Service Station Ltd,Purchase - Equipment Furniture And Materials,1166.60,0.00,COMMERCIAL SUPPLIER 
 05-09-2023,oneSource Non-Shared LBH,Financial Data Management PLC,Printing,1592.77,0.00,COMMERCIAL SUPPLIER 
 05-09-2023,oneSource Non-Shared LBH,HSL Compliance Ltd,Professional Services - General,573.13,0.00,CIS 
 05-09-2023,oneSource Non-Shared LBH,HSL Compliance Ltd,Professional Services - General,817.94,0.00,CIS 
 05-09-2023,oneSource Non-Shared LBH,HSL Compliance Ltd,Professional Services - General,548.37,0.00,CIS 
 05-09-2023,oneSource Non-Shared LBH,HSL Compliance Ltd,Professional Services - General,625.18,0.00,CIS 
 05-09-2023,oneSource Non-Shared LBH,HSL Compliance Ltd,Professional Services - General,676.89,0.00,CIS 
 05-09-2023,oneSource Non-Shared LBH,Financial Data Management PLC,Printing,6148.56,0.00,COMMERCIAL SUPPLIER 
 05-09-2023,oneSource Non-Shared LBH,Financial Data Management PLC,Printing,17808.81,0.00,COMMERCIAL SUPPLIER 
 05-09-2023,oneSource Non-Shared LBH,Motus Truck & Van,Purchase - Equipment Furniture And Materials,565.36,0.00,COMMERCIAL SUPPLIER 
 05-09-2023,oneSource Non-Shared LBH,Rushton Workwear Ltd,Purchase - Equipment Furniture And Materials,1347.40,0.00,COMMERCIAL SUPPLIER 
 05-09-2023,oneSource Non-Shared LBH,Serco Ltd,Refuse Collection,1030.12,0.00,COMMERCIAL SUPPLIER 
 05-09-2023,oneSource Non-Shared LBH,Serco Ltd,Refuse Collection,971.81,0.00,COMMERCIAL SUPPLIER 
 06-09-2023,oneSource Non-Shared LBH,Albert Road Service Station Ltd,Purchase - Equipment Furniture And Materials,609.66,0.00,COMMERCIAL SUPPLIER 
 06-09-2023,oneSource Non-Shared LBH,Motus Truck & Van,Purchase - Equipment Furniture And Materials,602.11,0.00,COMMERCIAL SUPPLIER 
 06-09-2023,oneSource Non-Shared LBH,Matrix SCM Ltd,Agency Staff,1174.80,0.00,COMMERCIAL SUPPLIER 
 06-09-2023,oneSource Non-Shared LBH,Matrix SCM Ltd,Agency Staff,1681.56,0.00,COMMERCIAL SUPPLIER 
 06-09-2023,oneSource Non-Shared LBH,Matrix SCM Ltd,Agency Staff,1153.14,0.00,COMMERCIAL SUPPLIER 
 06-09-2023,oneSource Non-Shared LBH,Matrix SCM Ltd,Agency Staff,2775.76,0.00,COMMERCIAL SUPPLIER 
 06-09-2023,oneSource Non-Shared LBH,Matrix SCM Ltd,Agency Staff,576.43,0.00,COMMERCIAL SUPPLIER 
 06-09-2023,oneSource Non-Shared LBH,Matrix SCM Ltd,Agency Staff,516.32,0.00,COMMERCIAL SUPPLIER 
 06-09-2023,oneSource Non-Shared LBH,Matrix SCM Ltd,Agency Staff,524.72,0.00,COMMERCIAL SUPPLIER 
 06-09-2023,oneSource Non-Shared LBH,Matrix SCM Ltd,Agency Staff,521.37,0.00,COMMERCIAL SUPPLIER 
 06-09-2023,oneSource Non-Shared LBH,Matrix SCM Ltd,Agency Staff,698.45,0.00,COMMERCIAL SUPPLIER 
 06-09-2023,oneSource Non-Shared LBH,Matrix SCM Ltd,Agency Staff,504.91,0.00,COMMERCIAL SUPPLIER 
 06-09-2023,oneSource Non-Shared LBH,Matrix SCM Ltd,Agency Staff,530.15,0.00,COMMERCIAL SUPPLIER 
 06-09-2023,oneSource Non-Shared LBH,Evans & Shea Ltd,Facilities Management,1309.60,0.00,COMMERCIAL SUPPLIER 
 06-09-2023,oneSource Non-Shared LBH,Evans & Shea Ltd,Facilities Management,735.57,0.00,COMMERCIAL SUPPLIER 
 07-09-2023,oneSource Non-Shared LBH,Autoquip,Purchase - Equipment Furniture And Materials,935.00,0.00,COMMERCIAL SUPPLIER 
 07-09-2023,oneSource Non-Shared LBH,Powerwash Solutions Ltd,Purchase - Equipment Furniture And Materials,780.00,0.00,COMMERCIAL SUPPLIER 
 07-09-2023,oneSource Non-Shared LBH,Powerwash Solutions Ltd,Purchase - Equipment Furniture And Materials,780.00,0.00,COMMERCIAL SUPPLIER 
 07-09-2023,oneSource Non-Shared LBH,Asbestech Ltd,Maintenance - Equipment Furniture And Materials,3240.00,0.00,CIS 
 07-09-2023,oneSource Non-Shared LBH,New Era Fuels Ltd,Purchase - Equipment Furniture And Materials,2745.40,0.00,COMMERCIAL SUPPLIER 
 07-09-2023,oneSource Non-Shared LBH,New Era Fuels Ltd,Purchase - Equipment Furniture And Materials,13727.00,0.00,COMMERCIAL SUPPLIER 
 07-09-2023,oneSource Non-Shared LBH,New Era Fuels Ltd,Purchase - Equipment Furniture And Materials,5526.49,0.00,COMMERCIAL SUPPLIER 
 07-09-2023,oneSource Non-Shared LBH,New Era Fuels Ltd,Purchase - Equipment Furniture And Materials,1700.00,0.00,COMMERCIAL SUPPLIER 
 08-09-2023,oneSource Non-Shared LBH,RD Bull & Sons Ltd,Facilities Management,3990.00,0.00,VENDOR 
 08-09-2023,oneSource Non-Shared LBH,RD Bull & Sons Ltd,Maintenance - Equipment Furniture And Materials,1244.00,0.00,VENDOR 
 08-09-2023,oneSource Non-Shared LBH,Buildright Solutions Ltd,Maintenance - Equipment Furniture And Materials,7750.00,0.00,CIS 
 08-09-2023,oneSource Non-Shared LBH,New Era Fuels Ltd,Purchase - Equipment Furniture And Materials,1700.00,0.00,COMMERCIAL SUPPLIER 
 08-09-2023,oneSource Non-Shared LBH,Cabeyes Ltd,Purchase - Equipment Furniture And Materials,16600.00,0.00,NON COMMERCIAL SUPPLIER 
 11-09-2023,oneSource Non-Shared LBH,Oracle Corporation UK Ltd,Ict Software,8937.73,0.00,COMMERCIAL SUPPLIER 
 11-09-2023,oneSource Non-Shared LBH,Oracle Corporation UK Ltd,Ict Software,1786.74,0.00,COMMERCIAL SUPPLIER 
 11-09-2023,oneSource Non-Shared LBH,Oracle Corporation UK Ltd,Ict Software,1797.08,0.00,COMMERCIAL SUPPLIER 
 11-09-2023,oneSource Non-Shared LBH,Oracle Corporation UK Ltd,Ict Software,1475.45,0.00,COMMERCIAL SUPPLIER 
 11-09-2023,oneSource Non-Shared LBH,Oracle Corporation UK Ltd,Ict Software,100926.62,0.00,COMMERCIAL SUPPLIER 
 11-09-2023,oneSource Non-Shared LBH,Anglian Water Business,Water And Sewerage,1461.90,0.00,COMMERCIAL SUPPLIER 
 11-09-2023,oneSource Non-Shared LBH,Cabeyes Ltd,Purchase - Equipment Furniture And Materials,16600.00,0.00,NON COMMERCIAL SUPPLIER 
 11-09-2023,oneSource Non-Shared LBH,Computershare Voucher Services,Private Contractors Payment - Other,2985.39,0.00,COMMERCIAL SUPPLIER 
 13-09-2023,oneSource Non-Shared LBH,Alexander Dennis Ltd,Purchase - Equipment Furniture And Materials,5741.02,0.00,COMMERCIAL SUPPLIER 
 13-09-2023,oneSource Non-Shared LBH,Alexander Dennis Ltd,Purchase - Equipment Furniture And Materials,2675.50,0.00,COMMERCIAL SUPPLIER 
 13-09-2023,oneSource Non-Shared LBH,Matrix SCM Ltd,Agency Staff,656.54,0.00,COMMERCIAL SUPPLIER 
 13-09-2023,oneSource Non-Shared LBH,Matrix SCM Ltd,Agency Staff,521.73,0.00,COMMERCIAL SUPPLIER 
 13-09-2023,oneSource Non-Shared LBH,Matrix SCM Ltd,Agency Staff,841.51,0.00,COMMERCIAL SUPPLIER 
 13-09-2023,oneSource Non-Shared LBH,Matrix SCM Ltd,Agency Staff,504.90,0.00,COMMERCIAL SUPPLIER 
 13-09-2023,oneSource Non-Shared LBH,Matrix SCM Ltd,Agency Staff,631.13,0.00,COMMERCIAL SUPPLIER 
 13-09-2023,oneSource Non-Shared LBH,Matrix SCM Ltd,Agency Staff,645.40,0.00,COMMERCIAL SUPPLIER 
 13-09-2023,oneSource Non-Shared LBH,Matrix SCM Ltd,Agency Staff,599.68,0.00,COMMERCIAL SUPPLIER 
 13-09-2023,oneSource Non-Shared LBH,Matrix SCM Ltd,Agency Staff,511.35,0.00,COMMERCIAL SUPPLIER 
 13-09-2023,oneSource Non-Shared LBH,Matrix SCM Ltd,Agency Staff,546.98,0.00,COMMERCIAL SUPPLIER 
 13-09-2023,oneSource Non-Shared LBH,Matrix SCM Ltd,Agency Staff,800.86,0.00,COMMERCIAL SUPPLIER 
 13-09-2023,oneSource Non-Shared LBH,Matrix SCM Ltd,Agency Staff,656.39,0.00,COMMERCIAL SUPPLIER 
 13-09-2023,oneSource Non-Shared LBH,Matrix SCM Ltd,Agency Staff,605.88,0.00,COMMERCIAL SUPPLIER 
 13-09-2023,oneSource Non-Shared LBH,Matrix SCM Ltd,Agency Staff,1174.80,0.00,COMMERCIAL SUPPLIER 
 13-09-2023,oneSource Non-Shared LBH,Matrix SCM Ltd,Agency Staff,2101.95,0.00,COMMERCIAL SUPPLIER 
 13-09-2023,oneSource Non-Shared LBH,Matrix SCM Ltd,Agency Staff,2217.00,0.00,COMMERCIAL SUPPLIER 
 13-09-2023,oneSource Non-Shared LBH,Matrix SCM Ltd,Agency Staff,1773.60,0.00,COMMERCIAL SUPPLIER 
 13-09-2023,oneSource Non-Shared LBH,Kingdom Security Ltd,Security Services (Excluding Premises),6050.00,0.00,COMMERCIAL SUPPLIER 
 13-09-2023,oneSource Non-Shared LBH,Kingdom Security Ltd,Security Services (Excluding Premises),4533.75,0.00,COMMERCIAL SUPPLIER 
 13-09-2023,oneSource Non-Shared LBH,VolkerHighways Ltd,Purchase - Equipment Furniture And Materials,1536.48,0.00,CIS 
 14-09-2023,oneSource Non-Shared LBH,Allen & Hall Motor Engineers Ltd,Purchase - Equipment Furniture And Materials,636.24,0.00,COMMERCIAL SUPPLIER 
 14-09-2023,oneSource Non-Shared LBH,Hales Commercial Ltd,Purchase - Equipment Furniture And Materials,900.00,0.00,COMMERCIAL SUPPLIER 
 14-09-2023,oneSource Non-Shared LBH,Alexander Dennis Ltd,Purchase - Equipment Furniture And Materials,9220.00,0.00,COMMERCIAL SUPPLIER 
 14-09-2023,oneSource Non-Shared LBH,Tru Plant Ltd ,Purchase - Equipment Furniture And Materials,930.00,0.00,COMMERCIAL SUPPLIER 
 14-09-2023,oneSource Non-Shared LBH,Fast Fuel Services,Purchase - Equipment Furniture And Materials,3015.00,0.00,COMMERCIAL SUPPLIER 
 14-09-2023,oneSource Non-Shared LBH,Fast Fuel Services,Purchase - Equipment Furniture And Materials,20155.83,0.00,COMMERCIAL SUPPLIER 
 14-09-2023,oneSource Non-Shared LBH,New Era Fuels Ltd,Purchase - Equipment Furniture And Materials,18982.01,0.00,COMMERCIAL SUPPLIER 
 15-09-2023,oneSource Non-Shared LBH,Purfleet Commercials Ltd,Purchase - Equipment Furniture And Materials,2242.16,0.00,COMMERCIAL SUPPLIER 
 15-09-2023,oneSource Non-Shared LBH,Allstar Business Solutions Ltd_a,Purchase - Equipment Furniture And Materials,1622.87,0.00,COMMERCIAL SUPPLIER 
 15-09-2023,oneSource Non-Shared LBH,Atlas Repairs Ltd,Purchase - Equipment Furniture And Materials,542.60,0.00,COMMERCIAL SUPPLIER 
 15-09-2023,oneSource Non-Shared LBH,E H Roberts-Penet Group Ltd,Vehicle Hire,626.75,0.00,COMMERCIAL SUPPLIER 
 15-09-2023,oneSource Non-Shared LBH,Ernest Doe & Sons Ltd_a,Purchase - Equipment Furniture And Materials,1475.00,0.00,COMMERCIAL SUPPLIER 
 15-09-2023,oneSource Non-Shared LBH,Completely Kent Ltd t/a Completely Hydraulic Ltd,Purchase - Equipment Furniture And Materials,1013.82,0.00,COMMERCIAL SUPPLIER 
 15-09-2023,oneSource Non-Shared LBH,Completely Kent Ltd t/a Completely Hydraulic Ltd,Purchase - Equipment Furniture And Materials,713.19,0.00,COMMERCIAL SUPPLIER 
 15-09-2023,oneSource Non-Shared LBH,Drainfix Services Ltd_a,Building Alterations And Materials,4334.00,0.00,CIS 
 17-09-2023,oneSource Non-Shared LBH,D & B Motors & Sons,Purchase - Equipment Furniture And Materials,775.00,0.00,COMMERCIAL SUPPLIER 
 18-09-2023,oneSource Non-Shared LBH,South Park Heating Services Ltd,Building Alterations And Materials,1053.40,0.00,CIS 
 18-09-2023,oneSource Non-Shared LBH,South Park Heating Services Ltd,Building Alterations And Materials,1467.16,0.00,CIS 
 18-09-2023,oneSource Non-Shared LBH,South Park Heating Services Ltd,Building Alterations And Materials,630.00,0.00,CIS 
 18-09-2023,oneSource Non-Shared LBH,South Park Heating Services Ltd,Building Alterations And Materials,942.00,0.00,CIS 
 18-09-2023,oneSource Non-Shared LBH,South Park Heating Services Ltd,Building Alterations And Materials,791.00,0.00,CIS 
 18-09-2023,oneSource Non-Shared LBH,South Park Heating Services Ltd,Building Alterations And Materials,953.18,0.00,CIS 
 18-09-2023,oneSource Non-Shared LBH,Albert Road Service Station Ltd,Purchase - Equipment Furniture And Materials,1104.06,0.00,COMMERCIAL SUPPLIER 
 18-09-2023,oneSource Non-Shared LBH,P Tuckwell Ltd_a,Purchase - Equipment Furniture And Materials,660.28,0.00,COMMERCIAL SUPPLIER 
 18-09-2023,oneSource Non-Shared LBH,Xylem Water Solutions UK Ltd,Professional Services - General,3802.26,0.00,COMMERCIAL SUPPLIER 
 18-09-2023,oneSource Non-Shared LBH,Digitec Security Ltd,Security Services (Excluding Premises),1827.30,0.00,COMMERCIAL SUPPLIER 
 18-09-2023,oneSource Non-Shared LBH,Posturite Ltd,Purchase - Equipment Furniture And Materials,570.94,0.00,COMMERCIAL SUPPLIER 
 18-09-2023,oneSource Non-Shared LBH,Posturite Ltd,Purchase - Equipment Furniture And Materials,716.70,0.00,COMMERCIAL SUPPLIER 
 19-09-2023,oneSource Non-Shared LBH,South Park Heating Services Ltd,Building Alterations And Materials,1139.00,0.00,CIS 
 19-09-2023,oneSource Non-Shared LBH,South Park Heating Services Ltd,Building Alterations And Materials,682.69,0.00,CIS 
 19-09-2023,oneSource Non-Shared LBH,The Disablement Association of Barking and Dagenham t/as DABD (UK),Client Transport,90000.00,0.00,COMMERCIAL SUPPLIER 
 19-09-2023,oneSource Non-Shared LBH,Laker BMS Ltd,Facilities Management,702.17,0.00,COMMERCIAL SUPPLIER 
 20-09-2023,oneSource Non-Shared LBH,Scarab Sweepers Ltd_a,Purchase - Equipment Furniture And Materials,1845.61,0.00,COMMERCIAL SUPPLIER 
 20-09-2023,oneSource Non-Shared LBH,Matrix SCM Ltd,Agency Staff,840.78,0.00,COMMERCIAL SUPPLIER 
 20-09-2023,oneSource Non-Shared LBH,Matrix SCM Ltd,Agency Staff,527.17,0.00,COMMERCIAL SUPPLIER 
 20-09-2023,oneSource Non-Shared LBH,Matrix SCM Ltd,Agency Staff,3469.70,0.00,COMMERCIAL SUPPLIER 
 20-09-2023,oneSource Non-Shared LBH,Matrix SCM Ltd,Agency Staff,514.60,0.00,COMMERCIAL SUPPLIER 
 20-09-2023,oneSource Non-Shared LBH,Matrix SCM Ltd,Agency Staff,521.73,0.00,COMMERCIAL SUPPLIER 
 20-09-2023,oneSource Non-Shared LBH,Matrix SCM Ltd,Agency Staff,687.71,0.00,COMMERCIAL SUPPLIER 
 20-09-2023,oneSource Non-Shared LBH,Matrix SCM Ltd,Agency Staff,522.31,0.00,COMMERCIAL SUPPLIER 
 20-09-2023,oneSource Non-Shared LBH,Matrix SCM Ltd,Agency Staff,715.29,0.00,COMMERCIAL SUPPLIER 
 20-09-2023,oneSource Non-Shared LBH,Matrix SCM Ltd,Agency Staff,547.00,0.00,COMMERCIAL SUPPLIER 
 20-09-2023,oneSource Non-Shared LBH,Matrix SCM Ltd,Agency Staff,576.55,0.00,COMMERCIAL SUPPLIER 
 20-09-2023,oneSource Non-Shared LBH,Matrix SCM Ltd,Agency Staff,656.54,0.00,COMMERCIAL SUPPLIER 
 20-09-2023,oneSource Non-Shared LBH,Matrix SCM Ltd,Agency Staff,646.53,0.00,COMMERCIAL SUPPLIER 
 20-09-2023,oneSource Non-Shared LBH,Matrix SCM Ltd,Agency Staff,525.96,0.00,COMMERCIAL SUPPLIER 
 20-09-2023,oneSource Non-Shared LBH,Matrix SCM Ltd,Agency Staff,645.40,0.00,COMMERCIAL SUPPLIER 
 21-09-2023,oneSource Non-Shared LBH,HSL Compliance Ltd,Professional Services - General,1489.20,0.00,CIS 
 21-09-2023,oneSource Non-Shared LBH,HSL Compliance Ltd,Professional Services - General,1634.90,0.00,CIS 
 21-09-2023,oneSource Non-Shared LBH,HSL Compliance Ltd,Professional Services - General,2920.00,0.00,CIS 
 21-09-2023,oneSource Non-Shared LBH,HSL Compliance Ltd,Professional Services - General,1755.13,0.00,CIS 
 21-09-2023,oneSource Non-Shared LBH,HSL Compliance Ltd,Professional Services - General,510.15,0.00,CIS 
 21-09-2023,oneSource Non-Shared LBH,HSL Compliance Ltd,Professional Services - General,870.52,0.00,CIS 
 21-09-2023,oneSource Non-Shared LBH,Crusader Training Services,Staff Development And Training,680.00,0.00,COMMERCIAL SUPPLIER 
 21-09-2023,oneSource Non-Shared LBH,Buildright Solutions Ltd,Maintenance - Equipment Furniture And Materials,550.00,0.00,CIS 
 21-09-2023,oneSource Non-Shared LBH,Compton Vehicle Electrics,Purchase - Equipment Furniture And Materials,741.50,0.00,COMMERCIAL SUPPLIER 
 22-09-2023,oneSource Non-Shared LBH,Motus Truck & Van,Purchase - Equipment Furniture And Materials,627.30,0.00,COMMERCIAL SUPPLIER 
 22-09-2023,oneSource Non-Shared LBH,RD Bull & Sons Ltd,Maintenance - Equipment Furniture And Materials,7144.00,0.00,VENDOR 
 22-09-2023,oneSource Non-Shared LBH,Fisk Group,Catering And Vending Supplies,505.00,0.00,COMMERCIAL SUPPLIER 
 22-09-2023,oneSource Non-Shared LBH,Buildright Solutions Ltd,Maintenance - Equipment Furniture And Materials,680.00,0.00,CIS 
 22-09-2023,oneSource Non-Shared LBH,Xylem Water Solutions UK Ltd,Professional Services - General,1618.15,0.00,COMMERCIAL SUPPLIER 
 25-09-2023,oneSource Non-Shared LBH,London Riverside Bid Ltd,Consultancy Fees,1203.45,0.00,COMMERCIAL SUPPLIER 
 25-09-2023,oneSource Non-Shared LBH,Serco Ltd,Refuse Collection,779.09,0.00,COMMERCIAL SUPPLIER 
 26-09-2023,oneSource Non-Shared LBH,Havering Building Specialists Ltd,Maintenance - Equipment Furniture And Materials,89087.01,0.00,CIS 
 26-09-2023,oneSource Non-Shared LBH,Havering Building Specialists Ltd,Cyclical/Planned Maintenance - Mechanical And Electrical,578.00,0.00,CIS 
 26-09-2023,oneSource Non-Shared LBH,Havering Building Specialists Ltd,Maintenance - Equipment Furniture And Materials,134903.56,0.00,CIS 
 26-09-2023,oneSource Non-Shared LBH,CPL Petroleum Ltd,Purchase - Equipment Furniture And Materials,2998.08,0.00,COMMERCIAL SUPPLIER 
 26-09-2023,oneSource Non-Shared LBH,Cadline Ltd,Surveys,837.00,0.00,COMMERCIAL SUPPLIER 
 26-09-2023,oneSource Non-Shared LBH,Purfleet Commercials Ltd,Purchase - Equipment Furniture And Materials,999.61,0.00,COMMERCIAL SUPPLIER 
 27-09-2023,oneSource Non-Shared LBH,Matrix SCM Ltd,Agency Staff,601.67,0.00,COMMERCIAL SUPPLIER 
 27-09-2023,oneSource Non-Shared LBH,Matrix SCM Ltd,Agency Staff,656.54,0.00,COMMERCIAL SUPPLIER 
 27-09-2023,oneSource Non-Shared LBH,Matrix SCM Ltd,Agency Staff,546.98,0.00,COMMERCIAL SUPPLIER 
 27-09-2023,oneSource Non-Shared LBH,Matrix SCM Ltd,Agency Staff,670.29,0.00,COMMERCIAL SUPPLIER 
 27-09-2023,oneSource Non-Shared LBH,Matrix SCM Ltd,Agency Staff,504.91,0.00,COMMERCIAL SUPPLIER 
 27-09-2023,oneSource Non-Shared LBH,Matrix SCM Ltd,Agency Staff,866.75,0.00,COMMERCIAL SUPPLIER 
 27-09-2023,oneSource Non-Shared LBH,Matrix SCM Ltd,Agency Staff,576.55,0.00,COMMERCIAL SUPPLIER 
 27-09-2023,oneSource Non-Shared LBH,Matrix SCM Ltd,Agency Staff,521.73,0.00,COMMERCIAL SUPPLIER 
 27-09-2023,oneSource Non-Shared LBH,Matrix SCM Ltd,Agency Staff,645.40,0.00,COMMERCIAL SUPPLIER 
 27-09-2023,oneSource Non-Shared LBH,Matrix SCM Ltd,Agency Staff,511.35,0.00,COMMERCIAL SUPPLIER 
 27-09-2023,oneSource Non-Shared LBH,Matrix SCM Ltd,Agency Staff,524.72,0.00,COMMERCIAL SUPPLIER 
 27-09-2023,oneSource Non-Shared LBH,Matrix SCM Ltd,Agency Staff,2775.76,0.00,COMMERCIAL SUPPLIER 
 27-09-2023,oneSource Non-Shared LBH,Matrix SCM Ltd,Agency Staff,1153.14,0.00,COMMERCIAL SUPPLIER 
 27-09-2023,oneSource Non-Shared LBH,Matrix SCM Ltd,Agency Staff,2306.28,0.00,COMMERCIAL SUPPLIER 
 27-09-2023,oneSource Non-Shared LBH,Matrix SCM Ltd,Agency Staff,3469.70,0.00,COMMERCIAL SUPPLIER 
 27-09-2023,oneSource Non-Shared LBH,Matrix SCM Ltd,Agency Staff,530.21,0.00,COMMERCIAL SUPPLIER 
 27-09-2023,oneSource Non-Shared LBH,Matrix SCM Ltd,Agency Staff,629.06,0.00,COMMERCIAL SUPPLIER 
 28-09-2023,oneSource Non-Shared LBH,Toyota Material Handling UK Ltd,Vehicle Hire,700.12,0.00,COMMERCIAL SUPPLIER 
 28-09-2023,oneSource Non-Shared LBH,Days Rental ,Vehicle Hire,702.00,0.00,COMMERCIAL SUPPLIER 
 28-09-2023,oneSource Non-Shared LBH,Days Rental ,Vehicle Hire,1149.69,0.00,COMMERCIAL SUPPLIER 
 28-09-2023,oneSource Non-Shared LBH,Days Rental ,Vehicle Hire,889.20,0.00,COMMERCIAL SUPPLIER 
 28-09-2023,oneSource Non-Shared LBH,Days Rental ,Vehicle Hire,806.80,0.00,COMMERCIAL SUPPLIER 
 28-09-2023,oneSource Non-Shared LBH,Crosspath CCTV Ltd,Purchase - Equipment Furniture And Materials,1848.00,0.00,COMMERCIAL SUPPLIER 
 28-09-2023,oneSource Non-Shared LBH,Buildright Solutions Ltd,Maintenance - Equipment Furniture And Materials,790.00,0.00,CIS 
 28-09-2023,oneSource Non-Shared LBH,Compton Vehicle Electrics,Purchase - Equipment Furniture And Materials,568.49,0.00,COMMERCIAL SUPPLIER 
 28-09-2023,oneSource Non-Shared LBH,Serco Ltd,Refuse Collection,1305.24,0.00,COMMERCIAL SUPPLIER 
 28-09-2023,oneSource Non-Shared LBH,Serco Ltd,Refuse Collection,830.44,0.00,COMMERCIAL SUPPLIER 
 28-09-2023,oneSource Non-Shared LBH,PSV Glass LLP,Purchase - Equipment Furniture And Materials,1340.45,0.00,COMMERCIAL SUPPLIER 
 28-09-2023,oneSource Non-Shared LBH,Personal Information - Redacted,Professional Services - General,762.01,0.00,Employee 
 28-09-2023,oneSource Non-Shared LBH,Personal Information - Redacted,Postage And Courier Services,3785.00,0.00,Employee 
 28-09-2023,oneSource Non-Shared LBH,Kingdom Security Ltd,Security Services (Excluding Premises),5711.20,0.00,COMMERCIAL SUPPLIER 
 29-09-2023,oneSource Non-Shared LBH,Tructyre Fleet Management Ltd,Purchase - Equipment Furniture And Materials,643.68,0.00,COMMERCIAL SUPPLIER 
 29-09-2023,oneSource Non-Shared LBH,MC Truck & Bus Ltd,Purchase - Equipment Furniture And Materials,763.34,0.00,COMMERCIAL SUPPLIER 
 29-09-2023,oneSource Non-Shared LBH,Serco Ltd,Refuse Collection,788.55,0.00,COMMERCIAL SUPPLIER 
 29-09-2023,oneSource Non-Shared LBH,Digitec Security Ltd,Security Services (Excluding Premises),745.90,0.00,COMMERCIAL SUPPLIER 
 30-09-2023,oneSource Non-Shared LBH,Allstar Business Solutions Ltd_a,Purchase - Equipment Furniture And Materials,858.46,0.00,COMMERCIAL SUPPLIER 
 30-09-2023,oneSource Non-Shared LBH,P Tuckwell Ltd_a,Vehicle Hire,1071.43,0.00,COMMERCIAL SUPPLIER 
 30-09-2023,oneSource Non-Shared LBH,P Tuckwell Ltd_a,Vehicle Hire,1071.43,0.00,COMMERCIAL SUPPLIER 
 30-09-2023,oneSource Non-Shared LBH,P Tuckwell Ltd_a,Vehicle Hire,1071.43,0.00,COMMERCIAL SUPPLIER 
 30-09-2023,oneSource Non-Shared LBH,P Tuckwell Ltd_a,Vehicle Hire,1071.43,0.00,COMMERCIAL SUPPLIER 
 30-09-2023,oneSource Non-Shared LBH,London Hire Ltd_a,Vehicle Hire,2706.83,0.00,COMMERCIAL SUPPLIER 
 30-09-2023,oneSource Non-Shared LBH,London Hire Ltd_a,Vehicle Hire,2706.83,0.00,COMMERCIAL SUPPLIER 
 30-09-2023,oneSource Non-Shared LBH,London Hire Ltd_a,Vehicle Hire,2706.83,0.00,COMMERCIAL SUPPLIER 
 01-09-2023,oneSource Shared,Civica UK Ltd_a,Ict Maintenance And Support,8160.00,0.00,COMMERCIAL SUPPLIER 
 04-09-2023,oneSource Shared,EBB Office Ltd,Stationery,670.00,0.00,COMMERCIAL SUPPLIER 
 05-09-2023,oneSource Shared,DAISY CORPORTATE SERVICES TRADING,Mobile Phone Costs,19888.35,0.00,COMMERCIAL SUPPLIER 
 06-09-2023,oneSource Shared,Matrix SCM Ltd,Agency Staff,576.26,0.00,COMMERCIAL SUPPLIER 
 06-09-2023,oneSource Shared,Matrix SCM Ltd,Agency Staff,794.88,0.00,COMMERCIAL SUPPLIER 
 06-09-2023,oneSource Shared,Matrix SCM Ltd,Agency Staff,797.06,0.00,COMMERCIAL SUPPLIER 
 06-09-2023,oneSource Shared,Matrix SCM Ltd,Agency Staff,851.20,0.00,COMMERCIAL SUPPLIER 
 06-09-2023,oneSource Shared,Matrix SCM Ltd,Agency Staff,680.96,0.00,COMMERCIAL SUPPLIER 
 06-09-2023,oneSource Shared,Matrix SCM Ltd,Agency Staff,711.36,0.00,COMMERCIAL SUPPLIER 
 06-09-2023,oneSource Shared,Matrix SCM Ltd,Agency Staff,723.52,0.00,COMMERCIAL SUPPLIER 
 06-09-2023,oneSource Shared,Matrix SCM Ltd,Agency Staff,1270.66,0.00,COMMERCIAL SUPPLIER 
 06-09-2023,oneSource Shared,Matrix SCM Ltd,Agency Staff,1270.67,0.00,COMMERCIAL SUPPLIER 
 06-09-2023,oneSource Shared,Matrix SCM Ltd,Agency Staff,1673.00,0.00,COMMERCIAL SUPPLIER 
 06-09-2023,oneSource Shared,Matrix SCM Ltd,Agency Staff,1963.01,0.00,COMMERCIAL SUPPLIER 
 06-09-2023,oneSource Shared,Matrix SCM Ltd,Agency Staff,1772.68,0.00,COMMERCIAL SUPPLIER 
 06-09-2023,oneSource Shared,Matrix SCM Ltd,Agency Staff,1815.48,0.00,COMMERCIAL SUPPLIER 
 06-09-2023,oneSource Shared,Matrix SCM Ltd,Agency Staff,1550.73,0.00,COMMERCIAL SUPPLIER 
 06-09-2023,oneSource Shared,Matrix SCM Ltd,Agency Staff,958.46,0.00,COMMERCIAL SUPPLIER 
 06-09-2023,oneSource Shared,Matrix SCM Ltd,Agency Staff,1708.48,0.00,COMMERCIAL SUPPLIER 
 06-09-2023,oneSource Shared,Matrix SCM Ltd,Agency Staff,1352.27,0.00,COMMERCIAL SUPPLIER 
 06-09-2023,oneSource Shared,Matrix SCM Ltd,Agency Staff,609.84,0.00,COMMERCIAL SUPPLIER 
 06-09-2023,oneSource Shared,Matrix SCM Ltd,Agency Staff,4493.60,0.00,COMMERCIAL SUPPLIER 
 06-09-2023,oneSource Shared,Matrix SCM Ltd,Agency Staff,4493.60,0.00,COMMERCIAL SUPPLIER 
 06-09-2023,oneSource Shared,Matrix SCM Ltd,Agency Staff,1773.60,0.00,COMMERCIAL SUPPLIER 
 06-09-2023,oneSource Shared,Matrix SCM Ltd,Agency Staff,597.44,0.00,COMMERCIAL SUPPLIER 
 06-09-2023,oneSource Shared,Matrix SCM Ltd,Agency Staff,781.84,0.00,COMMERCIAL SUPPLIER 
 06-09-2023,oneSource Shared,Matrix SCM Ltd,Agency Staff,775.10,0.00,COMMERCIAL SUPPLIER 
 06-09-2023,oneSource Shared,Matrix SCM Ltd,Agency Staff,636.84,0.00,COMMERCIAL SUPPLIER 
 06-09-2023,oneSource Shared,Matrix SCM Ltd,Agency Staff,2901.68,0.00,COMMERCIAL SUPPLIER 
 06-09-2023,oneSource Shared,Matrix SCM Ltd,Agency Staff,4768.50,0.00,COMMERCIAL SUPPLIER 
 06-09-2023,oneSource Shared,Matrix SCM Ltd,Agency Staff,4768.50,0.00,COMMERCIAL SUPPLIER 
 06-09-2023,oneSource Shared,Matrix SCM Ltd,Agency Staff,3814.80,0.00,COMMERCIAL SUPPLIER 
 06-09-2023,oneSource Shared,Matrix SCM Ltd,Agency Staff,2546.00,0.00,COMMERCIAL SUPPLIER 
 06-09-2023,oneSource Shared,Matrix SCM Ltd,Agency Staff,514.68,0.00,COMMERCIAL SUPPLIER 
 07-09-2023,oneSource Shared,Matrix SCM Ltd,Consultancy Fees,32745.56,0.00,COMMERCIAL SUPPLIER 
 11-09-2023,oneSource Shared,Robert Delaney Properties Ltd,Payment To Private Sector Landlords (Psl),1500.00,0.00,COMMERCIAL SUPPLIER 
 11-09-2023,oneSource Shared,Oracle Corporation UK Ltd,Ict Software,1552.79,0.00,COMMERCIAL SUPPLIER 
 13-09-2023,oneSource Shared,Canon (UK) Ltd,Printing,1043.20,0.00,COMMERCIAL SUPPLIER 
 13-09-2023,oneSource Shared,Matrix SCM Ltd,Agency Staff,1907.40,0.00,COMMERCIAL SUPPLIER 
 13-09-2023,oneSource Shared,Matrix SCM Ltd,Agency Staff,2922.51,0.00,COMMERCIAL SUPPLIER 
 13-09-2023,oneSource Shared,Matrix SCM Ltd,Agency Staff,2546.00,0.00,COMMERCIAL SUPPLIER 
 13-09-2023,oneSource Shared,Matrix SCM Ltd,Agency Staff,3615.05,0.00,COMMERCIAL SUPPLIER 
 13-09-2023,oneSource Shared,Matrix SCM Ltd,Agency Staff,2593.35,0.00,COMMERCIAL SUPPLIER 
 13-09-2023,oneSource Shared,Matrix SCM Ltd,Agency Staff,3457.80,0.00,COMMERCIAL SUPPLIER 
 13-09-2023,oneSource Shared,Matrix SCM Ltd,Agency Staff,3457.80,0.00,COMMERCIAL SUPPLIER 
 13-09-2023,oneSource Shared,Matrix SCM Ltd,Agency Staff,1623.22,0.00,COMMERCIAL SUPPLIER 
 13-09-2023,oneSource Shared,Matrix SCM Ltd,Agency Staff,2493.95,0.00,COMMERCIAL SUPPLIER 
 13-09-2023,oneSource Shared,Matrix SCM Ltd,Agency Staff,2493.95,0.00,COMMERCIAL SUPPLIER 
 13-09-2023,oneSource Shared,Matrix SCM Ltd,Agency Staff,2493.95,0.00,COMMERCIAL SUPPLIER 
 13-09-2023,oneSource Shared,Matrix SCM Ltd,Agency Staff,2493.95,0.00,COMMERCIAL SUPPLIER 
 13-09-2023,oneSource Shared,Matrix SCM Ltd,Agency Staff,5498.95,0.00,COMMERCIAL SUPPLIER 
 13-09-2023,oneSource Shared,Matrix SCM Ltd,Agency Staff,781.84,0.00,COMMERCIAL SUPPLIER 
 13-09-2023,oneSource Shared,Matrix SCM Ltd,Agency Staff,748.10,0.00,COMMERCIAL SUPPLIER 
 13-09-2023,oneSource Shared,Matrix SCM Ltd,Agency Staff,970.56,0.00,COMMERCIAL SUPPLIER 
 13-09-2023,oneSource Shared,Matrix SCM Ltd,Agency Staff,790.56,0.00,COMMERCIAL SUPPLIER 
 13-09-2023,oneSource Shared,Matrix SCM Ltd,Agency Staff,3627.10,0.00,COMMERCIAL SUPPLIER 
 13-09-2023,oneSource Shared,Matrix SCM Ltd,Agency Staff,762.30,0.00,COMMERCIAL SUPPLIER 
 13-09-2023,oneSource Shared,Matrix SCM Ltd,Agency Staff,1815.49,0.00,COMMERCIAL SUPPLIER 
 13-09-2023,oneSource Shared,Matrix SCM Ltd,Agency Staff,3012.21,0.00,COMMERCIAL SUPPLIER 
 13-09-2023,oneSource Shared,Matrix SCM Ltd,Agency Staff,1720.80,0.00,COMMERCIAL SUPPLIER 
 13-09-2023,oneSource Shared,Matrix SCM Ltd,Agency Staff,1772.66,0.00,COMMERCIAL SUPPLIER 
 13-09-2023,oneSource Shared,Matrix SCM Ltd,Agency Staff,1975.45,0.00,COMMERCIAL SUPPLIER 
 13-09-2023,oneSource Shared,Matrix SCM Ltd,Agency Staff,1189.80,0.00,COMMERCIAL SUPPLIER 
 13-09-2023,oneSource Shared,Matrix SCM Ltd,Agency Staff,1887.48,0.00,COMMERCIAL SUPPLIER 
 13-09-2023,oneSource Shared,Matrix SCM Ltd,Agency Staff,1887.48,0.00,COMMERCIAL SUPPLIER 
 13-09-2023,oneSource Shared,Matrix SCM Ltd,Agency Staff,1678.68,0.00,COMMERCIAL SUPPLIER 
 13-09-2023,oneSource Shared,Matrix SCM Ltd,Agency Staff,851.20,0.00,COMMERCIAL SUPPLIER 
 13-09-2023,oneSource Shared,Matrix SCM Ltd,Agency Staff,584.21,0.00,COMMERCIAL SUPPLIER 
 13-09-2023,oneSource Shared,Matrix SCM Ltd,Agency Staff,851.20,0.00,COMMERCIAL SUPPLIER 
 13-09-2023,oneSource Shared,Matrix SCM Ltd,Agency Staff,1300.21,0.00,COMMERCIAL SUPPLIER 
 13-09-2023,oneSource Shared,Matrix SCM Ltd,Agency Staff,851.20,0.00,COMMERCIAL SUPPLIER 
 13-09-2023,oneSource Shared,Matrix SCM Ltd,Agency Staff,1325.91,0.00,COMMERCIAL SUPPLIER 
 13-09-2023,oneSource Shared,Matrix SCM Ltd,Agency Staff,571.57,0.00,COMMERCIAL SUPPLIER 
 13-09-2023,oneSource Shared,Matrix SCM Ltd,Agency Staff,818.28,0.00,COMMERCIAL SUPPLIER 
 13-09-2023,oneSource Shared,Matrix SCM Ltd,Agency Staff,817.22,0.00,COMMERCIAL SUPPLIER 
 14-09-2023,oneSource Shared,Telsolutions Ltd,Internet Costs,560.06,0.00,COMMERCIAL SUPPLIER 
 14-09-2023,oneSource Shared,Bytes Software Services,Ict Software,523.59,0.00,COMMERCIAL SUPPLIER 
 14-09-2023,oneSource Shared,Bytes Software Services,Ict Software,523.59,0.00,COMMERCIAL SUPPLIER 
 14-09-2023,oneSource Shared,Bytes Software Services,Ict Software,523.59,0.00,COMMERCIAL SUPPLIER 
 14-09-2023,oneSource Shared,Civica UK Ltd_a,Ict Maintenance And Support,4005.00,0.00,COMMERCIAL SUPPLIER 
 15-09-2023,oneSource Shared,Ovenden Papers Ltd,Printing,636.30,0.00,COMMERCIAL SUPPLIER 
 19-09-2023,oneSource Shared,DAISY CORPORTATE SERVICES TRADING,Mobile Phone Costs,19974.52,0.00,COMMERCIAL SUPPLIER 
 20-09-2023,oneSource Shared,Stripe OLT,Ict Maintenance And Support,12500.00,0.00,COMMERCIAL SUPPLIER 
 20-09-2023,oneSource Shared,Matrix SCM Ltd,Agency Staff,658.32,0.00,COMMERCIAL SUPPLIER 
 20-09-2023,oneSource Shared,Matrix SCM Ltd,Agency Staff,818.28,0.00,COMMERCIAL SUPPLIER 
 20-09-2023,oneSource Shared,Matrix SCM Ltd,Agency Staff,702.75,0.00,COMMERCIAL SUPPLIER 
 20-09-2023,oneSource Shared,Matrix SCM Ltd,Agency Staff,883.94,0.00,COMMERCIAL SUPPLIER 
 20-09-2023,oneSource Shared,Matrix SCM Ltd,Agency Staff,851.20,0.00,COMMERCIAL SUPPLIER 
 20-09-2023,oneSource Shared,Matrix SCM Ltd,Agency Staff,597.39,0.00,COMMERCIAL SUPPLIER 
 20-09-2023,oneSource Shared,Matrix SCM Ltd,Agency Staff,826.88,0.00,COMMERCIAL SUPPLIER 
 20-09-2023,oneSource Shared,Matrix SCM Ltd,Agency Staff,1314.99,0.00,COMMERCIAL SUPPLIER 
 20-09-2023,oneSource Shared,Matrix SCM Ltd,Agency Staff,1815.49,0.00,COMMERCIAL SUPPLIER 
 20-09-2023,oneSource Shared,Matrix SCM Ltd,Agency Staff,1720.80,0.00,COMMERCIAL SUPPLIER 
 20-09-2023,oneSource Shared,Matrix SCM Ltd,Agency Staff,1304.34,0.00,COMMERCIAL SUPPLIER 
 20-09-2023,oneSource Shared,Matrix SCM Ltd,Agency Staff,1887.48,0.00,COMMERCIAL SUPPLIER 
 20-09-2023,oneSource Shared,Matrix SCM Ltd,Agency Staff,1772.68,0.00,COMMERCIAL SUPPLIER 
 20-09-2023,oneSource Shared,Matrix SCM Ltd,Agency Staff,1189.81,0.00,COMMERCIAL SUPPLIER 
 20-09-2023,oneSource Shared,Matrix SCM Ltd,Agency Staff,1678.69,0.00,COMMERCIAL SUPPLIER 
 20-09-2023,oneSource Shared,Matrix SCM Ltd,Agency Staff,1778.63,0.00,COMMERCIAL SUPPLIER 
 20-09-2023,oneSource Shared,Matrix SCM Ltd,Agency Staff,1778.65,0.00,COMMERCIAL SUPPLIER 
 20-09-2023,oneSource Shared,Matrix SCM Ltd,Agency Staff,2493.95,0.00,COMMERCIAL SUPPLIER 
 20-09-2023,oneSource Shared,Matrix SCM Ltd,Agency Staff,4058.05,0.00,COMMERCIAL SUPPLIER 
 20-09-2023,oneSource Shared,Matrix SCM Ltd,Agency Staff,2892.04,0.00,COMMERCIAL SUPPLIER 
 20-09-2023,oneSource Shared,Matrix SCM Ltd,Agency Staff,4984.20,0.00,COMMERCIAL SUPPLIER 
 20-09-2023,oneSource Shared,Matrix SCM Ltd,Agency Staff,1330.20,0.00,COMMERCIAL SUPPLIER 
 20-09-2023,oneSource Shared,Matrix SCM Ltd,Agency Staff,2217.00,0.00,COMMERCIAL SUPPLIER 
 20-09-2023,oneSource Shared,Matrix SCM Ltd,Agency Staff,748.10,0.00,COMMERCIAL SUPPLIER 
 20-09-2023,oneSource Shared,Matrix SCM Ltd,Agency Staff,970.56,0.00,COMMERCIAL SUPPLIER 
 20-09-2023,oneSource Shared,Matrix SCM Ltd,Agency Staff,970.56,0.00,COMMERCIAL SUPPLIER 
 20-09-2023,oneSource Shared,Matrix SCM Ltd,Agency Staff,790.56,0.00,COMMERCIAL SUPPLIER 
 20-09-2023,oneSource Shared,Matrix SCM Ltd,Agency Staff,3627.10,0.00,COMMERCIAL SUPPLIER 
 20-09-2023,oneSource Shared,Matrix SCM Ltd,Agency Staff,2546.00,0.00,COMMERCIAL SUPPLIER 
 20-09-2023,oneSource Shared,Matrix SCM Ltd,Agency Staff,762.30,0.00,COMMERCIAL SUPPLIER 
 20-09-2023,oneSource Shared,Personal Information - Redacted,Ict Software,615.77,0.00,Employee 
 27-09-2023,oneSource Shared,Matrix SCM Ltd,Agency Staff,970.56,0.00,COMMERCIAL SUPPLIER 
 27-09-2023,oneSource Shared,Matrix SCM Ltd,Agency Staff,748.10,0.00,COMMERCIAL SUPPLIER 
 27-09-2023,oneSource Shared,Matrix SCM Ltd,Agency Staff,790.56,0.00,COMMERCIAL SUPPLIER 
 27-09-2023,oneSource Shared,Matrix SCM Ltd,Agency Staff,3627.10,0.00,COMMERCIAL SUPPLIER 
 27-09-2023,oneSource Shared,Matrix SCM Ltd,Agency Staff,4870.85,0.00,COMMERCIAL SUPPLIER 
 27-09-2023,oneSource Shared,Matrix SCM Ltd,Agency Staff,2546.00,0.00,COMMERCIAL SUPPLIER 
 27-09-2023,oneSource Shared,Matrix SCM Ltd,Agency Staff,762.30,0.00,COMMERCIAL SUPPLIER 
 27-09-2023,oneSource Shared,Matrix SCM Ltd,Agency Staff,2493.95,0.00,COMMERCIAL SUPPLIER 
 27-09-2023,oneSource Shared,Matrix SCM Ltd,Agency Staff,3615.05,0.00,COMMERCIAL SUPPLIER 
 27-09-2023,oneSource Shared,Matrix SCM Ltd,Agency Staff,2217.00,0.00,COMMERCIAL SUPPLIER 
 27-09-2023,oneSource Shared,Matrix SCM Ltd,Agency Staff,970.56,0.00,COMMERCIAL SUPPLIER 
 27-09-2023,oneSource Shared,Matrix SCM Ltd,Agency Staff,2978.37,0.00,COMMERCIAL SUPPLIER 
 27-09-2023,oneSource Shared,Matrix SCM Ltd,Agency Staff,854.24,0.00,COMMERCIAL SUPPLIER 
 27-09-2023,oneSource Shared,Matrix SCM Ltd,Agency Staff,1772.68,0.00,COMMERCIAL SUPPLIER 
 27-09-2023,oneSource Shared,Matrix SCM Ltd,Agency Staff,854.24,0.00,COMMERCIAL SUPPLIER 
 27-09-2023,oneSource Shared,Matrix SCM Ltd,Agency Staff,1720.80,0.00,COMMERCIAL SUPPLIER 
 27-09-2023,oneSource Shared,Matrix SCM Ltd,Agency Staff,1887.48,0.00,COMMERCIAL SUPPLIER 
 27-09-2023,oneSource Shared,Matrix SCM Ltd,Agency Staff,1815.49,0.00,COMMERCIAL SUPPLIER 
 27-09-2023,oneSource Shared,Matrix SCM Ltd,Agency Staff,1189.81,0.00,COMMERCIAL SUPPLIER 
 27-09-2023,oneSource Shared,Matrix SCM Ltd,Agency Staff,1707.49,0.00,COMMERCIAL SUPPLIER 
 27-09-2023,oneSource Shared,Matrix SCM Ltd,Agency Staff,3029.14,0.00,COMMERCIAL SUPPLIER 
 27-09-2023,oneSource Shared,Matrix SCM Ltd,Agency Staff,1717.56,0.00,COMMERCIAL SUPPLIER 
 27-09-2023,oneSource Shared,Matrix SCM Ltd,Agency Staff,851.20,0.00,COMMERCIAL SUPPLIER 
 27-09-2023,oneSource Shared,Matrix SCM Ltd,Agency Staff,851.20,0.00,COMMERCIAL SUPPLIER 
 27-09-2023,oneSource Shared,Matrix SCM Ltd,Agency Staff,584.21,0.00,COMMERCIAL SUPPLIER 
 27-09-2023,oneSource Shared,Matrix SCM Ltd,Agency Staff,851.20,0.00,COMMERCIAL SUPPLIER 
 27-09-2023,oneSource Shared,Matrix SCM Ltd,Agency Staff,851.20,0.00,COMMERCIAL SUPPLIER 
 27-09-2023,oneSource Shared,Matrix SCM Ltd,Agency Staff,1300.21,0.00,COMMERCIAL SUPPLIER 
 27-09-2023,oneSource Shared,Matrix SCM Ltd,Agency Staff,658.32,0.00,COMMERCIAL SUPPLIER 
 27-09-2023,oneSource Shared,Matrix SCM Ltd,Agency Staff,818.28,0.00,COMMERCIAL SUPPLIER 
 27-09-2023,oneSource Shared,Matrix SCM Ltd,Agency Staff,763.66,0.00,COMMERCIAL SUPPLIER 
 29-09-2023,oneSource Shared,Canon (UK) Ltd,Printing,1043.20,0.00,COMMERCIAL SUPPLIER 
 01-09-2023,People - Ageing Well,Marlow,Residential Placements - Private Contractors Payment,7109.84,0.00,COMMERCIAL SUPPLIER 
 01-09-2023,People - Ageing Well,Marlow,Residential Placements - Private Contractors Payment,2256.24,0.00,COMMERCIAL SUPPLIER 
 01-09-2023,People - Ageing Well,Trinity London Care Ltd,Daycare - Private Contractors Payment,2200.00,0.00,COMMERCIAL SUPPLIER 
 01-09-2023,People - Ageing Well,Trinity London Care Ltd,Daycare - Private Contractors Payment,1080.00,0.00,COMMERCIAL SUPPLIER 
 01-09-2023,People - Ageing Well,Trinity London Care Ltd,Daycare - Private Contractors Payment,2200.00,0.00,COMMERCIAL SUPPLIER 
 01-09-2023,People - Ageing Well,Trinity London Care Ltd,Daycare - Private Contractors Payment,2200.00,0.00,COMMERCIAL SUPPLIER 
 01-09-2023,People - Ageing Well,Trinity London Care Ltd,Daycare - Private Contractors Payment,1080.00,0.00,COMMERCIAL SUPPLIER 
 01-09-2023,People - Ageing Well,Trinity London Care Ltd,Daycare - Private Contractors Payment,1080.00,0.00,COMMERCIAL SUPPLIER 
 02-09-2023,People - Ageing Well,Amachyck Care Solution Ltd.,Home Care - Private Contractors Payment,1135.70,0.00,COMMERCIAL SUPPLIER 
 02-09-2023,People - Ageing Well,R M Complete Services Ltd,Cleaning Services,975.00,0.00,CIS 
 04-09-2023,People - Ageing Well,Gims Care Solution Ltd_a,Home Care - Private Contractors Payment,5800.00,0.00,NON COMMERCIAL SUPPLIER 
 04-09-2023,People - Ageing Well,Gims Care Solution Ltd_a,Home Care - Private Contractors Payment,2446.09,0.00,NON COMMERCIAL SUPPLIER 
 04-09-2023,People - Ageing Well,Gims Care Solution Ltd_a,Home Care - Private Contractors Payment,1000.32,0.00,NON COMMERCIAL SUPPLIER 
 04-09-2023,People - Ageing Well,Gims Care Solution Ltd_a,Home Care - Private Contractors Payment,3669.13,0.00,NON COMMERCIAL SUPPLIER 
 04-09-2023,People - Ageing Well,Gims Care Solution Ltd_a,Home Care - Private Contractors Payment,8109.60,0.00,NON COMMERCIAL SUPPLIER 
 04-09-2023,People - Ageing Well,Gims Care Solution Ltd_a,Home Care - Private Contractors Payment,751.00,0.00,NON COMMERCIAL SUPPLIER 
 04-09-2023,People - Ageing Well,Gims Care Solution Ltd_a,Home Care - Private Contractors Payment,751.00,0.00,NON COMMERCIAL SUPPLIER 
 04-09-2023,People - Ageing Well,The Sycamore Trust,Payments To Voluntary Sector,3333.33,0.00,COMMERCIAL SUPPLIER 
 04-09-2023,People - Ageing Well,The Sycamore Trust,Payments To Voluntary Sector,3333.34,0.00,COMMERCIAL SUPPLIER 
 04-09-2023,People - Ageing Well,All Therapy Solutions Ltd,Occupational Health,5470.00,0.00,COMMERCIAL SUPPLIER 
 04-09-2023,People - Ageing Well,Protecthand Care Ltd ,Supported Other Accommodation - Private Contractors Payment,16405.20,0.00,COMMERCIAL SUPPLIER 
 04-09-2023,People - Ageing Well,Ronti Care Solutions,Home Care - Private Contractors Payment,2464.00,0.00,LOCAL AUTHORITY SERVICES 
 05-09-2023,People - Ageing Well,Treal Care Limited,Home Care - Private Contractors Payment,1155.00,0.00,COMMERCIAL SUPPLIER 
 05-09-2023,People - Ageing Well,Treal Care Limited,Home Care - Private Contractors Payment,770.00,0.00,COMMERCIAL SUPPLIER 
 05-09-2023,People - Ageing Well,Treal Care Limited,Home Care - Private Contractors Payment,770.00,0.00,COMMERCIAL SUPPLIER 
 05-09-2023,People - Ageing Well,Treal Care Limited,Home Care - Private Contractors Payment,1120.00,0.00,COMMERCIAL SUPPLIER 
 05-09-2023,People - Ageing Well,Treal Care Limited,Home Care - Private Contractors Payment,1120.00,0.00,COMMERCIAL SUPPLIER 
 05-09-2023,People - Ageing Well,Mind in Tower Hamlets And Newham,Private Contractors Payment - Other,35640.00,0.00,COMMERCIAL SUPPLIER 
 05-09-2023,People - Ageing Well,Fari Care Ltd,Supported Other Accommodation - Private Contractors Payment,1596.00,0.00,COMMERCIAL SUPPLIER 
 05-09-2023,People - Ageing Well,Fari Care Ltd,Supported Other Accommodation - Private Contractors Payment,756.00,0.00,COMMERCIAL SUPPLIER 
 05-09-2023,People - Ageing Well,Fari Care Ltd,Supported Other Accommodation - Private Contractors Payment,1596.00,0.00,COMMERCIAL SUPPLIER 
 05-09-2023,People - Ageing Well,Fari Care Ltd,Supported Other Accommodation - Private Contractors Payment,756.00,0.00,COMMERCIAL SUPPLIER 
 05-09-2023,People - Ageing Well,Fari Care Ltd,Supported Other Accommodation - Private Contractors Payment,1596.00,0.00,COMMERCIAL SUPPLIER 
 05-09-2023,People - Ageing Well,Fari Care Ltd,Supported Other Accommodation - Private Contractors Payment,756.00,0.00,COMMERCIAL SUPPLIER 
 05-09-2023,People - Ageing Well,Fari Care Ltd,Supported Other Accommodation - Private Contractors Payment,1596.00,0.00,COMMERCIAL SUPPLIER 
 05-09-2023,People - Ageing Well,Fari Care Ltd,Supported Other Accommodation - Private Contractors Payment,756.00,0.00,COMMERCIAL SUPPLIER 
 05-09-2023,People - Ageing Well,Fari Care Ltd,Supported Other Accommodation - Private Contractors Payment,1596.00,0.00,COMMERCIAL SUPPLIER 
 05-09-2023,People - Ageing Well,Fari Care Ltd,Supported Other Accommodation - Private Contractors Payment,756.00,0.00,COMMERCIAL SUPPLIER 
 05-09-2023,People - Ageing Well,Fari Care Ltd,Supported Other Accommodation - Private Contractors Payment,783.00,0.00,COMMERCIAL SUPPLIER 
 05-09-2023,People - Ageing Well,Fari Care Ltd,Supported Other Accommodation - Private Contractors Payment,1596.00,0.00,COMMERCIAL SUPPLIER 
 05-09-2023,People - Ageing Well,Fari Care Ltd,Supported Other Accommodation - Private Contractors Payment,1653.00,0.00,COMMERCIAL SUPPLIER 
 05-09-2023,People - Ageing Well,Fari Care Ltd,Supported Other Accommodation - Private Contractors Payment,756.00,0.00,COMMERCIAL SUPPLIER 
 05-09-2023,People - Ageing Well,Fari Care Ltd,Supported Other Accommodation - Private Contractors Payment,756.00,0.00,COMMERCIAL SUPPLIER 
 05-09-2023,People - Ageing Well,Fari Care Ltd,Supported Other Accommodation - Private Contractors Payment,1596.00,0.00,COMMERCIAL SUPPLIER 
 05-09-2023,People - Ageing Well,Fari Care Ltd,Supported Other Accommodation - Private Contractors Payment,1596.00,0.00,COMMERCIAL SUPPLIER 
 05-09-2023,People - Ageing Well,Fari Care Ltd,Supported Other Accommodation - Private Contractors Payment,756.00,0.00,COMMERCIAL SUPPLIER 
 05-09-2023,People - Ageing Well,Fari Care Ltd,Supported Other Accommodation - Private Contractors Payment,1596.00,0.00,COMMERCIAL SUPPLIER 
 05-09-2023,People - Ageing Well,Fari Care Ltd,Supported Other Accommodation - Private Contractors Payment,756.00,0.00,COMMERCIAL SUPPLIER 
 05-09-2023,People - Ageing Well,Fari Care Ltd,Supported Other Accommodation - Private Contractors Payment,1596.00,0.00,COMMERCIAL SUPPLIER 
 05-09-2023,People - Ageing Well,Fari Care Ltd,Supported Other Accommodation - Private Contractors Payment,756.00,0.00,COMMERCIAL SUPPLIER 
 05-09-2023,People - Ageing Well,Fari Care Ltd,Supported Other Accommodation - Private Contractors Payment,1596.00,0.00,COMMERCIAL SUPPLIER 
 05-09-2023,People - Ageing Well,Fari Care Ltd,Supported Other Accommodation - Private Contractors Payment,783.00,0.00,COMMERCIAL SUPPLIER 
 05-09-2023,People - Ageing Well,Fari Care Ltd,Supported Other Accommodation - Private Contractors Payment,756.00,0.00,COMMERCIAL SUPPLIER 
 05-09-2023,People - Ageing Well,Fari Care Ltd,Supported Other Accommodation - Private Contractors Payment,1596.00,0.00,COMMERCIAL SUPPLIER 
 05-09-2023,People - Ageing Well,Fari Care Ltd,Supported Other Accommodation - Private Contractors Payment,1653.00,0.00,COMMERCIAL SUPPLIER 
 05-09-2023,People - Ageing Well,Fari Care Ltd,Supported Other Accommodation - Private Contractors Payment,756.00,0.00,COMMERCIAL SUPPLIER 
 06-09-2023,People - Ageing Well,Gordon Care Services Limited,Home Care - Private Contractors Payment,3232.36,0.00,NON COMMERCIAL SUPPLIER 
 06-09-2023,People - Ageing Well,Cakeybakeydoodaa Ltd,Daycare - Private Contractors Payment,624.00,0.00,COMMERCIAL SUPPLIER 
 06-09-2023,People - Ageing Well,Matrix SCM Ltd,Agency Staff,1025.73,0.00,COMMERCIAL SUPPLIER 
 06-09-2023,People - Ageing Well,Matrix SCM Ltd,Agency Staff,1669.48,0.00,COMMERCIAL SUPPLIER 
 06-09-2023,People - Ageing Well,Matrix SCM Ltd,Agency Staff,1669.48,0.00,COMMERCIAL SUPPLIER 
 06-09-2023,People - Ageing Well,Matrix SCM Ltd,Agency Staff,1017.47,0.00,COMMERCIAL SUPPLIER 
 06-09-2023,People - Ageing Well,Matrix SCM Ltd,Agency Staff,1669.48,0.00,COMMERCIAL SUPPLIER 
 06-09-2023,People - Ageing Well,Matrix SCM Ltd,Agency Staff,1241.28,0.00,COMMERCIAL SUPPLIER 
 06-09-2023,People - Ageing Well,Matrix SCM Ltd,Agency Staff,1349.28,0.00,COMMERCIAL SUPPLIER 
 06-09-2023,People - Ageing Well,Matrix SCM Ltd,Agency Staff,966.00,0.00,COMMERCIAL SUPPLIER 
 06-09-2023,People - Ageing Well,Matrix SCM Ltd,Agency Staff,1157.12,0.00,COMMERCIAL SUPPLIER 
 06-09-2023,People - Ageing Well,Matrix SCM Ltd,Agency Staff,504.92,0.00,COMMERCIAL SUPPLIER 
 06-09-2023,People - Ageing Well,Matrix SCM Ltd,Agency Staff,999.92,0.00,COMMERCIAL SUPPLIER 
 06-09-2023,People - Ageing Well,Matrix SCM Ltd,Agency Staff,922.34,0.00,COMMERCIAL SUPPLIER 
 06-09-2023,People - Ageing Well,Matrix SCM Ltd,Agency Staff,1114.63,0.00,COMMERCIAL SUPPLIER 
 06-09-2023,People - Ageing Well,Matrix SCM Ltd,Agency Staff,991.30,0.00,COMMERCIAL SUPPLIER 
 06-09-2023,People - Ageing Well,Matrix SCM Ltd,Agency Staff,1020.05,0.00,COMMERCIAL SUPPLIER 
 06-09-2023,People - Ageing Well,Matrix SCM Ltd,Agency Staff,516.78,0.00,COMMERCIAL SUPPLIER 
 06-09-2023,People - Ageing Well,Matrix SCM Ltd,Agency Staff,559.70,0.00,COMMERCIAL SUPPLIER 
 06-09-2023,People - Ageing Well,Matrix SCM Ltd,Agency Staff,1024.65,0.00,COMMERCIAL SUPPLIER 
 06-09-2023,People - Ageing Well,Matrix SCM Ltd,Agency Staff,1038.20,0.00,COMMERCIAL SUPPLIER 
 06-09-2023,People - Ageing Well,Matrix SCM Ltd,Agency Staff,999.92,0.00,COMMERCIAL SUPPLIER 
 06-09-2023,People - Ageing Well,Matrix SCM Ltd,Agency Staff,1029.25,0.00,COMMERCIAL SUPPLIER 
 06-09-2023,People - Ageing Well,Matrix SCM Ltd,Agency Staff,1062.91,0.00,COMMERCIAL SUPPLIER 
 06-09-2023,People - Ageing Well,Matrix SCM Ltd,Agency Staff,746.48,0.00,COMMERCIAL SUPPLIER 
 06-09-2023,People - Ageing Well,Matrix SCM Ltd,Agency Staff,615.16,0.00,COMMERCIAL SUPPLIER 
 06-09-2023,People - Ageing Well,Matrix SCM Ltd,Agency Staff,1018.62,0.00,COMMERCIAL SUPPLIER 
 06-09-2023,People - Ageing Well,Matrix SCM Ltd,Agency Staff,1009.80,0.00,COMMERCIAL SUPPLIER 
 06-09-2023,People - Ageing Well,Matrix SCM Ltd,Agency Staff,1115.92,0.00,COMMERCIAL SUPPLIER 
 06-09-2023,People - Ageing Well,Matrix SCM Ltd,Agency Staff,999.92,0.00,COMMERCIAL SUPPLIER 
 06-09-2023,People - Ageing Well,Matrix SCM Ltd,Agency Staff,1323.36,0.00,COMMERCIAL SUPPLIER 
 06-09-2023,People - Ageing Well,Matrix SCM Ltd,Agency Staff,991.30,0.00,COMMERCIAL SUPPLIER 
 06-09-2023,People - Ageing Well,Matrix SCM Ltd,Agency Staff,1034.40,0.00,COMMERCIAL SUPPLIER 
 06-09-2023,People - Ageing Well,Matrix SCM Ltd,Agency Staff,607.20,0.00,COMMERCIAL SUPPLIER 
 06-09-2023,People - Ageing Well,Ronti Care Solutions,Home Care - Private Contractors Payment,1573.00,0.00,LOCAL AUTHORITY SERVICES 
 06-09-2023,People - Ageing Well,Ronti Care Solutions,Home Care - Private Contractors Payment,2904.00,0.00,LOCAL AUTHORITY SERVICES 
 07-09-2023,People - Ageing Well,ECL Person Centred Care,Daycare - Private Contractors Payment,6480.00,0.00,COMMERCIAL SUPPLIER 
 07-09-2023,People - Ageing Well,ECL Person Centred Care,Daycare - Private Contractors Payment,4403.00,0.00,COMMERCIAL SUPPLIER 
 07-09-2023,People - Ageing Well,L & Q Living (SWIFT Payments),Private Contractors Payment - Other,14521.66,0.00,COMMERCIAL SUPPLIER 
 07-09-2023,People - Ageing Well,L & Q Living (SWIFT Payments),Private Contractors Payment - Other,3637.83,0.00,COMMERCIAL SUPPLIER 
 07-09-2023,People - Ageing Well,Millbrook Healthcare Group ,Purchase - Equipment Furniture And Materials,7339.82,0.00,COMMERCIAL SUPPLIER 
 07-09-2023,People - Ageing Well,Pristine Care London Ltd ,Home Care - Private Contractors Payment,1815.00,0.00,COMMERCIAL SUPPLIER 
 08-09-2023,People - Ageing Well,Spring Consult UK Ltd,Home Care - Private Contractors Payment,1440.00,0.00,COMMERCIAL SUPPLIER 
 08-09-2023,People - Ageing Well,Spring Consult UK Ltd,Home Care - Private Contractors Payment,14681.25,0.00,COMMERCIAL SUPPLIER 
 08-09-2023,People - Ageing Well,Spring Consult UK Ltd,Home Care - Private Contractors Payment,13365.00,0.00,COMMERCIAL SUPPLIER 
 08-09-2023,People - Ageing Well,Headway East London,Daycare - Private Contractors Payment,826.00,0.00,COMMERCIAL SUPPLIER 
 08-09-2023,People - Ageing Well,Headway East London,Daycare - Private Contractors Payment,735.00,0.00,COMMERCIAL SUPPLIER 
 10-09-2023,People - Ageing Well,Vibrance Outreach,Daycare - Private Contractors Payment,2304.00,0.00,COMMERCIAL SUPPLIER 
 10-09-2023,People - Ageing Well,Vibrance Outreach,Daycare - Private Contractors Payment,3840.00,0.00,COMMERCIAL SUPPLIER 
 10-09-2023,People - Ageing Well,Vibrance Outreach,Home Care - Private Contractors Payment,8379.04,0.00,COMMERCIAL SUPPLIER 
 10-09-2023,People - Ageing Well,Bloomscare Ltd,Home Care - Private Contractors Payment,1528.83,0.00,COMMERCIAL SUPPLIER 
 10-09-2023,People - Ageing Well,Bloomscare Ltd,Home Care - Private Contractors Payment,1528.83,0.00,COMMERCIAL SUPPLIER 
 10-09-2023,People - Ageing Well,Havering Women's Aid,Payments To Voluntary Sector,21904.17,0.00,NON COMMERCIAL SUPPLIER 
 10-09-2023,People - Ageing Well,Westminster Homecare Ltd_a,Home Care - Private Contractors Payment,962.08,0.00,COMMERCIAL SUPPLIER 
 10-09-2023,People - Ageing Well,Westminster Homecare Ltd_a,Home Care - Private Contractors Payment,1082.20,0.00,COMMERCIAL SUPPLIER 
 10-09-2023,People - Ageing Well,Westminster Homecare Ltd_a,Home Care - Private Contractors Payment,1082.57,0.00,COMMERCIAL SUPPLIER 
 10-09-2023,People - Ageing Well,Westminster Homecare Ltd_a,Home Care - Private Contractors Payment,552.93,0.00,COMMERCIAL SUPPLIER 
 10-09-2023,People - Ageing Well,Westminster Homecare Ltd_a,Home Care - Private Contractors Payment,552.93,0.00,COMMERCIAL SUPPLIER 
 10-09-2023,People - Ageing Well,Westminster Homecare Ltd_a,Home Care - Private Contractors Payment,1254.02,0.00,COMMERCIAL SUPPLIER 
 10-09-2023,People - Ageing Well,Westminster Homecare Ltd_a,Home Care - Private Contractors Payment,929.68,0.00,COMMERCIAL SUPPLIER 
 10-09-2023,People - Ageing Well,Westminster Homecare Ltd_a,Home Care - Private Contractors Payment,1317.72,0.00,COMMERCIAL SUPPLIER 
 10-09-2023,People - Ageing Well,Westminster Homecare Ltd_a,Home Care - Private Contractors Payment,1628.93,0.00,COMMERCIAL SUPPLIER 
 10-09-2023,People - Ageing Well,Westminster Homecare Ltd_a,Home Care - Private Contractors Payment,670.88,0.00,COMMERCIAL SUPPLIER 
 10-09-2023,People - Ageing Well,Westminster Homecare Ltd_a,Home Care - Private Contractors Payment,960.99,0.00,COMMERCIAL SUPPLIER 
 10-09-2023,People - Ageing Well,Westminster Homecare Ltd_a,Home Care - Private Contractors Payment,1304.99,0.00,COMMERCIAL SUPPLIER 
 10-09-2023,People - Ageing Well,Westminster Homecare Ltd_a,Home Care - Private Contractors Payment,839.04,0.00,COMMERCIAL SUPPLIER 
 10-09-2023,People - Ageing Well,Westminster Homecare Ltd_a,Home Care - Private Contractors Payment,837.95,0.00,COMMERCIAL SUPPLIER 
 10-09-2023,People - Ageing Well,Westminster Homecare Ltd_a,Home Care - Private Contractors Payment,630.11,0.00,COMMERCIAL SUPPLIER 
 11-09-2023,People - Ageing Well,Independent People Homecare Services,Home Care - Private Contractors Payment,5169.88,0.00,NON COMMERCIAL SUPPLIER 
 11-09-2023,People - Ageing Well,Eastway Care Ltd_a,Daycare - Private Contractors Payment,3480.00,0.00,COMMERCIAL SUPPLIER 
 11-09-2023,People - Ageing Well,Eastway Care Ltd_a,Daycare - Private Contractors Payment,2784.00,0.00,COMMERCIAL SUPPLIER 
 11-09-2023,People - Ageing Well,Eastway Care Ltd_a,Daycare - Private Contractors Payment,2088.00,0.00,COMMERCIAL SUPPLIER 
 11-09-2023,People - Ageing Well,Eastway Care Ltd_a,Daycare - Private Contractors Payment,3480.00,0.00,COMMERCIAL SUPPLIER 
 11-09-2023,People - Ageing Well,Eastway Care Ltd_a,Daycare - Private Contractors Payment,696.00,0.00,COMMERCIAL SUPPLIER 
 11-09-2023,People - Ageing Well,Eastway Care Ltd_a,Daycare - Private Contractors Payment,2088.00,0.00,COMMERCIAL SUPPLIER 
 11-09-2023,People - Ageing Well,Eastway Care Ltd_a,Daycare - Private Contractors Payment,2565.00,0.00,COMMERCIAL SUPPLIER 
 11-09-2023,People - Ageing Well,Eastway Care Ltd_a,Daycare - Private Contractors Payment,3480.00,0.00,COMMERCIAL SUPPLIER 
 11-09-2023,People - Ageing Well,Eastway Care Ltd_a,Daycare - Private Contractors Payment,1116.00,0.00,COMMERCIAL SUPPLIER 
 11-09-2023,People - Ageing Well,Eastway Care Ltd_a,Daycare - Private Contractors Payment,3480.00,0.00,COMMERCIAL SUPPLIER 
 11-09-2023,People - Ageing Well,Eastway Care Ltd_a,Daycare - Private Contractors Payment,2784.00,0.00,COMMERCIAL SUPPLIER 
 11-09-2023,People - Ageing Well,Eastway Care Ltd_a,Daycare - Private Contractors Payment,3480.00,0.00,COMMERCIAL SUPPLIER 
 11-09-2023,People - Ageing Well,Eastway Care Ltd_a,Daycare - Private Contractors Payment,696.00,0.00,COMMERCIAL SUPPLIER 
 11-09-2023,People - Ageing Well,Eastway Care Ltd_a,Daycare - Private Contractors Payment,2088.00,0.00,COMMERCIAL SUPPLIER 
 11-09-2023,People - Ageing Well,Eastway Care Ltd_a,Daycare - Private Contractors Payment,3480.00,0.00,COMMERCIAL SUPPLIER 
 11-09-2023,People - Ageing Well,Independant Community Support Ltd T/A Heaton Lodge,Home Care - Private Contractors Payment,17457.13,0.00,COMMERCIAL SUPPLIER 
 11-09-2023,People - Ageing Well,Bluebird Care Havering,Home Care - Private Contractors Payment,2670.50,0.00,COMMERCIAL SUPPLIER 
 11-09-2023,People - Ageing Well,Bluebird Care Havering,Home Care - Private Contractors Payment,2670.50,0.00,COMMERCIAL SUPPLIER 
 11-09-2023,People - Ageing Well,Bluebird Care Havering,Home Care - Private Contractors Payment,1453.20,0.00,COMMERCIAL SUPPLIER 
 11-09-2023,People - Ageing Well,Bluebird Care Havering,Home Care - Private Contractors Payment,890.10,0.00,COMMERCIAL SUPPLIER 
 11-09-2023,People - Ageing Well,Radfield Home Care Havering & Brentwood,Home Care - Private Contractors Payment,1261.00,0.00,COMMERCIAL SUPPLIER 
 11-09-2023,People - Ageing Well,Radfield Home Care Havering & Brentwood,Home Care - Private Contractors Payment,737.25,0.00,COMMERCIAL SUPPLIER 
 11-09-2023,People - Ageing Well,Radfield Home Care Havering & Brentwood,Home Care - Private Contractors Payment,502.33,0.00,COMMERCIAL SUPPLIER 
 11-09-2023,People - Ageing Well,All Therapy Solutions Ltd,Occupational Health,2940.00,0.00,COMMERCIAL SUPPLIER 
 11-09-2023,People - Ageing Well,Tapestry_a.,Daycare - Private Contractors Payment,732.00,0.00,COMMERCIAL SUPPLIER 
 11-09-2023,People - Ageing Well,Tapestry_a.,Daycare - Private Contractors Payment,976.00,0.00,COMMERCIAL SUPPLIER 
 11-09-2023,People - Ageing Well,Tapestry_a.,Daycare - Private Contractors Payment,1220.00,0.00,COMMERCIAL SUPPLIER 
 11-09-2023,People - Ageing Well,Tapestry_a.,Daycare - Private Contractors Payment,976.00,0.00,COMMERCIAL SUPPLIER 
 11-09-2023,People - Ageing Well,Tapestry_a.,Daycare - Private Contractors Payment,976.00,0.00,COMMERCIAL SUPPLIER 
 11-09-2023,People - Ageing Well,Tapestry_a.,Daycare - Private Contractors Payment,732.00,0.00,COMMERCIAL SUPPLIER 
 11-09-2023,People - Ageing Well,Tapestry_a.,Daycare - Private Contractors Payment,1220.00,0.00,COMMERCIAL SUPPLIER 
 11-09-2023,People - Ageing Well,Tapestry_a.,Daycare - Private Contractors Payment,1220.00,0.00,COMMERCIAL SUPPLIER 
 11-09-2023,People - Ageing Well,Tapestry_a.,Daycare - Private Contractors Payment,732.00,0.00,COMMERCIAL SUPPLIER 
 11-09-2023,People - Ageing Well,Tapestry_a.,Daycare - Private Contractors Payment,732.00,0.00,COMMERCIAL SUPPLIER 
 11-09-2023,People - Ageing Well,Tapestry_a.,Daycare - Private Contractors Payment,732.00,0.00,COMMERCIAL SUPPLIER 
 11-09-2023,People - Ageing Well,Tapestry_a.,Daycare - Private Contractors Payment,549.00,0.00,COMMERCIAL SUPPLIER 
 11-09-2023,People - Ageing Well,Tapestry_a.,Daycare - Private Contractors Payment,671.00,0.00,COMMERCIAL SUPPLIER 
 11-09-2023,People - Ageing Well,Tapestry_a.,Daycare - Private Contractors Payment,732.00,0.00,COMMERCIAL SUPPLIER 
 11-09-2023,People - Ageing Well,Tapestry_a.,Daycare - Private Contractors Payment,915.00,0.00,COMMERCIAL SUPPLIER 
 11-09-2023,People - Ageing Well,Tapestry_a.,Daycare - Private Contractors Payment,976.00,0.00,COMMERCIAL SUPPLIER 
 11-09-2023,People - Ageing Well,Tapestry_a.,Daycare - Private Contractors Payment,732.00,0.00,COMMERCIAL SUPPLIER 
 11-09-2023,People - Ageing Well,Tapestry_a.,Daycare - Private Contractors Payment,732.00,0.00,COMMERCIAL SUPPLIER 
 11-09-2023,People - Ageing Well,Tapestry_a.,Daycare - Private Contractors Payment,671.00,0.00,COMMERCIAL SUPPLIER 
 11-09-2023,People - Ageing Well,Tapestry_a.,Daycare - Private Contractors Payment,732.00,0.00,COMMERCIAL SUPPLIER 
 11-09-2023,People - Ageing Well,Tapestry_a.,Daycare - Private Contractors Payment,732.00,0.00,COMMERCIAL SUPPLIER 
 11-09-2023,People - Ageing Well,Tapestry_a.,Daycare - Private Contractors Payment,610.00,0.00,COMMERCIAL SUPPLIER 
 11-09-2023,People - Ageing Well,Tapestry_a.,Daycare - Private Contractors Payment,976.00,0.00,COMMERCIAL SUPPLIER 
 11-09-2023,People - Ageing Well,The Learning Centre (TLC Romford) Ltd,Daycare - Private Contractors Payment,648.00,0.00,COMMERCIAL SUPPLIER 
 11-09-2023,People - Ageing Well,The Learning Centre (TLC Romford) Ltd,Daycare - Private Contractors Payment,972.00,0.00,COMMERCIAL SUPPLIER 
 11-09-2023,People - Ageing Well,Personal Information - Redacted,Home Care - Private Contractors Payment,1070.18,0.00,INDIVIDUALS 
 11-09-2023,People - Ageing Well,Personal Information - Redacted,Home Care - Private Contractors Payment,917.88,0.00,INDIVIDUALS 
 11-09-2023,People - Ageing Well,Personal Information - Redacted,Home Care - Private Contractors Payment,1223.08,0.00,INDIVIDUALS 
 11-09-2023,People - Ageing Well,Personal Information - Redacted,Home Care - Private Contractors Payment,2009.32,0.00,INDIVIDUALS 
 11-09-2023,People - Ageing Well,Personal Information - Redacted,Home Care - Private Contractors Payment,611.53,0.00,INDIVIDUALS 
 11-09-2023,People - Ageing Well,Personal Information - Redacted,Home Care - Private Contractors Payment,611.53,0.00,INDIVIDUALS 
 11-09-2023,People - Ageing Well,Personal Information - Redacted,Home Care - Private Contractors Payment,1223.05,0.00,INDIVIDUALS 
 11-09-2023,People - Ageing Well,Personal Information - Redacted,Home Care - Private Contractors Payment,1528.84,0.00,INDIVIDUALS 
 11-09-2023,People - Ageing Well,Personal Information - Redacted,Home Care - Private Contractors Payment,6102.16,0.00,INDIVIDUALS 
 11-09-2023,People - Ageing Well,Personal Information - Redacted,Home Care - Private Contractors Payment,611.54,0.00,INDIVIDUALS 
 11-09-2023,People - Ageing Well,Personal Information - Redacted,Home Care - Private Contractors Payment,917.31,0.00,INDIVIDUALS 
 11-09-2023,People - Ageing Well,Personal Information - Redacted,Home Care - Private Contractors Payment,611.54,0.00,INDIVIDUALS 
 11-09-2023,People - Ageing Well,Personal Information - Redacted,Home Care - Private Contractors Payment,1223.08,0.00,INDIVIDUALS 
 11-09-2023,People - Ageing Well,Personal Information - Redacted,Home Care - Private Contractors Payment,1987.48,0.00,INDIVIDUALS 
 11-09-2023,People - Ageing Well,Personal Information - Redacted,Home Care - Private Contractors Payment,2162.21,0.00,INDIVIDUALS 
 11-09-2023,People - Ageing Well,Personal Information - Redacted,Home Care - Private Contractors Payment,1223.08,0.00,INDIVIDUALS 
 11-09-2023,People - Ageing Well,Personal Information - Redacted,Home Care - Private Contractors Payment,917.31,0.00,INDIVIDUALS 
 11-09-2023,People - Ageing Well,Personal Information - Redacted,Home Care - Private Contractors Payment,524.17,0.00,INDIVIDUALS 
 11-09-2023,People - Ageing Well,Personal Information - Redacted,Home Care - Private Contractors Payment,1550.69,0.00,INDIVIDUALS 
 11-09-2023,People - Ageing Well,Personal Information - Redacted,Home Care - Private Contractors Payment,5256.92,0.00,INDIVIDUALS 
 11-09-2023,People - Ageing Well,Personal Information - Redacted,Home Care - Private Contractors Payment,3414.60,0.00,INDIVIDUALS 
 11-09-2023,People - Ageing Well,Personal Information - Redacted,Home Care - Private Contractors Payment,9172.81,0.00,INDIVIDUALS 
 11-09-2023,People - Ageing Well,Personal Information - Redacted,Home Care - Private Contractors Payment,524.16,0.00,INDIVIDUALS 
 11-09-2023,People - Ageing Well,Personal Information - Redacted,Home Care - Private Contractors Payment,7338.25,0.00,INDIVIDUALS 
 11-09-2023,People - Ageing Well,Personal Information - Redacted,Home Care - Private Contractors Payment,1004.68,0.00,INDIVIDUALS 
 11-09-2023,People - Ageing Well,Personal Information - Redacted,Home Care - Private Contractors Payment,1747.24,0.00,INDIVIDUALS 
 11-09-2023,People - Ageing Well,Personal Information - Redacted,Home Care - Private Contractors Payment,687.99,0.00,INDIVIDUALS 
 11-09-2023,People - Ageing Well,Personal Information - Redacted,Home Care - Private Contractors Payment,1397.81,0.00,INDIVIDUALS 
 11-09-2023,People - Ageing Well,Personal Information - Redacted,Home Care - Private Contractors Payment,1528.84,0.00,INDIVIDUALS 
 11-09-2023,People - Ageing Well,Personal Information - Redacted,Home Care - Private Contractors Payment,834.40,0.00,INDIVIDUALS 
 11-09-2023,People - Ageing Well,Personal Information - Redacted,Home Care - Private Contractors Payment,1375.96,0.00,INDIVIDUALS 
 11-09-2023,People - Ageing Well,London Homecare Ltd,Home Care - Private Contractors Payment,1375.96,0.00,COMMERCIAL SUPPLIER 
 11-09-2023,People - Ageing Well,London Homecare Ltd,Home Care - Private Contractors Payment,1375.96,0.00,COMMERCIAL SUPPLIER 
 11-09-2023,People - Ageing Well,London Homecare Ltd,Home Care - Private Contractors Payment,764.42,0.00,COMMERCIAL SUPPLIER 
 11-09-2023,People - Ageing Well,London Homecare Ltd,Home Care - Private Contractors Payment,1223.07,0.00,COMMERCIAL SUPPLIER 
 11-09-2023,People - Ageing Well,London Homecare Ltd,Home Care - Private Contractors Payment,1550.69,0.00,COMMERCIAL SUPPLIER 
 11-09-2023,People - Ageing Well,London Homecare Ltd,Home Care - Private Contractors Payment,611.54,0.00,COMMERCIAL SUPPLIER 
 11-09-2023,People - Ageing Well,London Homecare Ltd,Home Care - Private Contractors Payment,655.21,0.00,COMMERCIAL SUPPLIER 
 11-09-2023,People - Ageing Well,London Homecare Ltd,Home Care - Private Contractors Payment,1419.63,0.00,COMMERCIAL SUPPLIER 
 11-09-2023,People - Ageing Well,London Homecare Ltd,Home Care - Private Contractors Payment,764.42,0.00,COMMERCIAL SUPPLIER 
 11-09-2023,People - Ageing Well,London Homecare Ltd,Home Care - Private Contractors Payment,1223.08,0.00,COMMERCIAL SUPPLIER 
 11-09-2023,People - Ageing Well,London Homecare Ltd,Home Care - Private Contractors Payment,1223.08,0.00,COMMERCIAL SUPPLIER 
 11-09-2023,People - Ageing Well,London Homecare Ltd,Home Care - Private Contractors Payment,2533.45,0.00,COMMERCIAL SUPPLIER 
 11-09-2023,People - Ageing Well,London Homecare Ltd,Home Care - Private Contractors Payment,1375.95,0.00,COMMERCIAL SUPPLIER 
 11-09-2023,People - Ageing Well,London Homecare Ltd,Home Care - Private Contractors Payment,611.54,0.00,COMMERCIAL SUPPLIER 
 11-09-2023,People - Ageing Well,London Homecare Ltd,Home Care - Private Contractors Payment,1375.96,0.00,COMMERCIAL SUPPLIER 
 11-09-2023,People - Ageing Well,London Homecare Ltd,Home Care - Private Contractors Payment,1223.08,0.00,COMMERCIAL SUPPLIER 
 11-09-2023,People - Ageing Well,London Homecare Ltd,Home Care - Private Contractors Payment,709.82,0.00,COMMERCIAL SUPPLIER 
 11-09-2023,People - Ageing Well,London Homecare Ltd,Home Care - Private Contractors Payment,709.82,0.00,COMMERCIAL SUPPLIER 
 11-09-2023,People - Ageing Well,London Homecare Ltd,Home Care - Private Contractors Payment,819.02,0.00,COMMERCIAL SUPPLIER 
 11-09-2023,People - Ageing Well,London Homecare Ltd,Home Care - Private Contractors Payment,819.02,0.00,COMMERCIAL SUPPLIER 
 11-09-2023,People - Ageing Well,Eveshel Care Ltd,Home Care - Private Contractors Payment,573.32,0.00,COMMERCIAL SUPPLIER 
 11-09-2023,People - Ageing Well,Eveshel Care Ltd,Home Care - Private Contractors Payment,540.56,0.00,COMMERCIAL SUPPLIER 
 11-09-2023,People - Ageing Well,Eveshel Care Ltd,Home Care - Private Contractors Payment,540.56,0.00,COMMERCIAL SUPPLIER 
 11-09-2023,People - Ageing Well,Eveshel Care Ltd,Home Care - Private Contractors Payment,573.32,0.00,COMMERCIAL SUPPLIER 
 11-09-2023,People - Ageing Well,Premier Carewaiting Ltd,Home Care - Private Contractors Payment,611.54,0.00,COMMERCIAL SUPPLIER 
 11-09-2023,People - Ageing Well,Premier Carewaiting Ltd,Home Care - Private Contractors Payment,1572.52,0.00,COMMERCIAL SUPPLIER 
 11-09-2023,People - Ageing Well,Premier Carewaiting Ltd,Home Care - Private Contractors Payment,611.54,0.00,COMMERCIAL SUPPLIER 
 11-09-2023,People - Ageing Well,Premier Carewaiting Ltd,Home Care - Private Contractors Payment,1223.08,0.00,COMMERCIAL SUPPLIER 
 11-09-2023,People - Ageing Well,Premier Carewaiting Ltd,Home Care - Private Contractors Payment,611.54,0.00,COMMERCIAL SUPPLIER 
 11-09-2023,People - Ageing Well,Premier Carewaiting Ltd,Home Care - Private Contractors Payment,611.54,0.00,COMMERCIAL SUPPLIER 
 11-09-2023,People - Ageing Well,Premier Carewaiting Ltd,Home Care - Private Contractors Payment,2096.69,0.00,COMMERCIAL SUPPLIER 
 11-09-2023,People - Ageing Well,Premier Carewaiting Ltd,Home Care - Private Contractors Payment,1834.60,0.00,COMMERCIAL SUPPLIER 
 11-09-2023,People - Ageing Well,Premier Carewaiting Ltd,Home Care - Private Contractors Payment,1310.44,0.00,COMMERCIAL SUPPLIER 
 11-09-2023,People - Ageing Well,Premier Carewaiting Ltd,Home Care - Private Contractors Payment,1365.04,0.00,COMMERCIAL SUPPLIER 
 11-09-2023,People - Ageing Well,Ace Outreach Ltd,Home Care - Private Contractors Payment,1188.00,0.00,COMMERCIAL SUPPLIER 
 12-09-2023,People - Ageing Well,Haven Care Ltd.,Home Care - Private Contractors Payment,764.42,0.00,COMMERCIAL SUPPLIER 
 12-09-2023,People - Ageing Well,Haven Care Ltd.,Home Care - Private Contractors Payment,786.26,0.00,COMMERCIAL SUPPLIER 
 12-09-2023,People - Ageing Well,Tealk Services Ltd,Respite Care - Private Contractors Payment,785.71,0.00,COMMERCIAL SUPPLIER 
 12-09-2023,People - Ageing Well,Skyguard Ltd T/A Peoplesafe,Health And Safety Works,6249.60,0.00,COMMERCIAL SUPPLIER 
 12-09-2023,People - Ageing Well,Skyguard Ltd T/A Peoplesafe,Health And Safety Works,558.00,0.00,COMMERCIAL SUPPLIER 
 12-09-2023,People - Ageing Well,Skyguard Ltd T/A Peoplesafe,Health And Safety Works,668.00,0.00,COMMERCIAL SUPPLIER 
 12-09-2023,People - Ageing Well,Fountain Based Ltd,Home Care - Private Contractors Payment,1878.25,0.00,COMMERCIAL SUPPLIER 
 12-09-2023,People - Ageing Well,Pleasant Home Healthcare Ltd,Home Care - Private Contractors Payment,1987.48,0.00,COMMERCIAL SUPPLIER 
 13-09-2023,People - Ageing Well,Havering Healthwatch C.I.C,Payment To Health Authorities,29339.75,0.00,COMMERCIAL SUPPLIER 
 13-09-2023,People - Ageing Well,Anglian Water Business,Water And Sewerage,1634.90,0.00,COMMERCIAL SUPPLIER 
 13-09-2023,People - Ageing Well,Potton Services Ltd,Home Care - Private Contractors Payment,1075.64,0.00,COMMERCIAL SUPPLIER 
 13-09-2023,People - Ageing Well,Potton Services Ltd,Home Care - Private Contractors Payment,563.75,0.00,COMMERCIAL SUPPLIER 
 13-09-2023,People - Ageing Well,Matrix SCM Ltd,Agency Staff,960.74,0.00,COMMERCIAL SUPPLIER 
 13-09-2023,People - Ageing Well,Matrix SCM Ltd,Agency Staff,974.40,0.00,COMMERCIAL SUPPLIER 
 13-09-2023,People - Ageing Well,Matrix SCM Ltd,Agency Staff,1209.60,0.00,COMMERCIAL SUPPLIER 
 13-09-2023,People - Ageing Well,Matrix SCM Ltd,Agency Staff,1213.57,0.00,COMMERCIAL SUPPLIER 
 13-09-2023,People - Ageing Well,Matrix SCM Ltd,Agency Staff,607.20,0.00,COMMERCIAL SUPPLIER 
 13-09-2023,People - Ageing Well,Matrix SCM Ltd,Agency Staff,741.32,0.00,COMMERCIAL SUPPLIER 
 13-09-2023,People - Ageing Well,Matrix SCM Ltd,Agency Staff,1045.44,0.00,COMMERCIAL SUPPLIER 
 13-09-2023,People - Ageing Well,Matrix SCM Ltd,Agency Staff,1241.28,0.00,COMMERCIAL SUPPLIER 
 13-09-2023,People - Ageing Well,Matrix SCM Ltd,Agency Staff,1115.92,0.00,COMMERCIAL SUPPLIER 
 13-09-2023,People - Ageing Well,Matrix SCM Ltd,Agency Staff,1066.04,0.00,COMMERCIAL SUPPLIER 
 13-09-2023,People - Ageing Well,Matrix SCM Ltd,Agency Staff,1241.28,0.00,COMMERCIAL SUPPLIER 
 13-09-2023,People - Ageing Well,Matrix SCM Ltd,Agency Staff,619.55,0.00,COMMERCIAL SUPPLIER 
 13-09-2023,People - Ageing Well,Matrix SCM Ltd,Agency Staff,1241.28,0.00,COMMERCIAL SUPPLIER 
 13-09-2023,People - Ageing Well,Matrix SCM Ltd,Agency Staff,966.00,0.00,COMMERCIAL SUPPLIER 
 13-09-2023,People - Ageing Well,Matrix SCM Ltd,Agency Staff,1273.31,0.00,COMMERCIAL SUPPLIER 
 13-09-2023,People - Ageing Well,Matrix SCM Ltd,Agency Staff,834.74,0.00,COMMERCIAL SUPPLIER 
 13-09-2023,People - Ageing Well,Matrix SCM Ltd,Agency Staff,1274.05,0.00,COMMERCIAL SUPPLIER 
 13-09-2023,People - Ageing Well,Matrix SCM Ltd,Agency Staff,504.90,0.00,COMMERCIAL SUPPLIER 
 13-09-2023,People - Ageing Well,Matrix SCM Ltd,Agency Staff,602.66,0.00,COMMERCIAL SUPPLIER 
 13-09-2023,People - Ageing Well,Matrix SCM Ltd,Agency Staff,1185.03,0.00,COMMERCIAL SUPPLIER 
 13-09-2023,People - Ageing Well,Matrix SCM Ltd,Agency Staff,774.90,0.00,COMMERCIAL SUPPLIER 
 13-09-2023,People - Ageing Well,Matrix SCM Ltd,Agency Staff,839.55,0.00,COMMERCIAL SUPPLIER 
 13-09-2023,People - Ageing Well,Matrix SCM Ltd,Agency Staff,790.93,0.00,COMMERCIAL SUPPLIER 
 13-09-2023,People - Ageing Well,Matrix SCM Ltd,Agency Staff,710.29,0.00,COMMERCIAL SUPPLIER 
 13-09-2023,People - Ageing Well,Matrix SCM Ltd,Agency Staff,1395.73,0.00,COMMERCIAL SUPPLIER 
 13-09-2023,People - Ageing Well,Matrix SCM Ltd,Agency Staff,1241.28,0.00,COMMERCIAL SUPPLIER 
 13-09-2023,People - Ageing Well,Matrix SCM Ltd,Agency Staff,1277.28,0.00,COMMERCIAL SUPPLIER 
 13-09-2023,People - Ageing Well,Matrix SCM Ltd,Agency Staff,941.92,0.00,COMMERCIAL SUPPLIER 
 13-09-2023,People - Ageing Well,Matrix SCM Ltd,Agency Staff,1241.28,0.00,COMMERCIAL SUPPLIER 
 13-09-2023,People - Ageing Well,Matrix SCM Ltd,Agency Staff,1169.28,0.00,COMMERCIAL SUPPLIER 
 13-09-2023,People - Ageing Well,Matrix SCM Ltd,Agency Staff,1169.28,0.00,COMMERCIAL SUPPLIER 
 13-09-2023,People - Ageing Well,Matrix SCM Ltd,Agency Staff,1241.28,0.00,COMMERCIAL SUPPLIER 
 13-09-2023,People - Ageing Well,Matrix SCM Ltd,Agency Staff,1169.28,0.00,COMMERCIAL SUPPLIER 
 13-09-2023,People - Ageing Well,Matrix SCM Ltd,Agency Staff,1241.28,0.00,COMMERCIAL SUPPLIER 
 13-09-2023,People - Ageing Well,Matrix SCM Ltd,Agency Staff,991.30,0.00,COMMERCIAL SUPPLIER 
 13-09-2023,People - Ageing Well,Matrix SCM Ltd,Agency Staff,1249.92,0.00,COMMERCIAL SUPPLIER 
 13-09-2023,People - Ageing Well,Matrix SCM Ltd,Agency Staff,790.91,0.00,COMMERCIAL SUPPLIER 
 13-09-2023,People - Ageing Well,Matrix SCM Ltd,Agency Staff,1253.54,0.00,COMMERCIAL SUPPLIER 
 13-09-2023,People - Ageing Well,Matrix SCM Ltd,Agency Staff,1275.49,0.00,COMMERCIAL SUPPLIER 
 13-09-2023,People - Ageing Well,Matrix SCM Ltd,Agency Staff,1686.60,0.00,COMMERCIAL SUPPLIER 
 13-09-2023,People - Ageing Well,Matrix SCM Ltd,Agency Staff,1436.42,0.00,COMMERCIAL SUPPLIER 
 13-09-2023,People - Ageing Well,Matrix SCM Ltd,Agency Staff,974.40,0.00,COMMERCIAL SUPPLIER 
 13-09-2023,People - Ageing Well,Matrix SCM Ltd,Agency Staff,1384.58,0.00,COMMERCIAL SUPPLIER 
 13-09-2023,People - Ageing Well,Matrix SCM Ltd,Agency Staff,1209.60,0.00,COMMERCIAL SUPPLIER 
 13-09-2023,People - Ageing Well,Matrix SCM Ltd,Agency Staff,1241.28,0.00,COMMERCIAL SUPPLIER 
 13-09-2023,People - Ageing Well,Real Mission Limited,Home Care - Private Contractors Payment,857.36,0.00,COMMERCIAL SUPPLIER 
 13-09-2023,People - Ageing Well,Ronti Care Solutions,Home Care - Private Contractors Payment,5060.00,0.00,LOCAL AUTHORITY SERVICES 
 14-09-2023,People - Ageing Well,Independant Community Support Ltd T/A Heaton Lodge,Home Care - Private Contractors Payment,6400.00,0.00,COMMERCIAL SUPPLIER 
 14-09-2023,People - Ageing Well,Independant Community Support Ltd T/A Heaton Lodge,Home Care - Private Contractors Payment,6400.00,0.00,COMMERCIAL SUPPLIER 
 14-09-2023,People - Ageing Well,IJB Healthcare Ltd,Home Care - Private Contractors Payment,917.30,0.00,COMMERCIAL SUPPLIER 
 14-09-2023,People - Ageing Well,IJB Healthcare Ltd,Home Care - Private Contractors Payment,764.42,0.00,COMMERCIAL SUPPLIER 
 14-09-2023,People - Ageing Well,IJB Healthcare Ltd,Home Care - Private Contractors Payment,1878.28,0.00,COMMERCIAL SUPPLIER 
 14-09-2023,People - Ageing Well,IJB Healthcare Ltd,Home Care - Private Contractors Payment,917.29,0.00,COMMERCIAL SUPPLIER 
 14-09-2023,People - Ageing Well,IJB Healthcare Ltd,Home Care - Private Contractors Payment,1146.62,0.00,COMMERCIAL SUPPLIER 
 14-09-2023,People - Ageing Well,IJB Healthcare Ltd,Home Care - Private Contractors Payment,1223.05,0.00,COMMERCIAL SUPPLIER 
 14-09-2023,People - Ageing Well,IJB Healthcare Ltd,Home Care - Private Contractors Payment,1223.08,0.00,COMMERCIAL SUPPLIER 
 14-09-2023,People - Ageing Well,Carers Trust East Midlands,Home Care - Private Contractors Payment,1310.41,0.00,COMMERCIAL SUPPLIER 
 14-09-2023,People - Ageing Well,Carers Trust East Midlands,Home Care - Private Contractors Payment,1004.64,0.00,COMMERCIAL SUPPLIER 
 14-09-2023,People - Ageing Well,Carers Trust East Midlands,Home Care - Private Contractors Payment,917.29,0.00,COMMERCIAL SUPPLIER 
 14-09-2023,People - Ageing Well,ECL Person Centred Care,Private Contractors Payment - Other,1952.27,0.00,COMMERCIAL SUPPLIER 
 14-09-2023,People - Ageing Well,Everycare Romford ,Home Care - Private Contractors Payment,2096.64,0.00,COMMERCIAL SUPPLIER 
 14-09-2023,People - Ageing Well,Everycare Romford ,Home Care - Private Contractors Payment,1834.56,0.00,COMMERCIAL SUPPLIER 
 14-09-2023,People - Ageing Well,Carers Centre SA Ltd ,Payments To Voluntary Sector,2775.17,0.00,COMMERCIAL SUPPLIER 
 14-09-2023,People - Ageing Well,Carers Centre SA Ltd ,Payments To Voluntary Sector,2775.17,0.00,COMMERCIAL SUPPLIER 
 14-09-2023,People - Ageing Well,Carers Centre SA Ltd ,Payments To Voluntary Sector,2775.17,0.00,COMMERCIAL SUPPLIER 
 14-09-2023,People - Ageing Well,Carers Centre SA Ltd ,Payments To Voluntary Sector,2775.17,0.00,COMMERCIAL SUPPLIER 
 14-09-2023,People - Ageing Well,Carers Centre SA Ltd ,Payments To Voluntary Sector,2775.17,0.00,COMMERCIAL SUPPLIER 
 14-09-2023,People - Ageing Well,Prepaid Financial Services Ltd,Bank Charges,5799.75,0.00,COMMERCIAL SUPPLIER 
 15-09-2023,People - Ageing Well,Care-Away Ltd T/A Care Support,Home Care - Private Contractors Payment,1017.87,0.00,COMMERCIAL SUPPLIER 
 15-09-2023,People - Ageing Well,Care-Away Ltd T/A Care Support,Home Care - Private Contractors Payment,3081.12,0.00,COMMERCIAL SUPPLIER 
 15-09-2023,People - Ageing Well,Care-Away Ltd T/A Care Support,Home Care - Private Contractors Payment,2017.40,0.00,COMMERCIAL SUPPLIER 
 15-09-2023,People - Ageing Well,Care-Away Ltd T/A Care Support,Home Care - Private Contractors Payment,1027.04,0.00,COMMERCIAL SUPPLIER 
 15-09-2023,People - Ageing Well,Care-Away Ltd T/A Care Support,Home Care - Private Contractors Payment,1027.04,0.00,COMMERCIAL SUPPLIER 
 15-09-2023,People - Ageing Well,Care-Away Ltd T/A Care Support,Home Care - Private Contractors Payment,770.28,0.00,COMMERCIAL SUPPLIER 
 15-09-2023,People - Ageing Well,Care-Away Ltd T/A Care Support,Home Care - Private Contractors Payment,1540.56,0.00,COMMERCIAL SUPPLIER 
 15-09-2023,People - Ageing Well,Care-Away Ltd T/A Care Support,Home Care - Private Contractors Payment,586.88,0.00,COMMERCIAL SUPPLIER 
 15-09-2023,People - Ageing Well,Care-Away Ltd T/A Care Support,Home Care - Private Contractors Payment,559.37,0.00,COMMERCIAL SUPPLIER 
 15-09-2023,People - Ageing Well,Care-Away Ltd T/A Care Support,Home Care - Private Contractors Payment,2824.36,0.00,COMMERCIAL SUPPLIER 
 15-09-2023,People - Ageing Well,Care-Away Ltd T/A Care Support,Home Care - Private Contractors Payment,2054.08,0.00,COMMERCIAL SUPPLIER 
 15-09-2023,People - Ageing Well,Care-Away Ltd T/A Care Support,Home Care - Private Contractors Payment,1155.42,0.00,COMMERCIAL SUPPLIER 
 15-09-2023,People - Ageing Well,Care-Away Ltd T/A Care Support,Home Care - Private Contractors Payment,1283.80,0.00,COMMERCIAL SUPPLIER 
 15-09-2023,People - Ageing Well,Care-Away Ltd T/A Care Support,Home Care - Private Contractors Payment,641.90,0.00,COMMERCIAL SUPPLIER 
 15-09-2023,People - Ageing Well,Care-Away Ltd T/A Care Support,Home Care - Private Contractors Payment,2310.84,0.00,COMMERCIAL SUPPLIER 
 15-09-2023,People - Ageing Well,Care-Away Ltd T/A Care Support,Home Care - Private Contractors Payment,513.52,0.00,COMMERCIAL SUPPLIER 
 15-09-2023,People - Ageing Well,Care-Away Ltd T/A Care Support,Home Care - Private Contractors Payment,2824.36,0.00,COMMERCIAL SUPPLIER 
 15-09-2023,People - Ageing Well,Care-Away Ltd T/A Care Support,Home Care - Private Contractors Payment,1027.04,0.00,COMMERCIAL SUPPLIER 
 15-09-2023,People - Ageing Well,Care-Away Ltd T/A Care Support,Home Care - Private Contractors Payment,586.88,0.00,COMMERCIAL SUPPLIER 
 15-09-2023,People - Ageing Well,Care-Away Ltd T/A Care Support,Home Care - Private Contractors Payment,513.52,0.00,COMMERCIAL SUPPLIER 
 15-09-2023,People - Ageing Well,Care-Away Ltd T/A Care Support,Home Care - Private Contractors Payment,1118.74,0.00,COMMERCIAL SUPPLIER 
 15-09-2023,People - Ageing Well,Care-Away Ltd T/A Care Support,Home Care - Private Contractors Payment,660.24,0.00,COMMERCIAL SUPPLIER 
 15-09-2023,People - Ageing Well,Care-Away Ltd T/A Care Support,Home Care - Private Contractors Payment,1027.04,0.00,COMMERCIAL SUPPLIER 
 15-09-2023,People - Ageing Well,Care-Away Ltd T/A Care Support,Home Care - Private Contractors Payment,1155.42,0.00,COMMERCIAL SUPPLIER 
 15-09-2023,People - Ageing Well,Care-Away Ltd T/A Care Support,Home Care - Private Contractors Payment,770.28,0.00,COMMERCIAL SUPPLIER 
 15-09-2023,People - Ageing Well,Care-Away Ltd T/A Care Support,Home Care - Private Contractors Payment,2567.60,0.00,COMMERCIAL SUPPLIER 
 15-09-2023,People - Ageing Well,Care-Away Ltd T/A Care Support,Home Care - Private Contractors Payment,770.28,0.00,COMMERCIAL SUPPLIER 
 15-09-2023,People - Ageing Well,Care-Away Ltd T/A Care Support,Home Care - Private Contractors Payment,1375.50,0.00,COMMERCIAL SUPPLIER 
 15-09-2023,People - Ageing Well,Care-Away Ltd T/A Care Support,Home Care - Private Contractors Payment,513.52,0.00,COMMERCIAL SUPPLIER 
 15-09-2023,People - Ageing Well,Care-Away Ltd T/A Care Support,Home Care - Private Contractors Payment,1375.50,0.00,COMMERCIAL SUPPLIER 
 15-09-2023,People - Ageing Well,Care-Away Ltd T/A Care Support,Home Care - Private Contractors Payment,1027.04,0.00,COMMERCIAL SUPPLIER 
 15-09-2023,People - Ageing Well,Care-Away Ltd T/A Care Support,Home Care - Private Contractors Payment,586.88,0.00,COMMERCIAL SUPPLIER 
 15-09-2023,People - Ageing Well,Care-Away Ltd T/A Care Support,Home Care - Private Contractors Payment,1063.72,0.00,COMMERCIAL SUPPLIER 
 15-09-2023,People - Ageing Well,Care-Away Ltd T/A Care Support,Home Care - Private Contractors Payment,1063.72,0.00,COMMERCIAL SUPPLIER 
 15-09-2023,People - Ageing Well,Care-Away Ltd T/A Care Support,Home Care - Private Contractors Payment,953.68,0.00,COMMERCIAL SUPPLIER 
 15-09-2023,People - Ageing Well,Care-Away Ltd T/A Care Support,Home Care - Private Contractors Payment,1027.04,0.00,COMMERCIAL SUPPLIER 
 15-09-2023,People - Ageing Well,Care-Away Ltd T/A Care Support,Home Care - Private Contractors Payment,2640.96,0.00,COMMERCIAL SUPPLIER 
 15-09-2023,People - Ageing Well,Care-Away Ltd T/A Care Support,Home Care - Private Contractors Payment,770.28,0.00,COMMERCIAL SUPPLIER 
 15-09-2023,People - Ageing Well,Care-Away Ltd T/A Care Support,Home Care - Private Contractors Payment,2054.08,0.00,COMMERCIAL SUPPLIER 
 15-09-2023,People - Ageing Well,Care-Away Ltd T/A Care Support,Home Care - Private Contractors Payment,641.90,0.00,COMMERCIAL SUPPLIER 
 15-09-2023,People - Ageing Well,Care-Away Ltd T/A Care Support,Home Care - Private Contractors Payment,1283.80,0.00,COMMERCIAL SUPPLIER 
 15-09-2023,People - Ageing Well,Care-Away Ltd T/A Care Support,Home Care - Private Contractors Payment,513.52,0.00,COMMERCIAL SUPPLIER 
 15-09-2023,People - Ageing Well,Care-Away Ltd T/A Care Support,Home Care - Private Contractors Payment,2090.76,0.00,COMMERCIAL SUPPLIER 
 15-09-2023,People - Ageing Well,Care-Away Ltd T/A Care Support,Home Care - Private Contractors Payment,770.28,0.00,COMMERCIAL SUPPLIER 
 15-09-2023,People - Ageing Well,Care-Away Ltd T/A Care Support,Home Care - Private Contractors Payment,898.66,0.00,COMMERCIAL SUPPLIER 
 15-09-2023,People - Ageing Well,Care-Away Ltd T/A Care Support,Home Care - Private Contractors Payment,770.28,0.00,COMMERCIAL SUPPLIER 
 15-09-2023,People - Ageing Well,Care-Away Ltd T/A Care Support,Home Care - Private Contractors Payment,513.52,0.00,COMMERCIAL SUPPLIER 
 15-09-2023,People - Ageing Well,Care-Away Ltd T/A Care Support,Home Care - Private Contractors Payment,1540.56,0.00,COMMERCIAL SUPPLIER 
 15-09-2023,People - Ageing Well,Care-Away Ltd T/A Care Support,Home Care - Private Contractors Payment,513.52,0.00,COMMERCIAL SUPPLIER 
 15-09-2023,People - Ageing Well,Care-Away Ltd T/A Care Support,Home Care - Private Contractors Payment,788.62,0.00,COMMERCIAL SUPPLIER 
 15-09-2023,People - Ageing Well,Care-Away Ltd T/A Care Support,Home Care - Private Contractors Payment,1155.42,0.00,COMMERCIAL SUPPLIER 
 15-09-2023,People - Ageing Well,Care-Away Ltd T/A Care Support,Home Care - Private Contractors Payment,1027.04,0.00,COMMERCIAL SUPPLIER 
 15-09-2023,People - Ageing Well,Care-Away Ltd T/A Care Support,Private Contractors Payment - Other,20828.31,0.00,COMMERCIAL SUPPLIER 
 15-09-2023,People - Ageing Well,Origin Care Homes (Holbeach) Ltd ,Residential Placements - Private Contractors Payment,2534.76,0.00,COMMERCIAL SUPPLIER 
 15-09-2023,People - Ageing Well,Forward Community Care Ltd,Residential Placements - Private Contractors Payment,1976.40,0.00,COMMERCIAL SUPPLIER 
 15-09-2023,People - Ageing Well,Forward Community Care Ltd,Residential Placements - Private Contractors Payment,1976.40,0.00,COMMERCIAL SUPPLIER 
 15-09-2023,People - Ageing Well,Forward Community Care Ltd,Residential Placements - Private Contractors Payment,1129.37,0.00,COMMERCIAL SUPPLIER 
 15-09-2023,People - Ageing Well,Certified Healthcare Solutions Ltd t/a In Home Care Havering,Home Care - Private Contractors Payment,1583.45,0.00,COMMERCIAL SUPPLIER 
 15-09-2023,People - Ageing Well,Certified Healthcare Solutions Ltd t/a In Home Care Havering,Home Care - Private Contractors Payment,1583.45,0.00,COMMERCIAL SUPPLIER 
 15-09-2023,People - Ageing Well,Posturite Ltd,Purchase - Equipment Furniture And Materials,1740.10,0.00,COMMERCIAL SUPPLIER 
 15-09-2023,People - Ageing Well,Rosemont Care Limited,Home Care - Private Contractors Payment,1223.08,0.00,COMMERCIAL SUPPLIER 
 15-09-2023,People - Ageing Well,Rosemont Care Limited,Home Care - Private Contractors Payment,1223.08,0.00,COMMERCIAL SUPPLIER 
 15-09-2023,People - Ageing Well,Rosemont Care Limited,Home Care - Private Contractors Payment,1179.40,0.00,COMMERCIAL SUPPLIER 
 15-09-2023,People - Ageing Well,Rosemont Care Limited,Home Care - Private Contractors Payment,1190.32,0.00,COMMERCIAL SUPPLIER 
 15-09-2023,People - Ageing Well,Rosemont Care Limited,Home Care - Private Contractors Payment,1223.08,0.00,COMMERCIAL SUPPLIER 
 15-09-2023,People - Ageing Well,Rosemont Care Limited,Home Care - Private Contractors Payment,1223.08,0.00,COMMERCIAL SUPPLIER 
 15-09-2023,People - Ageing Well,Rosemont Care Limited,Home Care - Private Contractors Payment,851.79,0.00,COMMERCIAL SUPPLIER 
 15-09-2023,People - Ageing Well,Rosemont Care Limited,Home Care - Private Contractors Payment,851.79,0.00,COMMERCIAL SUPPLIER 
 15-09-2023,People - Ageing Well,Rosemont Care Limited,Home Care - Private Contractors Payment,1190.32,0.00,COMMERCIAL SUPPLIER 
 17-09-2023,People - Ageing Well,Caremark,Home Care - Private Contractors Payment,2293.24,0.00,COMMERCIAL SUPPLIER 
 18-09-2023,People - Ageing Well,Prestige Care & Support Ltd,Home Care - Private Contractors Payment,2469.47,0.00,COMMERCIAL SUPPLIER 
 18-09-2023,People - Ageing Well,Prestige Care & Support Ltd,Home Care - Private Contractors Payment,964.63,0.00,COMMERCIAL SUPPLIER 
 18-09-2023,People - Ageing Well,Prestige Care & Support Ltd,Home Care - Private Contractors Payment,1026.52,0.00,COMMERCIAL SUPPLIER 
 18-09-2023,People - Ageing Well,Prestige Care & Support Ltd,Home Care - Private Contractors Payment,611.54,0.00,COMMERCIAL SUPPLIER 
 18-09-2023,People - Ageing Well,Prestige Care & Support Ltd,Home Care - Private Contractors Payment,2480.75,0.00,COMMERCIAL SUPPLIER 
 18-09-2023,People - Ageing Well,Prestige Care & Support Ltd,Home Care - Private Contractors Payment,611.54,0.00,COMMERCIAL SUPPLIER 
 18-09-2023,People - Ageing Well,Prestige Care & Support Ltd,Home Care - Private Contractors Payment,1107.69,0.00,COMMERCIAL SUPPLIER 
 18-09-2023,People - Ageing Well,Prestige Care & Support Ltd,Home Care - Private Contractors Payment,611.54,0.00,COMMERCIAL SUPPLIER 
 18-09-2023,People - Ageing Well,Prestige Care & Support Ltd,Home Care - Private Contractors Payment,927.87,0.00,COMMERCIAL SUPPLIER 
 18-09-2023,People - Ageing Well,Prestige Care & Support Ltd,Home Care - Private Contractors Payment,1070.93,0.00,COMMERCIAL SUPPLIER 
 18-09-2023,People - Ageing Well,Prestige Care & Support Ltd,Home Care - Private Contractors Payment,1316.63,0.00,COMMERCIAL SUPPLIER 
 18-09-2023,People - Ageing Well,Prestige Care & Support Ltd,Home Care - Private Contractors Payment,906.38,0.00,COMMERCIAL SUPPLIER 
 18-09-2023,People - Ageing Well,Prestige Care & Support Ltd,Home Care - Private Contractors Payment,789.54,0.00,COMMERCIAL SUPPLIER 
 18-09-2023,People - Ageing Well,Prestige Care & Support Ltd,Home Care - Private Contractors Payment,1223.81,0.00,COMMERCIAL SUPPLIER 
 18-09-2023,People - Ageing Well,Prestige Care & Support Ltd,Home Care - Private Contractors Payment,556.94,0.00,COMMERCIAL SUPPLIER 
 18-09-2023,People - Ageing Well,Prestige Care & Support Ltd,Home Care - Private Contractors Payment,2446.17,0.00,COMMERCIAL SUPPLIER 
 18-09-2023,People - Ageing Well,Prestige Care & Support Ltd,Home Care - Private Contractors Payment,1932.18,0.00,COMMERCIAL SUPPLIER 
 18-09-2023,People - Ageing Well,Prestige Care & Support Ltd,Home Care - Private Contractors Payment,924.23,0.00,COMMERCIAL SUPPLIER 
 18-09-2023,People - Ageing Well,Prestige Care & Support Ltd,Home Care - Private Contractors Payment,1667.18,0.00,COMMERCIAL SUPPLIER 
 18-09-2023,People - Ageing Well,Prestige Care & Support Ltd,Home Care - Private Contractors Payment,556.94,0.00,COMMERCIAL SUPPLIER 
 18-09-2023,People - Ageing Well,Prestige Care & Support Ltd,Home Care - Private Contractors Payment,1834.63,0.00,COMMERCIAL SUPPLIER 
 18-09-2023,People - Ageing Well,Prestige Care & Support Ltd,Home Care - Private Contractors Payment,917.31,0.00,COMMERCIAL SUPPLIER 
 18-09-2023,People - Ageing Well,Prestige Care & Support Ltd,Home Care - Private Contractors Payment,2807.99,0.00,COMMERCIAL SUPPLIER 
 18-09-2023,People - Ageing Well,Prestige Care & Support Ltd,Home Care - Private Contractors Payment,1268.58,0.00,COMMERCIAL SUPPLIER 
 18-09-2023,People - Ageing Well,Prestige Care & Support Ltd,Home Care - Private Contractors Payment,924.96,0.00,COMMERCIAL SUPPLIER 
 18-09-2023,People - Ageing Well,Prestige Care & Support Ltd,Home Care - Private Contractors Payment,2450.54,0.00,COMMERCIAL SUPPLIER 
 18-09-2023,People - Ageing Well,Prestige Care & Support Ltd,Home Care - Private Contractors Payment,2446.17,0.00,COMMERCIAL SUPPLIER 
 18-09-2023,People - Ageing Well,Prestige Care & Support Ltd,Home Care - Private Contractors Payment,745.13,0.00,COMMERCIAL SUPPLIER 
 18-09-2023,People - Ageing Well,Prestige Care & Support Ltd,Home Care - Private Contractors Payment,917.31,0.00,COMMERCIAL SUPPLIER 
 18-09-2023,People - Ageing Well,Prestige Care & Support Ltd,Home Care - Private Contractors Payment,2461.82,0.00,COMMERCIAL SUPPLIER 
 18-09-2023,People - Ageing Well,Prestige Care & Support Ltd,Home Care - Private Contractors Payment,1267.86,0.00,COMMERCIAL SUPPLIER 
 18-09-2023,People - Ageing Well,Prestige Care & Support Ltd,Home Care - Private Contractors Payment,2468.01,0.00,COMMERCIAL SUPPLIER 
 18-09-2023,People - Ageing Well,Prestige Care & Support Ltd,Home Care - Private Contractors Payment,2446.17,0.00,COMMERCIAL SUPPLIER 
 18-09-2023,People - Ageing Well,Prestige Care & Support Ltd,Home Care - Private Contractors Payment,613.73,0.00,COMMERCIAL SUPPLIER 
 18-09-2023,People - Ageing Well,Prestige Care & Support Ltd,Home Care - Private Contractors Payment,884.55,0.00,COMMERCIAL SUPPLIER 
 18-09-2023,People - Ageing Well,Prestige Care & Support Ltd,Home Care - Private Contractors Payment,2406.49,0.00,COMMERCIAL SUPPLIER 
 18-09-2023,People - Ageing Well,Prestige Care & Support Ltd,Home Care - Private Contractors Payment,659.59,0.00,COMMERCIAL SUPPLIER 
 18-09-2023,People - Ageing Well,Prestige Care & Support Ltd,Home Care - Private Contractors Payment,528.55,0.00,COMMERCIAL SUPPLIER 
 18-09-2023,People - Ageing Well,Prestige Care & Support Ltd,Home Care - Private Contractors Payment,1212.16,0.00,COMMERCIAL SUPPLIER 
 18-09-2023,People - Ageing Well,Prestige Care & Support Ltd,Home Care - Private Contractors Payment,543.83,0.00,COMMERCIAL SUPPLIER 
 18-09-2023,People - Ageing Well,Prestige Care & Support Ltd,Home Care - Private Contractors Payment,2039.20,0.00,COMMERCIAL SUPPLIER 
 18-09-2023,People - Ageing Well,Prestige Care & Support Ltd,Home Care - Private Contractors Payment,2281.63,0.00,COMMERCIAL SUPPLIER 
 18-09-2023,People - Ageing Well,Prestige Care & Support Ltd,Home Care - Private Contractors Payment,611.54,0.00,COMMERCIAL SUPPLIER 
 18-09-2023,People - Ageing Well,Prestige Care & Support Ltd,Home Care - Private Contractors Payment,2483.66,0.00,COMMERCIAL SUPPLIER 
 18-09-2023,People - Ageing Well,Prestige Care & Support Ltd,Home Care - Private Contractors Payment,1223.45,0.00,COMMERCIAL SUPPLIER 
 18-09-2023,People - Ageing Well,Prestige Care & Support Ltd,Home Care - Private Contractors Payment,2608.88,0.00,COMMERCIAL SUPPLIER 
 18-09-2023,People - Ageing Well,Prestige Care & Support Ltd,Home Care - Private Contractors Payment,614.45,0.00,COMMERCIAL SUPPLIER 
 18-09-2023,People - Ageing Well,Prestige Care & Support Ltd,Home Care - Private Contractors Payment,994.12,0.00,COMMERCIAL SUPPLIER 
 18-09-2023,People - Ageing Well,Prestige Care & Support Ltd,Home Care - Private Contractors Payment,1239.46,0.00,COMMERCIAL SUPPLIER 
 18-09-2023,People - Ageing Well,Prestige Care & Support Ltd,Home Care - Private Contractors Payment,611.54,0.00,COMMERCIAL SUPPLIER 
 18-09-2023,People - Ageing Well,Prestige Care & Support Ltd,Home Care - Private Contractors Payment,1325.00,0.00,COMMERCIAL SUPPLIER 
 18-09-2023,People - Ageing Well,Prestige Care & Support Ltd,Home Care - Private Contractors Payment,2225.94,0.00,COMMERCIAL SUPPLIER 
 18-09-2023,People - Ageing Well,Prestige Care & Support Ltd,Home Care - Private Contractors Payment,2323.13,0.00,COMMERCIAL SUPPLIER 
 18-09-2023,People - Ageing Well,Prestige Care & Support Ltd,Home Care - Private Contractors Payment,808.11,0.00,COMMERCIAL SUPPLIER 
 18-09-2023,People - Ageing Well,Prestige Care & Support Ltd,Home Care - Private Contractors Payment,611.54,0.00,COMMERCIAL SUPPLIER 
 18-09-2023,People - Ageing Well,London Care Plc_a,Home Care - Private Contractors Payment,1591.45,0.00,COMMERCIAL SUPPLIER 
 18-09-2023,People - Ageing Well,London Care Plc_a,Home Care - Private Contractors Payment,1581.62,0.00,COMMERCIAL SUPPLIER 
 18-09-2023,People - Ageing Well,London Care Plc_a,Home Care - Private Contractors Payment,852.88,0.00,COMMERCIAL SUPPLIER 
 18-09-2023,People - Ageing Well,London Care Plc_a,Home Care - Private Contractors Payment,1382.51,0.00,COMMERCIAL SUPPLIER 
 18-09-2023,People - Ageing Well,London Care Plc_a,Home Care - Private Contractors Payment,1426.92,0.00,COMMERCIAL SUPPLIER 
 18-09-2023,People - Ageing Well,London Care Plc_a,Home Care - Private Contractors Payment,1424.74,0.00,COMMERCIAL SUPPLIER 
 18-09-2023,People - Ageing Well,London Care Plc_a,Home Care - Private Contractors Payment,985.02,0.00,COMMERCIAL SUPPLIER 
 18-09-2023,People - Ageing Well,Romford Private Hire Ltd,Client Transport,3840.00,0.00,COMMERCIAL SUPPLIER 
 18-09-2023,People - Ageing Well,Romford Private Hire Ltd,Client Transport,3410.00,0.00,COMMERCIAL SUPPLIER 
 18-09-2023,People - Ageing Well,Romford Private Hire Ltd,Client Transport,1116.00,0.00,COMMERCIAL SUPPLIER 
 18-09-2023,People - Ageing Well,Romford Private Hire Ltd,Client Transport,1210.00,0.00,COMMERCIAL SUPPLIER 
 18-09-2023,People - Ageing Well,HSL Compliance Ltd,Professional Services - General,872.26,0.00,CIS 
 18-09-2023,People - Ageing Well,Hospiva Care & Associates Agency Ltd_a,Home Care - Private Contractors Payment,908.94,0.00,COMMERCIAL SUPPLIER 
 18-09-2023,People - Ageing Well,Hospiva Care & Associates Agency Ltd_a,Home Care - Private Contractors Payment,1388.34,0.00,COMMERCIAL SUPPLIER 
 18-09-2023,People - Ageing Well,Hospiva Care & Associates Agency Ltd_a,Home Care - Private Contractors Payment,1388.34,0.00,COMMERCIAL SUPPLIER 
 18-09-2023,People - Ageing Well,Hospiva Care & Associates Agency Ltd_a,Home Care - Private Contractors Payment,619.91,0.00,COMMERCIAL SUPPLIER 
 18-09-2023,People - Ageing Well,Hospiva Care & Associates Agency Ltd_a,Home Care - Private Contractors Payment,1270.77,0.00,COMMERCIAL SUPPLIER 
 18-09-2023,People - Ageing Well,Hospiva Care & Associates Agency Ltd_a,Home Care - Private Contractors Payment,873.26,0.00,COMMERCIAL SUPPLIER 
 18-09-2023,People - Ageing Well,Hospiva Care & Associates Agency Ltd_a,Home Care - Private Contractors Payment,611.54,0.00,COMMERCIAL SUPPLIER 
 18-09-2023,People - Ageing Well,Hospiva Care & Associates Agency Ltd_a,Home Care - Private Contractors Payment,1228.18,0.00,COMMERCIAL SUPPLIER 
 18-09-2023,People - Ageing Well,Hospiva Care & Associates Agency Ltd_a,Home Care - Private Contractors Payment,1228.18,0.00,COMMERCIAL SUPPLIER 
 18-09-2023,People - Ageing Well,Hospiva Care & Associates Agency Ltd_a,Home Care - Private Contractors Payment,1500.45,0.00,COMMERCIAL SUPPLIER 
 18-09-2023,People - Ageing Well,Hospiva Care & Associates Agency Ltd_a,Home Care - Private Contractors Payment,1345.02,0.00,COMMERCIAL SUPPLIER 
 18-09-2023,People - Ageing Well,Hospiva Care & Associates Agency Ltd_a,Home Care - Private Contractors Payment,1345.02,0.00,COMMERCIAL SUPPLIER 
 18-09-2023,People - Ageing Well,Hospiva Care & Associates Agency Ltd_a,Home Care - Private Contractors Payment,924.23,0.00,COMMERCIAL SUPPLIER 
 18-09-2023,People - Ageing Well,Hospiva Care & Associates Agency Ltd_a,Home Care - Private Contractors Payment,1500.45,0.00,COMMERCIAL SUPPLIER 
 18-09-2023,People - Ageing Well,Hospiva Care & Associates Agency Ltd_a,Home Care - Private Contractors Payment,621.37,0.00,COMMERCIAL SUPPLIER 
 18-09-2023,People - Ageing Well,Hospiva Care & Associates Agency Ltd_a,Home Care - Private Contractors Payment,613.00,0.00,COMMERCIAL SUPPLIER 
 18-09-2023,People - Ageing Well,Hospiva Care & Associates Agency Ltd_a,Home Care - Private Contractors Payment,613.00,0.00,COMMERCIAL SUPPLIER 
 18-09-2023,People - Ageing Well,Hospiva Care & Associates Agency Ltd_a,Home Care - Private Contractors Payment,1315.54,0.00,COMMERCIAL SUPPLIER 
 18-09-2023,People - Ageing Well,Hospiva Care & Associates Agency Ltd_a,Home Care - Private Contractors Payment,924.23,0.00,COMMERCIAL SUPPLIER 
 18-09-2023,People - Ageing Well,Hospiva Care & Associates Agency Ltd_a,Home Care - Private Contractors Payment,1243.47,0.00,COMMERCIAL SUPPLIER 
 18-09-2023,People - Ageing Well,Hospiva Care & Associates Agency Ltd_a,Home Care - Private Contractors Payment,612.63,0.00,COMMERCIAL SUPPLIER 
 18-09-2023,People - Ageing Well,Hospiva Care & Associates Agency Ltd_a,Home Care - Private Contractors Payment,1397.44,0.00,COMMERCIAL SUPPLIER 
 18-09-2023,People - Ageing Well,Hospiva Care & Associates Agency Ltd_a,Home Care - Private Contractors Payment,1402.90,0.00,COMMERCIAL SUPPLIER 
 18-09-2023,People - Ageing Well,Hospiva Care & Associates Agency Ltd_a,Home Care - Private Contractors Payment,1315.54,0.00,COMMERCIAL SUPPLIER 
 18-09-2023,People - Ageing Well,Hospiva Care & Associates Agency Ltd_a,Home Care - Private Contractors Payment,6600.00,0.00,COMMERCIAL SUPPLIER 
 18-09-2023,People - Ageing Well,Hospiva Care & Associates Agency Ltd_a,Home Care - Private Contractors Payment,1597.64,0.00,COMMERCIAL SUPPLIER 
 18-09-2023,People - Ageing Well,Hospiva Care & Associates Agency Ltd_a,Home Care - Private Contractors Payment,885.28,0.00,COMMERCIAL SUPPLIER 
 18-09-2023,People - Ageing Well,Hospiva Care & Associates Agency Ltd_a,Home Care - Private Contractors Payment,1717.40,0.00,COMMERCIAL SUPPLIER 
 18-09-2023,People - Ageing Well,Hospiva Care & Associates Agency Ltd_a,Home Care - Private Contractors Payment,2413.02,0.00,COMMERCIAL SUPPLIER 
 18-09-2023,People - Ageing Well,London Borough of Barking & Dagenham_a,Daycare - Private Contractors Payment,3880.00,0.00,LOCAL AUTHORITY SERVICES 
 18-09-2023,People - Ageing Well,London Borough of Barking & Dagenham_a,Daycare - Private Contractors Payment,2328.00,0.00,LOCAL AUTHORITY SERVICES 
 18-09-2023,People - Ageing Well,London Borough of Barking & Dagenham_a,Daycare - Private Contractors Payment,3880.00,0.00,LOCAL AUTHORITY SERVICES 
 18-09-2023,People - Ageing Well,London Borough of Barking & Dagenham_a,Daycare - Private Contractors Payment,1552.00,0.00,LOCAL AUTHORITY SERVICES 
 18-09-2023,People - Ageing Well,London Borough of Barking & Dagenham_a,Daycare - Private Contractors Payment,1552.00,0.00,LOCAL AUTHORITY SERVICES 
 18-09-2023,People - Ageing Well,London Borough of Barking & Dagenham_a,Daycare - Private Contractors Payment,3880.00,0.00,LOCAL AUTHORITY SERVICES 
 18-09-2023,People - Ageing Well,London Borough of Barking & Dagenham_a,Daycare - Private Contractors Payment,2328.00,0.00,LOCAL AUTHORITY SERVICES 
 18-09-2023,People - Ageing Well,London Borough of Barking & Dagenham_a,Daycare - Private Contractors Payment,3880.00,0.00,LOCAL AUTHORITY SERVICES 
 18-09-2023,People - Ageing Well,London Borough of Barking & Dagenham_a,Daycare - Private Contractors Payment,776.00,0.00,LOCAL AUTHORITY SERVICES 
 18-09-2023,People - Ageing Well,Care-Away Ltd T/A Care Support,Home Care - Private Contractors Payment,513.52,0.00,COMMERCIAL SUPPLIER 
 18-09-2023,People - Ageing Well,Care-Away Ltd T/A Care Support,Home Care - Private Contractors Payment,1027.04,0.00,COMMERCIAL SUPPLIER 
 18-09-2023,People - Ageing Well,Care-Away Ltd T/A Care Support,Home Care - Private Contractors Payment,1540.56,0.00,COMMERCIAL SUPPLIER 
 18-09-2023,People - Ageing Well,Care-Away Ltd T/A Care Support,Home Care - Private Contractors Payment,513.52,0.00,COMMERCIAL SUPPLIER 
 18-09-2023,People - Ageing Well,Care-Away Ltd T/A Care Support,Home Care - Private Contractors Payment,2310.84,0.00,COMMERCIAL SUPPLIER 
 18-09-2023,People - Ageing Well,Care-Away Ltd T/A Care Support,Home Care - Private Contractors Payment,513.52,0.00,COMMERCIAL SUPPLIER 
 18-09-2023,People - Ageing Well,Care-Away Ltd T/A Care Support,Home Care - Private Contractors Payment,513.52,0.00,COMMERCIAL SUPPLIER 
 18-09-2023,People - Ageing Well,Care-Away Ltd T/A Care Support,Home Care - Private Contractors Payment,843.64,0.00,COMMERCIAL SUPPLIER 
 18-09-2023,People - Ageing Well,Care-Away Ltd T/A Care Support,Home Care - Private Contractors Payment,513.52,0.00,COMMERCIAL SUPPLIER 
 18-09-2023,People - Ageing Well,Care-Away Ltd T/A Care Support,Home Care - Private Contractors Payment,1027.04,0.00,COMMERCIAL SUPPLIER 
 18-09-2023,People - Ageing Well,Care-Away Ltd T/A Care Support,Home Care - Private Contractors Payment,1027.04,0.00,COMMERCIAL SUPPLIER 
 18-09-2023,People - Ageing Well,Care-Away Ltd T/A Care Support,Home Care - Private Contractors Payment,513.52,0.00,COMMERCIAL SUPPLIER 
 18-09-2023,People - Ageing Well,Care-Away Ltd T/A Care Support,Home Care - Private Contractors Payment,990.36,0.00,COMMERCIAL SUPPLIER 
 18-09-2023,People - Ageing Well,Care-Away Ltd T/A Care Support,Home Care - Private Contractors Payment,898.66,0.00,COMMERCIAL SUPPLIER 
 18-09-2023,People - Ageing Well,Passion Tree Care Services Ltd,Home Care - Private Contractors Payment,1223.08,0.00,COMMERCIAL SUPPLIER 
 18-09-2023,People - Ageing Well,Passion Tree Care Services Ltd,Home Care - Private Contractors Payment,1048.33,0.00,COMMERCIAL SUPPLIER 
 18-09-2023,People - Ageing Well,Passion Tree Care Services Ltd,Home Care - Private Contractors Payment,611.54,0.00,COMMERCIAL SUPPLIER 
 18-09-2023,People - Ageing Well,Passion Tree Care Services Ltd,Home Care - Private Contractors Payment,611.54,0.00,COMMERCIAL SUPPLIER 
 18-09-2023,People - Ageing Well,Passion Tree Care Services Ltd,Home Care - Private Contractors Payment,1223.08,0.00,COMMERCIAL SUPPLIER 
 18-09-2023,People - Ageing Well,Passion Tree Care Services Ltd,Home Care - Private Contractors Payment,917.31,0.00,COMMERCIAL SUPPLIER 
 18-09-2023,People - Ageing Well,Passion Tree Care Services Ltd,Home Care - Private Contractors Payment,1310.45,0.00,COMMERCIAL SUPPLIER 
 18-09-2023,People - Ageing Well,Passion Tree Care Services Ltd,Home Care - Private Contractors Payment,611.54,0.00,COMMERCIAL SUPPLIER 
 18-09-2023,People - Ageing Well,Passion Tree Care Services Ltd,Home Care - Private Contractors Payment,1070.19,0.00,COMMERCIAL SUPPLIER 
 18-09-2023,People - Ageing Well,Passion Tree Care Services Ltd,Home Care - Private Contractors Payment,611.54,0.00,COMMERCIAL SUPPLIER 
 18-09-2023,People - Ageing Well,Passion Tree Care Services Ltd,Home Care - Private Contractors Payment,611.54,0.00,COMMERCIAL SUPPLIER 
 18-09-2023,People - Ageing Well,HR AMBER CARS Ltd,Client Transport,1900.00,0.00,COMMERCIAL SUPPLIER 
 18-09-2023,People - Ageing Well,Outreach Support Services Ltd,Home Care - Private Contractors Payment,611.53,0.00,COMMERCIAL SUPPLIER 
 18-09-2023,People - Ageing Well,Outreach Support Services Ltd,Home Care - Private Contractors Payment,1375.96,0.00,COMMERCIAL SUPPLIER 
 18-09-2023,People - Ageing Well,Outreach Support Services Ltd,Home Care - Private Contractors Payment,1223.08,0.00,COMMERCIAL SUPPLIER 
 18-09-2023,People - Ageing Well,Outreach Support Services Ltd,Home Care - Private Contractors Payment,1223.08,0.00,COMMERCIAL SUPPLIER 
 18-09-2023,People - Ageing Well,Outreach Support Services Ltd,Home Care - Private Contractors Payment,917.31,0.00,COMMERCIAL SUPPLIER 
 18-09-2023,People - Ageing Well,Outreach Support Services Ltd,Home Care - Private Contractors Payment,1223.08,0.00,COMMERCIAL SUPPLIER 
 18-09-2023,People - Ageing Well,Outreach Support Services Ltd,Home Care - Private Contractors Payment,2205.89,0.00,COMMERCIAL SUPPLIER 
 18-09-2023,People - Ageing Well,Outreach Support Services Ltd,Home Care - Private Contractors Payment,786.26,0.00,COMMERCIAL SUPPLIER 
 18-09-2023,People - Ageing Well,Outreach Support Services Ltd,Home Care - Private Contractors Payment,1223.08,0.00,COMMERCIAL SUPPLIER 
 18-09-2023,People - Ageing Well,Outreach Support Services Ltd,Home Care - Private Contractors Payment,1223.08,0.00,COMMERCIAL SUPPLIER 
 18-09-2023,People - Ageing Well,Outreach Support Services Ltd,Home Care - Private Contractors Payment,1863.99,0.00,COMMERCIAL SUPPLIER 
 18-09-2023,People - Ageing Well,Outreach Support Services Ltd,Home Care - Private Contractors Payment,1863.99,0.00,COMMERCIAL SUPPLIER 
 18-09-2023,People - Ageing Well,Outreach Support Services Ltd,Home Care - Private Contractors Payment,1812.76,0.00,COMMERCIAL SUPPLIER 
 18-09-2023,People - Ageing Well,Outreach Support Services Ltd,Home Care - Private Contractors Payment,1223.08,0.00,COMMERCIAL SUPPLIER 
 18-09-2023,People - Ageing Well,Outreach Support Services Ltd,Home Care - Private Contractors Payment,611.54,0.00,COMMERCIAL SUPPLIER 
 18-09-2023,People - Ageing Well,Outreach Support Services Ltd,Home Care - Private Contractors Payment,2271.40,0.00,COMMERCIAL SUPPLIER 
 18-09-2023,People - Ageing Well,Outreach Support Services Ltd,Home Care - Private Contractors Payment,2271.40,0.00,COMMERCIAL SUPPLIER 
 18-09-2023,People - Ageing Well,Outreach Support Services Ltd,Home Care - Private Contractors Payment,2271.40,0.00,COMMERCIAL SUPPLIER 
 18-09-2023,People - Ageing Well,Outreach Support Services Ltd,Home Care - Private Contractors Payment,2271.40,0.00,COMMERCIAL SUPPLIER 
 18-09-2023,People - Ageing Well,Outreach Support Services Ltd,Home Care - Private Contractors Payment,1223.08,0.00,COMMERCIAL SUPPLIER 
 18-09-2023,People - Ageing Well,Outreach Support Services Ltd,Home Care - Private Contractors Payment,1375.96,0.00,COMMERCIAL SUPPLIER 
 18-09-2023,People - Ageing Well,Outreach Support Services Ltd,Home Care - Private Contractors Payment,1375.96,0.00,COMMERCIAL SUPPLIER 
 18-09-2023,People - Ageing Well,Outreach Support Services Ltd,Home Care - Private Contractors Payment,1223.08,0.00,COMMERCIAL SUPPLIER 
 18-09-2023,People - Ageing Well,HR AMBER CARS Ltd,Client Transport,960.00,0.00,COMMERCIAL SUPPLIER 
 18-09-2023,People - Ageing Well,HR AMBER CARS Ltd,Client Transport,960.00,0.00,COMMERCIAL SUPPLIER 
 19-09-2023,People - Ageing Well,R G Care Ltd ,Daycare - Private Contractors Payment,900.00,0.00,COMMERCIAL SUPPLIER 
 19-09-2023,People - Ageing Well,R G Care Ltd ,Daycare - Private Contractors Payment,840.00,0.00,COMMERCIAL SUPPLIER 
 19-09-2023,People - Ageing Well,Recruitcare Professionals Ltd ,Home Care - Private Contractors Payment,1223.08,0.00,COMMERCIAL SUPPLIER 
 19-09-2023,People - Ageing Well,Flex360 Limited,Private Contractors Payment - Other,700.00,0.00,COMMERCIAL SUPPLIER 
 19-09-2023,People - Ageing Well,Home Support Services (Havering & Essex) Ltd,Home Care - Private Contractors Payment,1406.90,0.00,COMMERCIAL SUPPLIER 
 19-09-2023,People - Ageing Well,Home Support Services (Havering & Essex) Ltd,Home Care - Private Contractors Payment,1250.38,0.00,COMMERCIAL SUPPLIER 
 19-09-2023,People - Ageing Well,Home Support Services (Havering & Essex) Ltd,Home Care - Private Contractors Payment,1228.18,0.00,COMMERCIAL SUPPLIER 
 19-09-2023,People - Ageing Well,Home Support Services (Havering & Essex) Ltd,Home Care - Private Contractors Payment,1147.73,0.00,COMMERCIAL SUPPLIER 
 19-09-2023,People - Ageing Well,Home Support Services (Havering & Essex) Ltd,Home Care - Private Contractors Payment,687.99,0.00,COMMERCIAL SUPPLIER 
 19-09-2023,People - Ageing Well,Home Support Services (Havering & Essex) Ltd,Home Care - Private Contractors Payment,881.64,0.00,COMMERCIAL SUPPLIER 
 19-09-2023,People - Ageing Well,Home Support Services (Havering & Essex) Ltd,Home Care - Private Contractors Payment,1650.79,0.00,COMMERCIAL SUPPLIER 
 19-09-2023,People - Ageing Well,Home Support Services (Havering & Essex) Ltd,Home Care - Private Contractors Payment,1151.74,0.00,COMMERCIAL SUPPLIER 
 19-09-2023,People - Ageing Well,Home Support Services (Havering & Essex) Ltd,Home Care - Private Contractors Payment,2430.52,0.00,COMMERCIAL SUPPLIER 
 19-09-2023,People - Ageing Well,Home Support Services (Havering & Essex) Ltd,Home Care - Private Contractors Payment,612.63,0.00,COMMERCIAL SUPPLIER 
 19-09-2023,People - Ageing Well,Home Support Services (Havering & Essex) Ltd,Home Care - Private Contractors Payment,2193.91,0.00,COMMERCIAL SUPPLIER 
 19-09-2023,People - Ageing Well,Home Support Services (Havering & Essex) Ltd,Home Care - Private Contractors Payment,2448.72,0.00,COMMERCIAL SUPPLIER 
 19-09-2023,People - Ageing Well,Home Support Services (Havering & Essex) Ltd,Home Care - Private Contractors Payment,1235.10,0.00,COMMERCIAL SUPPLIER 
 19-09-2023,People - Ageing Well,Home Support Services (Havering & Essex) Ltd,Home Care - Private Contractors Payment,1341.75,0.00,COMMERCIAL SUPPLIER 
 19-09-2023,People - Ageing Well,Home Support Services (Havering & Essex) Ltd,Home Care - Private Contractors Payment,2456.73,0.00,COMMERCIAL SUPPLIER 
 19-09-2023,People - Ageing Well,Home Support Services (Havering & Essex) Ltd,Home Care - Private Contractors Payment,615.18,0.00,COMMERCIAL SUPPLIER 
 19-09-2023,People - Ageing Well,Home Support Services (Havering & Essex) Ltd,Home Care - Private Contractors Payment,1487.35,0.00,COMMERCIAL SUPPLIER 
 19-09-2023,People - Ageing Well,Home Support Services (Havering & Essex) Ltd,Home Care - Private Contractors Payment,1205.25,0.00,COMMERCIAL SUPPLIER 
 19-09-2023,People - Ageing Well,Home Support Services (Havering & Essex) Ltd,Home Care - Private Contractors Payment,833.23,0.00,COMMERCIAL SUPPLIER 
 19-09-2023,People - Ageing Well,Home Support Services (Havering & Essex) Ltd,Home Care - Private Contractors Payment,2467.28,0.00,COMMERCIAL SUPPLIER 
 19-09-2023,People - Ageing Well,Home Support Services (Havering & Essex) Ltd,Home Care - Private Contractors Payment,3570.59,0.00,COMMERCIAL SUPPLIER 
 19-09-2023,People - Ageing Well,Home Support Services (Havering & Essex) Ltd,Home Care - Private Contractors Payment,919.86,0.00,COMMERCIAL SUPPLIER 
 19-09-2023,People - Ageing Well,Home Support Services (Havering & Essex) Ltd,Home Care - Private Contractors Payment,1225.63,0.00,COMMERCIAL SUPPLIER 
 19-09-2023,People - Ageing Well,Home Support Services (Havering & Essex) Ltd,Home Care - Private Contractors Payment,512.89,0.00,COMMERCIAL SUPPLIER 
 19-09-2023,People - Ageing Well,Home Support Services (Havering & Essex) Ltd,Home Care - Private Contractors Payment,1226.00,0.00,COMMERCIAL SUPPLIER 
 19-09-2023,People - Ageing Well,Home Support Services (Havering & Essex) Ltd,Home Care - Private Contractors Payment,726.93,0.00,COMMERCIAL SUPPLIER 
 19-09-2023,People - Ageing Well,Home Support Services (Havering & Essex) Ltd,Home Care - Private Contractors Payment,2468.37,0.00,COMMERCIAL SUPPLIER 
 19-09-2023,People - Ageing Well,Home Support Services (Havering & Essex) Ltd,Home Care - Private Contractors Payment,613.73,0.00,COMMERCIAL SUPPLIER 
 19-09-2023,People - Ageing Well,Home Support Services (Havering & Essex) Ltd,Home Care - Private Contractors Payment,2468.74,0.00,COMMERCIAL SUPPLIER 
 19-09-2023,People - Ageing Well,Home Support Services (Havering & Essex) Ltd,Home Care - Private Contractors Payment,1834.63,0.00,COMMERCIAL SUPPLIER 
 19-09-2023,People - Ageing Well,Home Support Services (Havering & Essex) Ltd,Home Care - Private Contractors Payment,2472.38,0.00,COMMERCIAL SUPPLIER 
 19-09-2023,People - Ageing Well,Home Support Services (Havering & Essex) Ltd,Home Care - Private Contractors Payment,808.11,0.00,COMMERCIAL SUPPLIER 
 19-09-2023,People - Ageing Well,Home Support Services (Havering & Essex) Ltd,Home Care - Private Contractors Payment,1834.63,0.00,COMMERCIAL SUPPLIER 
 19-09-2023,People - Ageing Well,Home Support Services (Havering & Essex) Ltd,Home Care - Private Contractors Payment,1432.72,0.00,COMMERCIAL SUPPLIER 
 19-09-2023,People - Ageing Well,Home Support Services (Havering & Essex) Ltd,Home Care - Private Contractors Payment,532.19,0.00,COMMERCIAL SUPPLIER 
 19-09-2023,People - Ageing Well,Home Support Services (Havering & Essex) Ltd,Home Care - Private Contractors Payment,789.91,0.00,COMMERCIAL SUPPLIER 
 19-09-2023,People - Ageing Well,Home Support Services (Havering & Essex) Ltd,Home Care - Private Contractors Payment,622.46,0.00,COMMERCIAL SUPPLIER 
 19-09-2023,People - Ageing Well,Home Support Services (Havering & Essex) Ltd,Home Care - Private Contractors Payment,1258.39,0.00,COMMERCIAL SUPPLIER 
 19-09-2023,People - Ageing Well,Home Support Services (Havering & Essex) Ltd,Home Care - Private Contractors Payment,1429.47,0.00,COMMERCIAL SUPPLIER 
 19-09-2023,People - Ageing Well,Home Support Services (Havering & Essex) Ltd,Home Care - Private Contractors Payment,1227.08,0.00,COMMERCIAL SUPPLIER 
 19-09-2023,People - Ageing Well,Home Support Services (Havering & Essex) Ltd,Home Care - Private Contractors Payment,2446.17,0.00,COMMERCIAL SUPPLIER 
 19-09-2023,People - Ageing Well,Home Support Services (Havering & Essex) Ltd,Home Care - Private Contractors Payment,611.54,0.00,COMMERCIAL SUPPLIER 
 19-09-2023,People - Ageing Well,Home Support Services (Havering & Essex) Ltd,Home Care - Private Contractors Payment,624.28,0.00,COMMERCIAL SUPPLIER 
 19-09-2023,People - Ageing Well,Home Support Services (Havering & Essex) Ltd,Home Care - Private Contractors Payment,1696.30,0.00,COMMERCIAL SUPPLIER 
 19-09-2023,People - Ageing Well,Home Support Services (Havering & Essex) Ltd,Home Care - Private Contractors Payment,810.29,0.00,COMMERCIAL SUPPLIER 
 19-09-2023,People - Ageing Well,Home Support Services (Havering & Essex) Ltd,Home Care - Private Contractors Payment,1236.92,0.00,COMMERCIAL SUPPLIER 
 19-09-2023,People - Ageing Well,Home Support Services (Havering & Essex) Ltd,Home Care - Private Contractors Payment,1857.20,0.00,COMMERCIAL SUPPLIER 
 19-09-2023,People - Ageing Well,Home Support Services (Havering & Essex) Ltd,Home Care - Private Contractors Payment,1456.05,0.00,COMMERCIAL SUPPLIER 
 19-09-2023,People - Ageing Well,Home Support Services (Havering & Essex) Ltd,Home Care - Private Contractors Payment,1095.31,0.00,COMMERCIAL SUPPLIER 
 19-09-2023,People - Ageing Well,Home Support Services (Havering & Essex) Ltd,Home Care - Private Contractors Payment,2405.76,0.00,COMMERCIAL SUPPLIER 
 19-09-2023,People - Ageing Well,Home Support Services (Havering & Essex) Ltd,Home Care - Private Contractors Payment,1858.65,0.00,COMMERCIAL SUPPLIER 
 19-09-2023,People - Ageing Well,Home Support Services (Havering & Essex) Ltd,Home Care - Private Contractors Payment,1696.66,0.00,COMMERCIAL SUPPLIER 
 19-09-2023,People - Ageing Well,Home Support Services (Havering & Essex) Ltd,Home Care - Private Contractors Payment,986.84,0.00,COMMERCIAL SUPPLIER 
 19-09-2023,People - Ageing Well,Home Support Services (Havering & Essex) Ltd,Home Care - Private Contractors Payment,1349.03,0.00,COMMERCIAL SUPPLIER 
 19-09-2023,People - Ageing Well,Home Support Services (Havering & Essex) Ltd,Home Care - Private Contractors Payment,611.91,0.00,COMMERCIAL SUPPLIER 
 19-09-2023,People - Ageing Well,Home Support Services (Havering & Essex) Ltd,Home Care - Private Contractors Payment,613.36,0.00,COMMERCIAL SUPPLIER 
 19-09-2023,People - Ageing Well,Home Support Services (Havering & Essex) Ltd,Home Care - Private Contractors Payment,2473.83,0.00,COMMERCIAL SUPPLIER 
 19-09-2023,People - Ageing Well,Home Support Services (Havering & Essex) Ltd,Home Care - Private Contractors Payment,524.18,0.00,COMMERCIAL SUPPLIER 
 19-09-2023,People - Ageing Well,Home Support Services (Havering & Essex) Ltd,Home Care - Private Contractors Payment,1451.32,0.00,COMMERCIAL SUPPLIER 
 19-09-2023,People - Ageing Well,Home Support Services (Havering & Essex) Ltd,Home Care - Private Contractors Payment,2492.76,0.00,COMMERCIAL SUPPLIER 
 19-09-2023,People - Ageing Well,Home Support Services (Havering & Essex) Ltd,Home Care - Private Contractors Payment,2338.06,0.00,COMMERCIAL SUPPLIER 
 19-09-2023,People - Ageing Well,Home Support Services (Havering & Essex) Ltd,Home Care - Private Contractors Payment,607.54,0.00,COMMERCIAL SUPPLIER 
 19-09-2023,People - Ageing Well,Home Support Services (Havering & Essex) Ltd,Home Care - Private Contractors Payment,607.90,0.00,COMMERCIAL SUPPLIER 
 19-09-2023,People - Ageing Well,Home Support Services (Havering & Essex) Ltd,Home Care - Private Contractors Payment,1448.77,0.00,COMMERCIAL SUPPLIER 
 19-09-2023,People - Ageing Well,Home Support Services (Havering & Essex) Ltd,Home Care - Private Contractors Payment,2140.40,0.00,COMMERCIAL SUPPLIER 
 19-09-2023,People - Ageing Well,Home Support Services (Havering & Essex) Ltd,Home Care - Private Contractors Payment,1508.10,0.00,COMMERCIAL SUPPLIER 
 19-09-2023,People - Ageing Well,Home Support Services (Havering & Essex) Ltd,Home Care - Private Contractors Payment,1834.63,0.00,COMMERCIAL SUPPLIER 
 19-09-2023,People - Ageing Well,Home Support Services (Havering & Essex) Ltd,Home Care - Private Contractors Payment,889.28,0.00,COMMERCIAL SUPPLIER 
 19-09-2023,People - Ageing Well,Home Support Services (Havering & Essex) Ltd,Home Care - Private Contractors Payment,1242.74,0.00,COMMERCIAL SUPPLIER 
 19-09-2023,People - Ageing Well,Home Support Services (Havering & Essex) Ltd,Home Care - Private Contractors Payment,933.69,0.00,COMMERCIAL SUPPLIER 
 19-09-2023,People - Ageing Well,Home Support Services (Havering & Essex) Ltd,Home Care - Private Contractors Payment,643.21,0.00,COMMERCIAL SUPPLIER 
 19-09-2023,People - Ageing Well,Home Support Services (Havering & Essex) Ltd,Home Care - Private Contractors Payment,2514.60,0.00,COMMERCIAL SUPPLIER 
 19-09-2023,People - Ageing Well,Home Support Services (Havering & Essex) Ltd,Home Care - Private Contractors Payment,2489.12,0.00,COMMERCIAL SUPPLIER 
 19-09-2023,People - Ageing Well,Home Support Services (Havering & Essex) Ltd,Home Care - Private Contractors Payment,1537.23,0.00,COMMERCIAL SUPPLIER 
 19-09-2023,People - Ageing Well,Home Support Services (Havering & Essex) Ltd,Home Care - Private Contractors Payment,2446.17,0.00,COMMERCIAL SUPPLIER 
 19-09-2023,People - Ageing Well,Home Support Services (Havering & Essex) Ltd,Home Care - Private Contractors Payment,1074.93,0.00,COMMERCIAL SUPPLIER 
 19-09-2023,People - Ageing Well,Home Support Services (Havering & Essex) Ltd,Home Care - Private Contractors Payment,1346.11,0.00,COMMERCIAL SUPPLIER 
 19-09-2023,People - Ageing Well,Home Support Services (Havering & Essex) Ltd,Home Care - Private Contractors Payment,524.18,0.00,COMMERCIAL SUPPLIER 
 19-09-2023,People - Ageing Well,Home Support Services (Havering & Essex) Ltd,Home Care - Private Contractors Payment,1076.39,0.00,COMMERCIAL SUPPLIER 
 19-09-2023,People - Ageing Well,Home Support Services (Havering & Essex) Ltd,Home Care - Private Contractors Payment,1259.12,0.00,COMMERCIAL SUPPLIER 
 19-09-2023,People - Ageing Well,Home Support Services (Havering & Essex) Ltd,Home Care - Private Contractors Payment,627.19,0.00,COMMERCIAL SUPPLIER 
 19-09-2023,People - Ageing Well,Home Support Services (Havering & Essex) Ltd,Home Care - Private Contractors Payment,1377.06,0.00,COMMERCIAL SUPPLIER 
 19-09-2023,People - Ageing Well,Home Support Services (Havering & Essex) Ltd,Home Care - Private Contractors Payment,2478.20,0.00,COMMERCIAL SUPPLIER 
 19-09-2023,People - Ageing Well,Home Support Services (Havering & Essex) Ltd,Home Care - Private Contractors Payment,1592.92,0.00,COMMERCIAL SUPPLIER 
 19-09-2023,People - Ageing Well,Home Support Services (Havering & Essex) Ltd,Home Care - Private Contractors Payment,1231.82,0.00,COMMERCIAL SUPPLIER 
 19-09-2023,People - Ageing Well,Home Support Services (Havering & Essex) Ltd,Home Care - Private Contractors Payment,584.24,0.00,COMMERCIAL SUPPLIER 
 19-09-2023,People - Ageing Well,Home Support Services (Havering & Essex) Ltd,Home Care - Private Contractors Payment,632.65,0.00,COMMERCIAL SUPPLIER 
 19-09-2023,People - Ageing Well,Home Support Services (Havering & Essex) Ltd,Home Care - Private Contractors Payment,925.32,0.00,COMMERCIAL SUPPLIER 
 19-09-2023,People - Ageing Well,Home Support Services (Havering & Essex) Ltd,Home Care - Private Contractors Payment,589.70,0.00,COMMERCIAL SUPPLIER 
 19-09-2023,People - Ageing Well,Home Support Services (Havering & Essex) Ltd,Home Care - Private Contractors Payment,1263.12,0.00,COMMERCIAL SUPPLIER 
 19-09-2023,People - Ageing Well,Home Support Services (Havering & Essex) Ltd,Home Care - Private Contractors Payment,920.23,0.00,COMMERCIAL SUPPLIER 
 19-09-2023,People - Ageing Well,Home Support Services (Havering & Essex) Ltd,Home Care - Private Contractors Payment,917.31,0.00,COMMERCIAL SUPPLIER 
 19-09-2023,People - Ageing Well,Home Support Services (Havering & Essex) Ltd,Home Care - Private Contractors Payment,1098.23,0.00,COMMERCIAL SUPPLIER 
 19-09-2023,People - Ageing Well,Home Support Services (Havering & Essex) Ltd,Home Care - Private Contractors Payment,2931.38,0.00,COMMERCIAL SUPPLIER 
 19-09-2023,People - Ageing Well,Home Support Services (Havering & Essex) Ltd,Home Care - Private Contractors Payment,2435.98,0.00,COMMERCIAL SUPPLIER 
 19-09-2023,People - Ageing Well,Home Support Services (Havering & Essex) Ltd,Home Care - Private Contractors Payment,1369.78,0.00,COMMERCIAL SUPPLIER 
 19-09-2023,People - Ageing Well,Home Support Services (Havering & Essex) Ltd,Home Care - Private Contractors Payment,1845.91,0.00,COMMERCIAL SUPPLIER 
 19-09-2023,People - Ageing Well,Home Support Services (Havering & Essex) Ltd,Home Care - Private Contractors Payment,2454.54,0.00,COMMERCIAL SUPPLIER 
 19-09-2023,People - Ageing Well,Home Support Services (Havering & Essex) Ltd,Home Care - Private Contractors Payment,620.64,0.00,COMMERCIAL SUPPLIER 
 19-09-2023,People - Ageing Well,Home Support Services (Havering & Essex) Ltd,Home Care - Private Contractors Payment,918.04,0.00,COMMERCIAL SUPPLIER 
 19-09-2023,People - Ageing Well,Home Support Services (Havering & Essex) Ltd,Home Care - Private Contractors Payment,1879.04,0.00,COMMERCIAL SUPPLIER 
 19-09-2023,People - Ageing Well,Home Support Services (Havering & Essex) Ltd,Home Care - Private Contractors Payment,918.04,0.00,COMMERCIAL SUPPLIER 
 19-09-2023,People - Ageing Well,Home Support Services (Havering & Essex) Ltd,Home Care - Private Contractors Payment,2446.17,0.00,COMMERCIAL SUPPLIER 
 19-09-2023,People - Ageing Well,Home Support Services (Havering & Essex) Ltd,Home Care - Private Contractors Payment,930.05,0.00,COMMERCIAL SUPPLIER 
 19-09-2023,People - Ageing Well,Home Support Services (Havering & Essex) Ltd,Home Care - Private Contractors Payment,1303.53,0.00,COMMERCIAL SUPPLIER 
 19-09-2023,People - Ageing Well,Home Support Services (Havering & Essex) Ltd,Home Care - Private Contractors Payment,971.91,0.00,COMMERCIAL SUPPLIER 
 19-09-2023,People - Ageing Well,Home Support Services (Havering & Essex) Ltd,Home Care - Private Contractors Payment,2454.91,0.00,COMMERCIAL SUPPLIER 
 19-09-2023,People - Ageing Well,Home Support Services (Havering & Essex) Ltd,Home Care - Private Contractors Payment,1390.53,0.00,COMMERCIAL SUPPLIER 
 19-09-2023,People - Ageing Well,John Stanleys Care Agency Ltd,Home Care - Private Contractors Payment,1243.10,0.00,COMMERCIAL SUPPLIER 
 19-09-2023,People - Ageing Well,John Stanleys Care Agency Ltd,Home Care - Private Contractors Payment,643.57,0.00,COMMERCIAL SUPPLIER 
 19-09-2023,People - Ageing Well,John Stanleys Care Agency Ltd,Home Care - Private Contractors Payment,929.68,0.00,COMMERCIAL SUPPLIER 
 19-09-2023,People - Ageing Well,John Stanleys Care Agency Ltd,Home Care - Private Contractors Payment,981.74,0.00,COMMERCIAL SUPPLIER 
 19-09-2023,People - Ageing Well,John Stanleys Care Agency Ltd,Home Care - Private Contractors Payment,4861.40,0.00,COMMERCIAL SUPPLIER 
 19-09-2023,People - Ageing Well,John Stanleys Care Agency Ltd,Home Care - Private Contractors Payment,1359.58,0.00,COMMERCIAL SUPPLIER 
 19-09-2023,People - Ageing Well,John Stanleys Care Agency Ltd,Home Care - Private Contractors Payment,1381.06,0.00,COMMERCIAL SUPPLIER 
 19-09-2023,People - Ageing Well,John Stanleys Care Agency Ltd,Home Care - Private Contractors Payment,5575.75,0.00,COMMERCIAL SUPPLIER 
 19-09-2023,People - Ageing Well,John Stanleys Care Agency Ltd,Home Care - Private Contractors Payment,9179.74,0.00,COMMERCIAL SUPPLIER 
 19-09-2023,People - Ageing Well,John Stanleys Care Agency Ltd,Home Care - Private Contractors Payment,1012.68,0.00,COMMERCIAL SUPPLIER 
 19-09-2023,People - Ageing Well,John Stanleys Care Agency Ltd,Home Care - Private Contractors Payment,616.64,0.00,COMMERCIAL SUPPLIER 
 19-09-2023,People - Ageing Well,John Stanleys Care Agency Ltd,Home Care - Private Contractors Payment,5733.40,0.00,COMMERCIAL SUPPLIER 
 19-09-2023,People - Ageing Well,John Stanleys Care Agency Ltd,Home Care - Private Contractors Payment,1339.93,0.00,COMMERCIAL SUPPLIER 
 19-09-2023,People - Ageing Well,John Stanleys Care Agency Ltd,Home Care - Private Contractors Payment,4473.93,0.00,COMMERCIAL SUPPLIER 
 19-09-2023,People - Ageing Well,John Stanleys Care Agency Ltd,Home Care - Private Contractors Payment,955.16,0.00,COMMERCIAL SUPPLIER 
 19-09-2023,People - Ageing Well,John Stanleys Care Agency Ltd,Home Care - Private Contractors Payment,6518.20,0.00,COMMERCIAL SUPPLIER 
 19-09-2023,People - Ageing Well,John Stanleys Care Agency Ltd,Home Care - Private Contractors Payment,760.42,0.00,COMMERCIAL SUPPLIER 
 19-09-2023,People - Ageing Well,John Stanleys Care Agency Ltd,Home Care - Private Contractors Payment,1393.80,0.00,COMMERCIAL SUPPLIER 
 19-09-2023,People - Ageing Well,John Stanleys Care Agency Ltd,Home Care - Private Contractors Payment,873.27,0.00,COMMERCIAL SUPPLIER 
 19-09-2023,People - Ageing Well,John Stanleys Care Agency Ltd,Home Care - Private Contractors Payment,839.78,0.00,COMMERCIAL SUPPLIER 
 19-09-2023,People - Ageing Well,John Stanleys Care Agency Ltd,Home Care - Private Contractors Payment,1126.62,0.00,COMMERCIAL SUPPLIER 
 19-09-2023,People - Ageing Well,John Stanleys Care Agency Ltd,Home Care - Private Contractors Payment,1767.99,0.00,COMMERCIAL SUPPLIER 
 19-09-2023,People - Ageing Well,John Stanleys Care Agency Ltd,Home Care - Private Contractors Payment,1268.22,0.00,COMMERCIAL SUPPLIER 
 19-09-2023,People - Ageing Well,John Stanleys Care Agency Ltd,Home Care - Private Contractors Payment,625.37,0.00,COMMERCIAL SUPPLIER 
 19-09-2023,People - Ageing Well,John Stanleys Care Agency Ltd,Home Care - Private Contractors Payment,1125.51,0.00,COMMERCIAL SUPPLIER 
 19-09-2023,People - Ageing Well,John Stanleys Care Agency Ltd,Home Care - Private Contractors Payment,1279.87,0.00,COMMERCIAL SUPPLIER 
 19-09-2023,People - Ageing Well,John Stanleys Care Agency Ltd,Home Care - Private Contractors Payment,5406.40,0.00,COMMERCIAL SUPPLIER 
 19-09-2023,People - Ageing Well,John Stanleys Care Agency Ltd,Home Care - Private Contractors Payment,764.43,0.00,COMMERCIAL SUPPLIER 
 19-09-2023,People - Ageing Well,John Stanleys Care Agency Ltd,Home Care - Private Contractors Payment,1246.38,0.00,COMMERCIAL SUPPLIER 
 19-09-2023,People - Ageing Well,Inna Care Ltd,Home Care - Private Contractors Payment,2446.12,0.00,COMMERCIAL SUPPLIER 
 19-09-2023,People - Ageing Well,Inna Care Ltd,Home Care - Private Contractors Payment,611.54,0.00,COMMERCIAL SUPPLIER 
 19-09-2023,People - Ageing Well,Inna Care Ltd,Home Care - Private Contractors Payment,611.53,0.00,COMMERCIAL SUPPLIER 
 19-09-2023,People - Ageing Well,Inna Care Ltd,Home Care - Private Contractors Payment,611.54,0.00,COMMERCIAL SUPPLIER 
 19-09-2023,People - Ageing Well,Inna Care Ltd,Home Care - Private Contractors Payment,611.54,0.00,COMMERCIAL SUPPLIER 
 19-09-2023,People - Ageing Well,Inna Care Ltd,Home Care - Private Contractors Payment,611.54,0.00,COMMERCIAL SUPPLIER 
 19-09-2023,People - Ageing Well,Inna Care Ltd,Home Care - Private Contractors Payment,1179.40,0.00,COMMERCIAL SUPPLIER 
 19-09-2023,People - Ageing Well,Inna Care Ltd,Home Care - Private Contractors Payment,1179.40,0.00,COMMERCIAL SUPPLIER 
 19-09-2023,People - Ageing Well,Inna Care Ltd,Home Care - Private Contractors Payment,2446.12,0.00,COMMERCIAL SUPPLIER 
 19-09-2023,People - Ageing Well,Inna Care Ltd,Home Care - Private Contractors Payment,917.31,0.00,COMMERCIAL SUPPLIER 
 19-09-2023,People - Ageing Well,Inna Care Ltd,Home Care - Private Contractors Payment,917.31,0.00,COMMERCIAL SUPPLIER 
 19-09-2023,People - Ageing Well,Inna Care Ltd,Home Care - Private Contractors Payment,611.54,0.00,COMMERCIAL SUPPLIER 
 19-09-2023,People - Ageing Well,Inna Care Ltd,Home Care - Private Contractors Payment,1004.68,0.00,COMMERCIAL SUPPLIER 
 19-09-2023,People - Ageing Well,Inna Care Ltd,Home Care - Private Contractors Payment,1616.21,0.00,COMMERCIAL SUPPLIER 
 19-09-2023,People - Ageing Well,Inna Care Ltd,Home Care - Private Contractors Payment,917.31,0.00,COMMERCIAL SUPPLIER 
 19-09-2023,People - Ageing Well,Inna Care Ltd,Home Care - Private Contractors Payment,1616.21,0.00,COMMERCIAL SUPPLIER 
 19-09-2023,People - Ageing Well,Inna Care Ltd,Home Care - Private Contractors Payment,917.31,0.00,COMMERCIAL SUPPLIER 
 19-09-2023,People - Ageing Well,Inna Care Ltd,Home Care - Private Contractors Payment,535.10,0.00,COMMERCIAL SUPPLIER 
 19-09-2023,People - Ageing Well,Inna Care Ltd,Home Care - Private Contractors Payment,1223.08,0.00,COMMERCIAL SUPPLIER 
 19-09-2023,People - Ageing Well,Inna Care Ltd,Home Care - Private Contractors Payment,1223.06,0.00,COMMERCIAL SUPPLIER 
 19-09-2023,People - Ageing Well,Inna Care Ltd,Home Care - Private Contractors Payment,611.54,0.00,COMMERCIAL SUPPLIER 
 19-09-2023,People - Ageing Well,Inna Care Ltd,Home Care - Private Contractors Payment,917.31,0.00,COMMERCIAL SUPPLIER 
 19-09-2023,People - Ageing Well,Inna Care Ltd,Home Care - Private Contractors Payment,1179.40,0.00,COMMERCIAL SUPPLIER 
 19-09-2023,People - Ageing Well,Havering Association for People with Disabilities (H.A.D.),Payments To Voluntary Sector,3332.35,0.00,NON COMMERCIAL SUPPLIER 
 19-09-2023,People - Ageing Well,Havering Association for People with Disabilities (H.A.D.),Payments To Voluntary Sector,3332.35,0.00,NON COMMERCIAL SUPPLIER 
 20-09-2023,People - Ageing Well,Mayflower Travel,Client Transport,3520.00,0.00,COMMERCIAL SUPPLIER 
 20-09-2023,People - Ageing Well,Mayflower Travel,Client Transport,1548.00,0.00,COMMERCIAL SUPPLIER 
 20-09-2023,People - Ageing Well,Homestead Care Service,Home Care - Private Contractors Payment,656.68,0.00,COMMERCIAL SUPPLIER 
 20-09-2023,People - Ageing Well,Homestead Care Service,Home Care - Private Contractors Payment,1213.26,0.00,COMMERCIAL SUPPLIER 
 20-09-2023,People - Ageing Well,Homestead Care Service,Home Care - Private Contractors Payment,1150.65,0.00,COMMERCIAL SUPPLIER 
 20-09-2023,People - Ageing Well,Homestead Care Service,Home Care - Private Contractors Payment,1409.81,0.00,COMMERCIAL SUPPLIER 
 20-09-2023,People - Ageing Well,Homestead Care Service,Home Care - Private Contractors Payment,1142.64,0.00,COMMERCIAL SUPPLIER 
 20-09-2023,People - Ageing Well,Homestead Care Service,Home Care - Private Contractors Payment,936.24,0.00,COMMERCIAL SUPPLIER 
 20-09-2023,People - Ageing Well,Homestead Care Service,Home Care - Private Contractors Payment,1213.62,0.00,COMMERCIAL SUPPLIER 
 20-09-2023,People - Ageing Well,Homestead Care Service,Home Care - Private Contractors Payment,1845.55,0.00,COMMERCIAL SUPPLIER 
 20-09-2023,People - Ageing Well,Homestead Care Service,Home Care - Private Contractors Payment,1218.72,0.00,COMMERCIAL SUPPLIER 
 20-09-2023,People - Ageing Well,Homestead Care Service,Home Care - Private Contractors Payment,1240.56,0.00,COMMERCIAL SUPPLIER 
 20-09-2023,People - Ageing Well,Homestead Care Service,Home Care - Private Contractors Payment,1201.24,0.00,COMMERCIAL SUPPLIER 
 20-09-2023,People - Ageing Well,Homestead Care Service,Home Care - Private Contractors Payment,1223.08,0.00,COMMERCIAL SUPPLIER 
 20-09-2023,People - Ageing Well,Homestead Care Service,Home Care - Private Contractors Payment,1179.40,0.00,COMMERCIAL SUPPLIER 
 20-09-2023,People - Ageing Well,Homestead Care Service,Home Care - Private Contractors Payment,1190.32,0.00,COMMERCIAL SUPPLIER 
 20-09-2023,People - Ageing Well,Homestead Care Service,Home Care - Private Contractors Payment,1476.43,0.00,COMMERCIAL SUPPLIER 
 20-09-2023,People - Ageing Well,Homestead Care Service,Home Care - Private Contractors Payment,1528.12,0.00,COMMERCIAL SUPPLIER 
 20-09-2023,People - Ageing Well,Homestead Care Service,Home Care - Private Contractors Payment,969.73,0.00,COMMERCIAL SUPPLIER 
 20-09-2023,People - Ageing Well,Homestead Care Service,Home Care - Private Contractors Payment,988.30,0.00,COMMERCIAL SUPPLIER 
 20-09-2023,People - Ageing Well,Homestead Care Service,Home Care - Private Contractors Payment,1323.55,0.00,COMMERCIAL SUPPLIER 
 20-09-2023,People - Ageing Well,Homestead Care Service,Home Care - Private Contractors Payment,1198.70,0.00,COMMERCIAL SUPPLIER 
 20-09-2023,People - Ageing Well,Homestead Care Service,Home Care - Private Contractors Payment,1211.80,0.00,COMMERCIAL SUPPLIER 
 20-09-2023,People - Ageing Well,Homestead Care Service,Home Care - Private Contractors Payment,1215.08,0.00,COMMERCIAL SUPPLIER 
 20-09-2023,People - Ageing Well,Homestead Care Service,Home Care - Private Contractors Payment,1230.00,0.00,COMMERCIAL SUPPLIER 
 20-09-2023,People - Ageing Well,Homestead Care Service,Home Care - Private Contractors Payment,780.81,0.00,COMMERCIAL SUPPLIER 
 20-09-2023,People - Ageing Well,Homestead Care Service,Home Care - Private Contractors Payment,1218.72,0.00,COMMERCIAL SUPPLIER 
 20-09-2023,People - Ageing Well,Homestead Care Service,Home Care - Private Contractors Payment,1207.43,0.00,COMMERCIAL SUPPLIER 
 20-09-2023,People - Ageing Well,Homestead Care Service,Home Care - Private Contractors Payment,1223.81,0.00,COMMERCIAL SUPPLIER 
 20-09-2023,People - Ageing Well,Homestead Care Service,Home Care - Private Contractors Payment,1222.36,0.00,COMMERCIAL SUPPLIER 
 20-09-2023,People - Ageing Well,Homestead Care Service,Home Care - Private Contractors Payment,1232.55,0.00,COMMERCIAL SUPPLIER 
 20-09-2023,People - Ageing Well,Homestead Care Service,Home Care - Private Contractors Payment,611.91,0.00,COMMERCIAL SUPPLIER 
 20-09-2023,People - Ageing Well,Homestead Care Service,Home Care - Private Contractors Payment,1228.54,0.00,COMMERCIAL SUPPLIER 
 20-09-2023,People - Ageing Well,Homestead Care Service,Home Care - Private Contractors Payment,1316.27,0.00,COMMERCIAL SUPPLIER 
 20-09-2023,People - Ageing Well,Homestead Care Service,Home Care - Private Contractors Payment,1236.55,0.00,COMMERCIAL SUPPLIER 
 20-09-2023,People - Ageing Well,Homestead Care Service,Home Care - Private Contractors Payment,1294.79,0.00,COMMERCIAL SUPPLIER 
 20-09-2023,People - Ageing Well,Homestead Care Service,Home Care - Private Contractors Payment,1343.93,0.00,COMMERCIAL SUPPLIER 
 20-09-2023,People - Ageing Well,Homestead Care Service,Home Care - Private Contractors Payment,1051.63,0.00,COMMERCIAL SUPPLIER 
 20-09-2023,People - Ageing Well,Homestead Care Service,Home Care - Private Contractors Payment,1227.82,0.00,COMMERCIAL SUPPLIER 
 20-09-2023,People - Ageing Well,Homestead Care Service,Home Care - Private Contractors Payment,1228.54,0.00,COMMERCIAL SUPPLIER 
 20-09-2023,People - Ageing Well,Homestead Care Service,Home Care - Private Contractors Payment,759.70,0.00,COMMERCIAL SUPPLIER 
 20-09-2023,People - Ageing Well,Homestead Care Service,Home Care - Private Contractors Payment,1203.79,0.00,COMMERCIAL SUPPLIER 
 20-09-2023,People - Ageing Well,Homestead Care Service,Home Care - Private Contractors Payment,1235.82,0.00,COMMERCIAL SUPPLIER 
 20-09-2023,People - Ageing Well,Homestead Care Service,Home Care - Private Contractors Payment,513.26,0.00,COMMERCIAL SUPPLIER 
 20-09-2023,People - Ageing Well,Homestead Care Service,Home Care - Private Contractors Payment,1240.56,0.00,COMMERCIAL SUPPLIER 
 20-09-2023,People - Ageing Well,Homestead Care Service,Home Care - Private Contractors Payment,1286.42,0.00,COMMERCIAL SUPPLIER 
 20-09-2023,People - Ageing Well,Homestead Care Service,Home Care - Private Contractors Payment,558.40,0.00,COMMERCIAL SUPPLIER 
 20-09-2023,People - Ageing Well,Homestead Care Service,Home Care - Private Contractors Payment,1539.40,0.00,COMMERCIAL SUPPLIER 
 20-09-2023,People - Ageing Well,Homestead Care Service,Home Care - Private Contractors Payment,941.34,0.00,COMMERCIAL SUPPLIER 
 20-09-2023,People - Ageing Well,Homestead Care Service,Home Care - Private Contractors Payment,695.63,0.00,COMMERCIAL SUPPLIER 
 20-09-2023,People - Ageing Well,Homestead Care Service,Home Care - Private Contractors Payment,1285.33,0.00,COMMERCIAL SUPPLIER 
 20-09-2023,People - Ageing Well,Homestead Care Service,Home Care - Private Contractors Payment,1298.80,0.00,COMMERCIAL SUPPLIER 
 20-09-2023,People - Ageing Well,Homestead Care Service,Home Care - Private Contractors Payment,534.01,0.00,COMMERCIAL SUPPLIER 
 20-09-2023,People - Ageing Well,Homestead Care Service,Home Care - Private Contractors Payment,923.87,0.00,COMMERCIAL SUPPLIER 
 20-09-2023,People - Ageing Well,Homestead Care Service,Home Care - Private Contractors Payment,533.27,0.00,COMMERCIAL SUPPLIER 
 20-09-2023,People - Ageing Well,Homestead Care Service,Home Care - Private Contractors Payment,1148.46,0.00,COMMERCIAL SUPPLIER 
 20-09-2023,People - Ageing Well,Homestead Care Service,Home Care - Private Contractors Payment,1171.39,0.00,COMMERCIAL SUPPLIER 
 20-09-2023,People - Ageing Well,Homestead Care Service,Home Care - Private Contractors Payment,780.44,0.00,COMMERCIAL SUPPLIER 
 20-09-2023,People - Ageing Well,Homestead Care Service,Home Care - Private Contractors Payment,781.53,0.00,COMMERCIAL SUPPLIER 
 20-09-2023,People - Ageing Well,Homestead Care Service,Home Care - Private Contractors Payment,1230.73,0.00,COMMERCIAL SUPPLIER 
 20-09-2023,People - Ageing Well,Homestead Care Service,Home Care - Private Contractors Payment,1231.46,0.00,COMMERCIAL SUPPLIER 
 20-09-2023,People - Ageing Well,Homestead Care Service,Home Care - Private Contractors Payment,1075.64,0.00,COMMERCIAL SUPPLIER 
 20-09-2023,People - Ageing Well,Homestead Care Service,Home Care - Private Contractors Payment,1335.90,0.00,COMMERCIAL SUPPLIER 
 20-09-2023,People - Ageing Well,Homestead Care Service,Home Care - Private Contractors Payment,1190.68,0.00,COMMERCIAL SUPPLIER 
 20-09-2023,People - Ageing Well,Homestead Care Service,Home Care - Private Contractors Payment,1306.44,0.00,COMMERCIAL SUPPLIER 
 20-09-2023,People - Ageing Well,Homestead Care Service,Home Care - Private Contractors Payment,1015.22,0.00,COMMERCIAL SUPPLIER 
 20-09-2023,People - Ageing Well,Homestead Care Service,Home Care - Private Contractors Payment,1214.71,0.00,COMMERCIAL SUPPLIER 
 20-09-2023,People - Ageing Well,Homestead Care Service,Home Care - Private Contractors Payment,1229.64,0.00,COMMERCIAL SUPPLIER 
 20-09-2023,People - Ageing Well,Homestead Care Service,Home Care - Private Contractors Payment,1217.99,0.00,COMMERCIAL SUPPLIER 
 20-09-2023,People - Ageing Well,Homestead Care Service,Home Care - Private Contractors Payment,1208.52,0.00,COMMERCIAL SUPPLIER 
 20-09-2023,People - Ageing Well,Homestead Care Service,Home Care - Private Contractors Payment,1218.72,0.00,COMMERCIAL SUPPLIER 
 20-09-2023,People - Ageing Well,Homestead Care Service,Home Care - Private Contractors Payment,795.00,0.00,COMMERCIAL SUPPLIER 
 20-09-2023,People - Ageing Well,Homestead Care Service,Home Care - Private Contractors Payment,1032.70,0.00,COMMERCIAL SUPPLIER 
 20-09-2023,People - Ageing Well,Homestead Care Service,Home Care - Private Contractors Payment,559.49,0.00,COMMERCIAL SUPPLIER 
 20-09-2023,People - Ageing Well,Homestead Care Service,Home Care - Private Contractors Payment,560.22,0.00,COMMERCIAL SUPPLIER 
 20-09-2023,People - Ageing Well,Homestead Care Service,Home Care - Private Contractors Payment,645.03,0.00,COMMERCIAL SUPPLIER 
 20-09-2023,People - Ageing Well,Homestead Care Service,Home Care - Private Contractors Payment,975.92,0.00,COMMERCIAL SUPPLIER 
 20-09-2023,People - Ageing Well,Homestead Care Service,Home Care - Private Contractors Payment,1265.31,0.00,COMMERCIAL SUPPLIER 
 20-09-2023,People - Ageing Well,Homestead Care Service,Home Care - Private Contractors Payment,1390.89,0.00,COMMERCIAL SUPPLIER 
 20-09-2023,People - Ageing Well,Homestead Care Service,Home Care - Private Contractors Payment,1224.18,0.00,COMMERCIAL SUPPLIER 
 20-09-2023,People - Ageing Well,Homestead Care Service,Home Care - Private Contractors Payment,1362.13,0.00,COMMERCIAL SUPPLIER 
 20-09-2023,People - Ageing Well,Homestead Care Service,Home Care - Private Contractors Payment,1013.05,0.00,COMMERCIAL SUPPLIER 
 20-09-2023,People - Ageing Well,Homestead Care Service,Home Care - Private Contractors Payment,780.08,0.00,COMMERCIAL SUPPLIER 
 20-09-2023,People - Ageing Well,Homestead Care Service,Home Care - Private Contractors Payment,1296.25,0.00,COMMERCIAL SUPPLIER 
 20-09-2023,People - Ageing Well,Homestead Care Service,Home Care - Private Contractors Payment,1307.17,0.00,COMMERCIAL SUPPLIER 
 20-09-2023,People - Ageing Well,Homestead Care Service,Home Care - Private Contractors Payment,1320.27,0.00,COMMERCIAL SUPPLIER 
 20-09-2023,People - Ageing Well,Homestead Care Service,Home Care - Private Contractors Payment,1331.92,0.00,COMMERCIAL SUPPLIER 
 20-09-2023,People - Ageing Well,Homestead Care Service,Home Care - Private Contractors Payment,1294.07,0.00,COMMERCIAL SUPPLIER 
 20-09-2023,People - Ageing Well,Homestead Care Service,Home Care - Private Contractors Payment,1310.08,0.00,COMMERCIAL SUPPLIER 
 20-09-2023,People - Ageing Well,Homestead Care Service,Home Care - Private Contractors Payment,657.04,0.00,COMMERCIAL SUPPLIER 
 20-09-2023,People - Ageing Well,Homestead Care Service,Home Care - Private Contractors Payment,1269.31,0.00,COMMERCIAL SUPPLIER 
 20-09-2023,People - Ageing Well,Homestead Care Service,Home Care - Private Contractors Payment,1283.14,0.00,COMMERCIAL SUPPLIER 
 20-09-2023,People - Ageing Well,Homestead Care Service,Home Care - Private Contractors Payment,604.26,0.00,COMMERCIAL SUPPLIER 
 20-09-2023,People - Ageing Well,Homestead Care Service,Home Care - Private Contractors Payment,612.27,0.00,COMMERCIAL SUPPLIER 
 20-09-2023,People - Ageing Well,Homestead Care Service,Home Care - Private Contractors Payment,1325.00,0.00,COMMERCIAL SUPPLIER 
 20-09-2023,People - Ageing Well,Homestead Care Service,Home Care - Private Contractors Payment,1275.50,0.00,COMMERCIAL SUPPLIER 
 20-09-2023,People - Ageing Well,Homestead Care Service,Home Care - Private Contractors Payment,1300.98,0.00,COMMERCIAL SUPPLIER 
 20-09-2023,People - Ageing Well,Homestead Care Service,Home Care - Private Contractors Payment,595.89,0.00,COMMERCIAL SUPPLIER 
 20-09-2023,People - Ageing Well,All Therapy Solutions Ltd,Occupational Health,2220.00,0.00,COMMERCIAL SUPPLIER 
 20-09-2023,People - Ageing Well,Matrix SCM Ltd,Agency Staff,1436.42,0.00,COMMERCIAL SUPPLIER 
 20-09-2023,People - Ageing Well,Matrix SCM Ltd,Agency Staff,1241.28,0.00,COMMERCIAL SUPPLIER 
 20-09-2023,People - Ageing Well,Matrix SCM Ltd,Agency Staff,1241.28,0.00,COMMERCIAL SUPPLIER 
 20-09-2023,People - Ageing Well,Matrix SCM Ltd,Agency Staff,1241.28,0.00,COMMERCIAL SUPPLIER 
 20-09-2023,People - Ageing Well,Matrix SCM Ltd,Agency Staff,1241.28,0.00,COMMERCIAL SUPPLIER 
 20-09-2023,People - Ageing Well,Matrix SCM Ltd,Agency Staff,1241.28,0.00,COMMERCIAL SUPPLIER 
 20-09-2023,People - Ageing Well,Matrix SCM Ltd,Agency Staff,991.30,0.00,COMMERCIAL SUPPLIER 
 20-09-2023,People - Ageing Well,Matrix SCM Ltd,Agency Staff,991.30,0.00,COMMERCIAL SUPPLIER 
 20-09-2023,People - Ageing Well,Matrix SCM Ltd,Agency Staff,1384.58,0.00,COMMERCIAL SUPPLIER 
 20-09-2023,People - Ageing Well,Matrix SCM Ltd,Agency Staff,1209.60,0.00,COMMERCIAL SUPPLIER 
 20-09-2023,People - Ageing Well,Matrix SCM Ltd,Agency Staff,1241.28,0.00,COMMERCIAL SUPPLIER 
 20-09-2023,People - Ageing Well,Matrix SCM Ltd,Agency Staff,1517.94,0.00,COMMERCIAL SUPPLIER 
 20-09-2023,People - Ageing Well,Matrix SCM Ltd,Agency Staff,1241.28,0.00,COMMERCIAL SUPPLIER 
 20-09-2023,People - Ageing Well,Matrix SCM Ltd,Agency Staff,1241.28,0.00,COMMERCIAL SUPPLIER 
 20-09-2023,People - Ageing Well,Matrix SCM Ltd,Agency Staff,1273.31,0.00,COMMERCIAL SUPPLIER 
 20-09-2023,People - Ageing Well,Matrix SCM Ltd,Agency Staff,1274.05,0.00,COMMERCIAL SUPPLIER 
 20-09-2023,People - Ageing Well,Matrix SCM Ltd,Agency Staff,1241.28,0.00,COMMERCIAL SUPPLIER 
 20-09-2023,People - Ageing Well,Matrix SCM Ltd,Agency Staff,695.17,0.00,COMMERCIAL SUPPLIER 
 20-09-2023,People - Ageing Well,Matrix SCM Ltd,Agency Staff,535.70,0.00,COMMERCIAL SUPPLIER 
 20-09-2023,People - Ageing Well,Matrix SCM Ltd,Agency Staff,1283.04,0.00,COMMERCIAL SUPPLIER 
 20-09-2023,People - Ageing Well,Matrix SCM Ltd,Agency Staff,507.38,0.00,COMMERCIAL SUPPLIER 
 20-09-2023,People - Ageing Well,Matrix SCM Ltd,Agency Staff,1389.60,0.00,COMMERCIAL SUPPLIER 
 20-09-2023,People - Ageing Well,Matrix SCM Ltd,Agency Staff,710.27,0.00,COMMERCIAL SUPPLIER 
 20-09-2023,People - Ageing Well,Matrix SCM Ltd,Agency Staff,1277.28,0.00,COMMERCIAL SUPPLIER 
 20-09-2023,People - Ageing Well,Matrix SCM Ltd,Agency Staff,790.93,0.00,COMMERCIAL SUPPLIER 
 20-09-2023,People - Ageing Well,Matrix SCM Ltd,Agency Staff,1241.28,0.00,COMMERCIAL SUPPLIER 
 20-09-2023,People - Ageing Well,Matrix SCM Ltd,Agency Staff,1395.73,0.00,COMMERCIAL SUPPLIER 
 20-09-2023,People - Ageing Well,Matrix SCM Ltd,Agency Staff,1169.28,0.00,COMMERCIAL SUPPLIER 
 20-09-2023,People - Ageing Well,Matrix SCM Ltd,Agency Staff,1241.28,0.00,COMMERCIAL SUPPLIER 
 20-09-2023,People - Ageing Well,Matrix SCM Ltd,Agency Staff,1241.28,0.00,COMMERCIAL SUPPLIER 
 20-09-2023,People - Ageing Well,Matrix SCM Ltd,Agency Staff,1169.28,0.00,COMMERCIAL SUPPLIER 
 20-09-2023,People - Ageing Well,Matrix SCM Ltd,Agency Staff,1253.54,0.00,COMMERCIAL SUPPLIER 
 20-09-2023,People - Ageing Well,Matrix SCM Ltd,Agency Staff,1275.49,0.00,COMMERCIAL SUPPLIER 
 20-09-2023,People - Ageing Well,Matrix SCM Ltd,Agency Staff,1241.28,0.00,COMMERCIAL SUPPLIER 
 20-09-2023,People - Ageing Well,Matrix SCM Ltd,Agency Staff,1286.60,0.00,COMMERCIAL SUPPLIER 
 20-09-2023,People - Ageing Well,Matrix SCM Ltd,Agency Staff,1241.28,0.00,COMMERCIAL SUPPLIER 
 20-09-2023,People - Ageing Well,Matrix SCM Ltd,Agency Staff,1385.28,0.00,COMMERCIAL SUPPLIER 
 20-09-2023,People - Ageing Well,Matrix SCM Ltd,Agency Staff,1225.69,0.00,COMMERCIAL SUPPLIER 
 20-09-2023,People - Ageing Well,Matrix SCM Ltd,Agency Staff,1213.57,0.00,COMMERCIAL SUPPLIER 
 20-09-2023,People - Ageing Well,Matrix SCM Ltd,Agency Staff,1209.60,0.00,COMMERCIAL SUPPLIER 
 20-09-2023,People - Ageing Well,Matrix SCM Ltd,Agency Staff,1034.40,0.00,COMMERCIAL SUPPLIER 
 20-09-2023,People - Ageing Well,Matrix SCM Ltd,Agency Staff,1288.45,0.00,COMMERCIAL SUPPLIER 
 20-09-2023,People - Ageing Well,Teebollz Consulting Ltd,Home Care - Private Contractors Payment,695.00,0.00,COMMERCIAL SUPPLIER 
 21-09-2023,People - Ageing Well,Anytime Care 2020_a,Home Care - Private Contractors Payment,1223.81,0.00,COMMERCIAL SUPPLIER 
 21-09-2023,People - Ageing Well,Anytime Care 2020_a,Home Care - Private Contractors Payment,1226.00,0.00,COMMERCIAL SUPPLIER 
 21-09-2023,People - Ageing Well,Anytime Care 2020_a,Home Care - Private Contractors Payment,1223.08,0.00,COMMERCIAL SUPPLIER 
 21-09-2023,People - Ageing Well,Anytime Care 2020_a,Home Care - Private Contractors Payment,1321.73,0.00,COMMERCIAL SUPPLIER 
 21-09-2023,People - Ageing Well,Anytime Care 2020_a,Home Care - Private Contractors Payment,689.08,0.00,COMMERCIAL SUPPLIER 
 21-09-2023,People - Ageing Well,Anytime Care 2020_a,Home Care - Private Contractors Payment,655.59,0.00,COMMERCIAL SUPPLIER 
 21-09-2023,People - Ageing Well,Anytime Care 2020_a,Home Care - Private Contractors Payment,1247.84,0.00,COMMERCIAL SUPPLIER 
 21-09-2023,People - Ageing Well,Anytime Care 2020_a,Home Care - Private Contractors Payment,1113.88,0.00,COMMERCIAL SUPPLIER 
 21-09-2023,People - Ageing Well,Anytime Care 2020_a,Home Care - Private Contractors Payment,1005.40,0.00,COMMERCIAL SUPPLIER 
 21-09-2023,People - Ageing Well,Anytime Care 2020_a,Home Care - Private Contractors Payment,658.14,0.00,COMMERCIAL SUPPLIER 
 21-09-2023,People - Ageing Well,Anytime Care 2020_a,Home Care - Private Contractors Payment,695.63,0.00,COMMERCIAL SUPPLIER 
 21-09-2023,People - Ageing Well,Anytime Care 2020_a,Home Care - Private Contractors Payment,1050.18,0.00,COMMERCIAL SUPPLIER 
 21-09-2023,People - Ageing Well,Anytime Care 2020_a,Home Care - Private Contractors Payment,1050.18,0.00,COMMERCIAL SUPPLIER 
 21-09-2023,People - Ageing Well,Anytime Care 2020_a,Home Care - Private Contractors Payment,918.41,0.00,COMMERCIAL SUPPLIER 
 21-09-2023,People - Ageing Well,Anytime Care 2020_a,Home Care - Private Contractors Payment,673.78,0.00,COMMERCIAL SUPPLIER 
 21-09-2023,People - Ageing Well,Anytime Care 2020_a,Home Care - Private Contractors Payment,611.54,0.00,COMMERCIAL SUPPLIER 
 21-09-2023,People - Ageing Well,Anytime Care 2020_a,Home Care - Private Contractors Payment,611.54,0.00,COMMERCIAL SUPPLIER 
 21-09-2023,People - Ageing Well,Anytime Care 2020_a,Home Care - Private Contractors Payment,1269.68,0.00,COMMERCIAL SUPPLIER 
 21-09-2023,People - Ageing Well,Anytime Care 2020_a,Home Care - Private Contractors Payment,1319.18,0.00,COMMERCIAL SUPPLIER 
 21-09-2023,People - Ageing Well,Anytime Care 2020_a,Home Care - Private Contractors Payment,657.77,0.00,COMMERCIAL SUPPLIER 
 21-09-2023,People - Ageing Well,Anytime Care 2020_a,Home Care - Private Contractors Payment,1041.07,0.00,COMMERCIAL SUPPLIER 
 21-09-2023,People - Ageing Well,Anytime Care 2020_a,Home Care - Private Contractors Payment,656.68,0.00,COMMERCIAL SUPPLIER 
 21-09-2023,People - Ageing Well,Anytime Care 2020_a,Home Care - Private Contractors Payment,920.95,0.00,COMMERCIAL SUPPLIER 
 21-09-2023,People - Ageing Well,Anytime Care 2020_a,Home Care - Private Contractors Payment,613.73,0.00,COMMERCIAL SUPPLIER 
 21-09-2023,People - Ageing Well,Anytime Care 2020_a,Home Care - Private Contractors Payment,970.82,0.00,COMMERCIAL SUPPLIER 
 21-09-2023,People - Ageing Well,Anytime Care 2020_a,Home Care - Private Contractors Payment,1048.72,0.00,COMMERCIAL SUPPLIER 
 21-09-2023,People - Ageing Well,Anytime Care 2020_a,Home Care - Private Contractors Payment,1049.81,0.00,COMMERCIAL SUPPLIER 
 21-09-2023,People - Ageing Well,Anytime Care 2020_a,Home Care - Private Contractors Payment,1146.64,0.00,COMMERCIAL SUPPLIER 
 21-09-2023,People - Ageing Well,Anytime Care 2020_a,Home Care - Private Contractors Payment,1147.37,0.00,COMMERCIAL SUPPLIER 
 21-09-2023,People - Ageing Well,Anytime Care 2020_a,Home Care - Private Contractors Payment,1229.64,0.00,COMMERCIAL SUPPLIER 
 21-09-2023,People - Ageing Well,Anytime Care 2020_a,Home Care - Private Contractors Payment,1230.73,0.00,COMMERCIAL SUPPLIER 
 21-09-2023,People - Ageing Well,Anytime Care 2020_a,Home Care - Private Contractors Payment,612.27,0.00,COMMERCIAL SUPPLIER 
 21-09-2023,People - Ageing Well,Anytime Care 2020_a,Home Care - Private Contractors Payment,1230.36,0.00,COMMERCIAL SUPPLIER 
 21-09-2023,People - Ageing Well,Anytime Care 2020_a,Home Care - Private Contractors Payment,910.76,0.00,COMMERCIAL SUPPLIER 
 21-09-2023,People - Ageing Well,Anytime Care 2020_a,Home Care - Private Contractors Payment,875.42,0.00,COMMERCIAL SUPPLIER 
 21-09-2023,People - Ageing Well,Anytime Care 2020_a,Home Care - Private Contractors Payment,920.95,0.00,COMMERCIAL SUPPLIER 
 21-09-2023,People - Ageing Well,Anytime Care 2020_a,Home Care - Private Contractors Payment,1229.27,0.00,COMMERCIAL SUPPLIER 
 21-09-2023,People - Ageing Well,Anytime Care 2020_a,Home Care - Private Contractors Payment,1229.27,0.00,COMMERCIAL SUPPLIER 
 21-09-2023,People - Ageing Well,Anytime Care 2020_a,Home Care - Private Contractors Payment,928.60,0.00,COMMERCIAL SUPPLIER 
 21-09-2023,People - Ageing Well,Prepaid Financial Services 266 Corporate,Private Contractors Payment - Other,500.00,0.00,COMMERCIAL SUPPLIER 
 21-09-2023,People - Ageing Well,Prepaid Financial Services 266 Corporate,General Office Expenses,500.00,0.00,COMMERCIAL SUPPLIER 
 21-09-2023,People - Ageing Well,Lakefield Enterprises Ltd t/a R J Bowyer Building Services,Maintenance - Equipment Furniture And Materials,650.00,0.00,COMMERCIAL SUPPLIER 
 21-09-2023,People - Ageing Well,Essex Kilns Ltd,Purchase - Equipment Furniture And Materials,1670.00,0.00,COMMERCIAL SUPPLIER 
 21-09-2023,People - Ageing Well,Prior Care Ltd_a,Home Care - Private Contractors Payment,1083.30,0.00,COMMERCIAL SUPPLIER 
 21-09-2023,People - Ageing Well,Prior Care Ltd_a,Home Care - Private Contractors Payment,1312.99,0.00,COMMERCIAL SUPPLIER 
 21-09-2023,People - Ageing Well,Prior Care Ltd_a,Home Care - Private Contractors Payment,540.56,0.00,COMMERCIAL SUPPLIER 
 21-09-2023,People - Ageing Well,Prior Care Ltd_a,Home Care - Private Contractors Payment,1223.08,0.00,COMMERCIAL SUPPLIER 
 21-09-2023,People - Ageing Well,Prior Care Ltd_a,Home Care - Private Contractors Payment,1223.08,0.00,COMMERCIAL SUPPLIER 
 21-09-2023,People - Ageing Well,Prior Care Ltd_a,Home Care - Private Contractors Payment,524.18,0.00,COMMERCIAL SUPPLIER 
 21-09-2023,People - Ageing Well,Prior Care Ltd_a,Home Care - Private Contractors Payment,1270.04,0.00,COMMERCIAL SUPPLIER 
 21-09-2023,People - Ageing Well,Prior Care Ltd_a,Home Care - Private Contractors Payment,925.68,0.00,COMMERCIAL SUPPLIER 
 21-09-2023,People - Ageing Well,Prior Care Ltd_a,Home Care - Private Contractors Payment,721.11,0.00,COMMERCIAL SUPPLIER 
 21-09-2023,People - Ageing Well,Prior Care Ltd_a,Home Care - Private Contractors Payment,698.90,0.00,COMMERCIAL SUPPLIER 
 21-09-2023,People - Ageing Well,Prior Care Ltd_a,Home Care - Private Contractors Payment,1364.69,0.00,COMMERCIAL SUPPLIER 
 21-09-2023,People - Ageing Well,Prior Care Ltd_a,Home Care - Private Contractors Payment,1009.77,0.00,COMMERCIAL SUPPLIER 
 21-09-2023,People - Ageing Well,Prior Care Ltd_a,Home Care - Private Contractors Payment,1031.61,0.00,COMMERCIAL SUPPLIER 
 21-09-2023,People - Ageing Well,Prior Care Ltd_a,Home Care - Private Contractors Payment,1345.39,0.00,COMMERCIAL SUPPLIER 
 21-09-2023,People - Ageing Well,Prior Care Ltd_a,Home Care - Private Contractors Payment,873.63,0.00,COMMERCIAL SUPPLIER 
 21-09-2023,People - Ageing Well,Prior Care Ltd_a,Home Care - Private Contractors Payment,1185.23,0.00,COMMERCIAL SUPPLIER 
 21-09-2023,People - Ageing Well,Prior Care Ltd_a,Home Care - Private Contractors Payment,1209.62,0.00,COMMERCIAL SUPPLIER 
 21-09-2023,People - Ageing Well,Prior Care Ltd_a,Home Care - Private Contractors Payment,1259.48,0.00,COMMERCIAL SUPPLIER 
 21-09-2023,People - Ageing Well,Prior Care Ltd_a,Home Care - Private Contractors Payment,655.22,0.00,COMMERCIAL SUPPLIER 
 21-09-2023,People - Ageing Well,Prior Care Ltd_a,Home Care - Private Contractors Payment,626.10,0.00,COMMERCIAL SUPPLIER 
 21-09-2023,People - Ageing Well,Prior Care Ltd_a,Home Care - Private Contractors Payment,646.85,0.00,COMMERCIAL SUPPLIER 
 21-09-2023,People - Ageing Well,Prior Care Ltd_a,Home Care - Private Contractors Payment,1481.16,0.00,COMMERCIAL SUPPLIER 
 21-09-2023,People - Ageing Well,Prior Care Ltd_a,Home Care - Private Contractors Payment,720.75,0.00,COMMERCIAL SUPPLIER 
 22-09-2023,People - Ageing Well,Independant Community Support Ltd T/A Heaton Lodge,Home Care - Private Contractors Payment,6400.00,0.00,COMMERCIAL SUPPLIER 
 22-09-2023,People - Ageing Well,Lodge Group Care UK Ltd,Home Care - Private Contractors Payment,621.73,0.00,COMMERCIAL SUPPLIER 
 22-09-2023,People - Ageing Well,Lodge Group Care UK Ltd,Home Care - Private Contractors Payment,612.27,0.00,COMMERCIAL SUPPLIER 
 22-09-2023,People - Ageing Well,Lodge Group Care UK Ltd,Home Care - Private Contractors Payment,612.63,0.00,COMMERCIAL SUPPLIER 
 22-09-2023,People - Ageing Well,Lodge Group Care UK Ltd,Home Care - Private Contractors Payment,1213.26,0.00,COMMERCIAL SUPPLIER 
 22-09-2023,People - Ageing Well,Lodge Group Care UK Ltd,Home Care - Private Contractors Payment,1213.26,0.00,COMMERCIAL SUPPLIER 
 22-09-2023,People - Ageing Well,Lodge Group Care UK Ltd,Home Care - Private Contractors Payment,601.71,0.00,COMMERCIAL SUPPLIER 
 22-09-2023,People - Ageing Well,Lodge Group Care UK Ltd,Home Care - Private Contractors Payment,705.09,0.00,COMMERCIAL SUPPLIER 
 22-09-2023,People - Ageing Well,Lodge Group Care UK Ltd,Home Care - Private Contractors Payment,590.79,0.00,COMMERCIAL SUPPLIER 
 22-09-2023,People - Ageing Well,Lodge Group Care UK Ltd,Home Care - Private Contractors Payment,605.35,0.00,COMMERCIAL SUPPLIER 
 22-09-2023,People - Ageing Well,Lodge Group Care UK Ltd,Home Care - Private Contractors Payment,946.43,0.00,COMMERCIAL SUPPLIER 
 22-09-2023,People - Ageing Well,Lodge Group Care UK Ltd,Home Care - Private Contractors Payment,1236.19,0.00,COMMERCIAL SUPPLIER 
 22-09-2023,People - Ageing Well,Lodge Group Care UK Ltd,Home Care - Private Contractors Payment,1316.63,0.00,COMMERCIAL SUPPLIER 
 22-09-2023,People - Ageing Well,Lodge Group Care UK Ltd,Home Care - Private Contractors Payment,924.59,0.00,COMMERCIAL SUPPLIER 
 22-09-2023,People - Ageing Well,Lodge Group Care UK Ltd,Home Care - Private Contractors Payment,919.86,0.00,COMMERCIAL SUPPLIER 
 22-09-2023,People - Ageing Well,Lodge Group Care UK Ltd,Home Care - Private Contractors Payment,1172.84,0.00,COMMERCIAL SUPPLIER 
 22-09-2023,People - Ageing Well,Lodge Group Care UK Ltd,Home Care - Private Contractors Payment,918.77,0.00,COMMERCIAL SUPPLIER 
 22-09-2023,People - Ageing Well,Lodge Group Care UK Ltd,Home Care - Private Contractors Payment,611.54,0.00,COMMERCIAL SUPPLIER 
 22-09-2023,People - Ageing Well,Lodge Group Care UK Ltd,Home Care - Private Contractors Payment,1067.29,0.00,COMMERCIAL SUPPLIER 
 22-09-2023,People - Ageing Well,Lodge Group Care UK Ltd,Home Care - Private Contractors Payment,905.66,0.00,COMMERCIAL SUPPLIER 
 22-09-2023,People - Ageing Well,Lodge Group Care UK Ltd,Home Care - Private Contractors Payment,846.69,0.00,COMMERCIAL SUPPLIER 
 22-09-2023,People - Ageing Well,Lodge Group Care UK Ltd,Home Care - Private Contractors Payment,560.22,0.00,COMMERCIAL SUPPLIER 
 22-09-2023,People - Ageing Well,Lodge Group Care UK Ltd,Home Care - Private Contractors Payment,1275.86,0.00,COMMERCIAL SUPPLIER 
 22-09-2023,People - Ageing Well,Lodge Group Care UK Ltd,Home Care - Private Contractors Payment,1229.64,0.00,COMMERCIAL SUPPLIER 
 22-09-2023,People - Ageing Well,Lodge Group Care UK Ltd,Home Care - Private Contractors Payment,620.64,0.00,COMMERCIAL SUPPLIER 
 22-09-2023,People - Ageing Well,Lodge Group Care UK Ltd,Home Care - Private Contractors Payment,524.18,0.00,COMMERCIAL SUPPLIER 
 22-09-2023,People - Ageing Well,Lodge Group Care UK Ltd,Home Care - Private Contractors Payment,932.24,0.00,COMMERCIAL SUPPLIER 
 22-09-2023,People - Ageing Well,Lodge Group Care UK Ltd,Home Care - Private Contractors Payment,582.06,0.00,COMMERCIAL SUPPLIER 
 22-09-2023,People - Ageing Well,Lodge Group Care UK Ltd,Home Care - Private Contractors Payment,600.62,0.00,COMMERCIAL SUPPLIER 
 22-09-2023,People - Ageing Well,Lodge Group Care UK Ltd,Home Care - Private Contractors Payment,619.91,0.00,COMMERCIAL SUPPLIER 
 22-09-2023,People - Ageing Well,Lodge Group Care UK Ltd,Home Care - Private Contractors Payment,535.10,0.00,COMMERCIAL SUPPLIER 
 22-09-2023,People - Ageing Well,Lodge Group Care UK Ltd,Home Care - Private Contractors Payment,1247.11,0.00,COMMERCIAL SUPPLIER 
 22-09-2023,People - Ageing Well,Lodge Group Care UK Ltd,Home Care - Private Contractors Payment,1854.99,0.00,COMMERCIAL SUPPLIER 
 22-09-2023,People - Ageing Well,Lodge Group Care UK Ltd,Home Care - Private Contractors Payment,912.95,0.00,COMMERCIAL SUPPLIER 
 22-09-2023,People - Ageing Well,Lodge Group Care UK Ltd,Home Care - Private Contractors Payment,589.70,0.00,COMMERCIAL SUPPLIER 
 22-09-2023,People - Ageing Well,Lodge Group Care UK Ltd,Home Care - Private Contractors Payment,589.70,0.00,COMMERCIAL SUPPLIER 
 22-09-2023,People - Ageing Well,Lodge Group Care UK Ltd,Home Care - Private Contractors Payment,1227.82,0.00,COMMERCIAL SUPPLIER 
 22-09-2023,People - Ageing Well,Lodge Group Care UK Ltd,Home Care - Private Contractors Payment,533.26,0.00,COMMERCIAL SUPPLIER 
 22-09-2023,People - Ageing Well,Lodge Group Care UK Ltd,Home Care - Private Contractors Payment,1285.33,0.00,COMMERCIAL SUPPLIER 
 22-09-2023,People - Ageing Well,Lodge Group Care UK Ltd,Home Care - Private Contractors Payment,1788.02,0.00,COMMERCIAL SUPPLIER 
 22-09-2023,People - Ageing Well,Lodge Group Care UK Ltd,Home Care - Private Contractors Payment,611.91,0.00,COMMERCIAL SUPPLIER 
 22-09-2023,People - Ageing Well,Lodge Group Care UK Ltd,Home Care - Private Contractors Payment,1379.24,0.00,COMMERCIAL SUPPLIER 
 22-09-2023,People - Ageing Well,Lodge Group Care UK Ltd,Home Care - Private Contractors Payment,920.23,0.00,COMMERCIAL SUPPLIER 
 22-09-2023,People - Ageing Well,Lodge Group Care UK Ltd,Home Care - Private Contractors Payment,1232.55,0.00,COMMERCIAL SUPPLIER 
 22-09-2023,People - Ageing Well,Lodge Group Care UK Ltd,Home Care - Private Contractors Payment,1230.73,0.00,COMMERCIAL SUPPLIER 
 22-09-2023,People - Ageing Well,Lodge Group Care UK Ltd,Home Care - Private Contractors Payment,1223.81,0.00,COMMERCIAL SUPPLIER 
 22-09-2023,People - Ageing Well,Lodge Group Care UK Ltd,Home Care - Private Contractors Payment,839.76,0.00,COMMERCIAL SUPPLIER 
 22-09-2023,People - Ageing Well,Lodge Group Care UK Ltd,Home Care - Private Contractors Payment,1302.44,0.00,COMMERCIAL SUPPLIER 
 22-09-2023,People - Ageing Well,Lodge Group Care UK Ltd,Home Care - Private Contractors Payment,1337.38,0.00,COMMERCIAL SUPPLIER 
 22-09-2023,People - Ageing Well,Lodge Group Care UK Ltd,Home Care - Private Contractors Payment,611.54,0.00,COMMERCIAL SUPPLIER 
 22-09-2023,People - Ageing Well,Lodge Group Care UK Ltd,Home Care - Private Contractors Payment,611.54,0.00,COMMERCIAL SUPPLIER 
 22-09-2023,People - Ageing Well,Lodge Group Care UK Ltd,Home Care - Private Contractors Payment,920.59,0.00,COMMERCIAL SUPPLIER 
 22-09-2023,People - Ageing Well,Lodge Group Care UK Ltd,Home Care - Private Contractors Payment,918.04,0.00,COMMERCIAL SUPPLIER 
 22-09-2023,People - Ageing Well,Lodge Group Care UK Ltd,Home Care - Private Contractors Payment,1029.42,0.00,COMMERCIAL SUPPLIER 
 22-09-2023,People - Ageing Well,Lodge Group Care UK Ltd,Home Care - Private Contractors Payment,1150.27,0.00,COMMERCIAL SUPPLIER 
 22-09-2023,People - Ageing Well,Lodge Group Care UK Ltd,Home Care - Private Contractors Payment,1262.03,0.00,COMMERCIAL SUPPLIER 
 22-09-2023,People - Ageing Well,Lodge Group Care UK Ltd,Home Care - Private Contractors Payment,1234.00,0.00,COMMERCIAL SUPPLIER 
 22-09-2023,People - Ageing Well,Lodge Group Care UK Ltd,Home Care - Private Contractors Payment,1234.00,0.00,COMMERCIAL SUPPLIER 
 22-09-2023,People - Ageing Well,Lodge Group Care UK Ltd,Home Care - Private Contractors Payment,902.39,0.00,COMMERCIAL SUPPLIER 
 22-09-2023,People - Ageing Well,Lodge Group Care UK Ltd,Home Care - Private Contractors Payment,920.59,0.00,COMMERCIAL SUPPLIER 
 22-09-2023,People - Ageing Well,Lodge Group Care UK Ltd,Home Care - Private Contractors Payment,1223.81,0.00,COMMERCIAL SUPPLIER 
 22-09-2023,People - Ageing Well,Lodge Group Care UK Ltd,Home Care - Private Contractors Payment,1231.82,0.00,COMMERCIAL SUPPLIER 
 22-09-2023,People - Ageing Well,Lodge Group Care UK Ltd,Home Care - Private Contractors Payment,925.32,0.00,COMMERCIAL SUPPLIER 
 22-09-2023,People - Ageing Well,Lodge Group Care UK Ltd,Home Care - Private Contractors Payment,936.61,0.00,COMMERCIAL SUPPLIER 
 22-09-2023,People - Ageing Well,Lodge Group Care UK Ltd,Home Care - Private Contractors Payment,611.54,0.00,COMMERCIAL SUPPLIER 
 22-09-2023,People - Ageing Well,Lodge Group Care UK Ltd,Home Care - Private Contractors Payment,611.54,0.00,COMMERCIAL SUPPLIER 
 22-09-2023,People - Ageing Well,Lodge Group Care UK Ltd,Home Care - Private Contractors Payment,1223.08,0.00,COMMERCIAL SUPPLIER 
 22-09-2023,People - Ageing Well,Lodge Group Care UK Ltd,Home Care - Private Contractors Payment,1339.93,0.00,COMMERCIAL SUPPLIER 
 22-09-2023,People - Ageing Well,Lodge Group Care UK Ltd,Home Care - Private Contractors Payment,948.62,0.00,COMMERCIAL SUPPLIER 
 22-09-2023,People - Ageing Well,Lodge Group Care UK Ltd,Home Care - Private Contractors Payment,1244.56,0.00,COMMERCIAL SUPPLIER 
 22-09-2023,People - Ageing Well,Lodge Group Care UK Ltd,Home Care - Private Contractors Payment,1247.47,0.00,COMMERCIAL SUPPLIER 
 22-09-2023,People - Ageing Well,Lodge Group Care UK Ltd,Home Care - Private Contractors Payment,611.54,0.00,COMMERCIAL SUPPLIER 
 22-09-2023,People - Ageing Well,Lodge Group Care UK Ltd,Home Care - Private Contractors Payment,1157.56,0.00,COMMERCIAL SUPPLIER 
 22-09-2023,People - Ageing Well,Lodge Group Care UK Ltd,Home Care - Private Contractors Payment,910.40,0.00,COMMERCIAL SUPPLIER 
 22-09-2023,People - Ageing Well,Lodge Group Care UK Ltd,Home Care - Private Contractors Payment,692.71,0.00,COMMERCIAL SUPPLIER 
 22-09-2023,People - Ageing Well,Lodge Group Care UK Ltd,Home Care - Private Contractors Payment,1224.18,0.00,COMMERCIAL SUPPLIER 
 22-09-2023,People - Ageing Well,Lodge Group Care UK Ltd,Home Care - Private Contractors Payment,1264.94,0.00,COMMERCIAL SUPPLIER 
 22-09-2023,People - Ageing Well,Lodge Group Care UK Ltd,Home Care - Private Contractors Payment,1232.18,0.00,COMMERCIAL SUPPLIER 
 22-09-2023,People - Ageing Well,Lodge Group Care UK Ltd,Home Care - Private Contractors Payment,1224.18,0.00,COMMERCIAL SUPPLIER 
 22-09-2023,People - Ageing Well,Lodge Group Care UK Ltd,Home Care - Private Contractors Payment,1958.37,0.00,COMMERCIAL SUPPLIER 
 22-09-2023,People - Ageing Well,Lodge Group Care UK Ltd,Home Care - Private Contractors Payment,906.39,0.00,COMMERCIAL SUPPLIER 
 22-09-2023,People - Ageing Well,Lodge Group Care UK Ltd,Home Care - Private Contractors Payment,520.54,0.00,COMMERCIAL SUPPLIER 
 22-09-2023,People - Ageing Well,Lodge Group Care UK Ltd,Home Care - Private Contractors Payment,1223.08,0.00,COMMERCIAL SUPPLIER 
 22-09-2023,People - Ageing Well,Lodge Group Care UK Ltd,Home Care - Private Contractors Payment,1010.86,0.00,COMMERCIAL SUPPLIER 
 22-09-2023,People - Ageing Well,Lodge Group Care UK Ltd,Home Care - Private Contractors Payment,1223.08,0.00,COMMERCIAL SUPPLIER 
 22-09-2023,People - Ageing Well,Lodge Group Care UK Ltd,Home Care - Private Contractors Payment,936.97,0.00,COMMERCIAL SUPPLIER 
 22-09-2023,People - Ageing Well,Lodge Group Care UK Ltd,Home Care - Private Contractors Payment,1224.90,0.00,COMMERCIAL SUPPLIER 
 22-09-2023,People - Ageing Well,Lodge Group Care UK Ltd,Home Care - Private Contractors Payment,1298.07,0.00,COMMERCIAL SUPPLIER 
 22-09-2023,People - Ageing Well,Lodge Group Care UK Ltd,Home Care - Private Contractors Payment,1617.28,0.00,COMMERCIAL SUPPLIER 
 22-09-2023,People - Ageing Well,Lodge Group Care UK Ltd,Home Care - Private Contractors Payment,617.00,0.00,COMMERCIAL SUPPLIER 
 22-09-2023,People - Ageing Well,Lodge Group Care UK Ltd,Home Care - Private Contractors Payment,524.18,0.00,COMMERCIAL SUPPLIER 
 22-09-2023,People - Ageing Well,Lodge Group Care UK Ltd,Home Care - Private Contractors Payment,519.08,0.00,COMMERCIAL SUPPLIER 
 22-09-2023,People - Ageing Well,Lodge Group Care UK Ltd,Home Care - Private Contractors Payment,873.63,0.00,COMMERCIAL SUPPLIER 
 22-09-2023,People - Ageing Well,Lodge Group Care UK Ltd,Home Care - Private Contractors Payment,924.59,0.00,COMMERCIAL SUPPLIER 
 22-09-2023,People - Ageing Well,Lodge Group Care UK Ltd,Home Care - Private Contractors Payment,920.59,0.00,COMMERCIAL SUPPLIER 
 22-09-2023,People - Ageing Well,Lodge Group Care UK Ltd,Home Care - Private Contractors Payment,562.76,0.00,COMMERCIAL SUPPLIER 
 22-09-2023,People - Ageing Well,Lodge Group Care UK Ltd,Home Care - Private Contractors Payment,1365.04,0.00,COMMERCIAL SUPPLIER 
 22-09-2023,People - Ageing Well,Lodge Group Care UK Ltd,Home Care - Private Contractors Payment,600.62,0.00,COMMERCIAL SUPPLIER 
 22-09-2023,People - Ageing Well,Lodge Group Care UK Ltd,Home Care - Private Contractors Payment,917.68,0.00,COMMERCIAL SUPPLIER 
 22-09-2023,People - Ageing Well,Lodge Group Care UK Ltd,Home Care - Private Contractors Payment,619.55,0.00,COMMERCIAL SUPPLIER 
 22-09-2023,People - Ageing Well,Lodge Group Care UK Ltd,Home Care - Private Contractors Payment,1130.98,0.00,COMMERCIAL SUPPLIER 
 22-09-2023,People - Ageing Well,Lodge Group Care UK Ltd,Home Care - Private Contractors Payment,1258.39,0.00,COMMERCIAL SUPPLIER 
 22-09-2023,People - Ageing Well,Lodge Group Care UK Ltd,Home Care - Private Contractors Payment,1522.66,0.00,COMMERCIAL SUPPLIER 
 22-09-2023,People - Ageing Well,Lodge Group Care UK Ltd,Home Care - Private Contractors Payment,1068.38,0.00,COMMERCIAL SUPPLIER 
 22-09-2023,People - Ageing Well,Lodge Group Care UK Ltd,Home Care - Private Contractors Payment,1232.55,0.00,COMMERCIAL SUPPLIER 
 22-09-2023,People - Ageing Well,Lodge Group Care UK Ltd,Home Care - Private Contractors Payment,875.09,0.00,COMMERCIAL SUPPLIER 
 22-09-2023,People - Ageing Well,Lodge Group Care UK Ltd,Home Care - Private Contractors Payment,1227.45,0.00,COMMERCIAL SUPPLIER 
 22-09-2023,People - Ageing Well,Lodge Group Care UK Ltd,Home Care - Private Contractors Payment,819.37,0.00,COMMERCIAL SUPPLIER 
 22-09-2023,People - Ageing Well,Lodge Group Care UK Ltd,Home Care - Private Contractors Payment,1228.18,0.00,COMMERCIAL SUPPLIER 
 22-09-2023,People - Ageing Well,Lodge Group Care UK Ltd,Home Care - Private Contractors Payment,1333.74,0.00,COMMERCIAL SUPPLIER 
 22-09-2023,People - Ageing Well,Lodge Group Care UK Ltd,Home Care - Private Contractors Payment,611.54,0.00,COMMERCIAL SUPPLIER 
 22-09-2023,People - Ageing Well,Lodge Group Care UK Ltd,Home Care - Private Contractors Payment,1230.73,0.00,COMMERCIAL SUPPLIER 
 22-09-2023,People - Ageing Well,Lodge Group Care UK Ltd,Home Care - Private Contractors Payment,1536.13,0.00,COMMERCIAL SUPPLIER 
 22-09-2023,People - Ageing Well,Lodge Group Care UK Ltd,Home Care - Private Contractors Payment,1009.04,0.00,COMMERCIAL SUPPLIER 
 22-09-2023,People - Ageing Well,Lodge Group Care UK Ltd,Home Care - Private Contractors Payment,1009.41,0.00,COMMERCIAL SUPPLIER 
 22-09-2023,People - Ageing Well,Lodge Group Care UK Ltd,Home Care - Private Contractors Payment,1371.96,0.00,COMMERCIAL SUPPLIER 
 22-09-2023,People - Ageing Well,Lodge Group Care UK Ltd,Home Care - Private Contractors Payment,531.82,0.00,COMMERCIAL SUPPLIER 
 22-09-2023,People - Ageing Well,Lodge Group Care UK Ltd,Home Care - Private Contractors Payment,919.50,0.00,COMMERCIAL SUPPLIER 
 22-09-2023,People - Ageing Well,Lodge Group Care UK Ltd,Home Care - Private Contractors Payment,614.09,0.00,COMMERCIAL SUPPLIER 
 22-09-2023,People - Ageing Well,Lodge Group Care UK Ltd,Home Care - Private Contractors Payment,1239.83,0.00,COMMERCIAL SUPPLIER 
 22-09-2023,People - Ageing Well,Lodge Group Care UK Ltd,Home Care - Private Contractors Payment,1259.12,0.00,COMMERCIAL SUPPLIER 
 22-09-2023,People - Ageing Well,Lodge Group Care UK Ltd,Home Care - Private Contractors Payment,895.84,0.00,COMMERCIAL SUPPLIER 
 22-09-2023,People - Ageing Well,Lodge Group Care UK Ltd,Home Care - Private Contractors Payment,895.84,0.00,COMMERCIAL SUPPLIER 
 22-09-2023,People - Ageing Well,Lodge Group Care UK Ltd,Home Care - Private Contractors Payment,799.01,0.00,COMMERCIAL SUPPLIER 
 22-09-2023,People - Ageing Well,Lodge Group Care UK Ltd,Home Care - Private Contractors Payment,614.82,0.00,COMMERCIAL SUPPLIER 
 22-09-2023,People - Ageing Well,Lodge Group Care UK Ltd,Home Care - Private Contractors Payment,614.82,0.00,COMMERCIAL SUPPLIER 
 22-09-2023,People - Ageing Well,Lodge Group Care UK Ltd,Home Care - Private Contractors Payment,1291.52,0.00,COMMERCIAL SUPPLIER 
 22-09-2023,People - Ageing Well,Lodge Group Care UK Ltd,Home Care - Private Contractors Payment,875.09,0.00,COMMERCIAL SUPPLIER 
 22-09-2023,People - Ageing Well,Lodge Group Care UK Ltd,Home Care - Private Contractors Payment,786.27,0.00,COMMERCIAL SUPPLIER 
 22-09-2023,People - Ageing Well,Lodge Group Care UK Ltd,Home Care - Private Contractors Payment,1262.40,0.00,COMMERCIAL SUPPLIER 
 22-09-2023,People - Ageing Well,Lodge Group Care UK Ltd,Home Care - Private Contractors Payment,695.99,0.00,COMMERCIAL SUPPLIER 
 22-09-2023,People - Ageing Well,Lodge Group Care UK Ltd,Home Care - Private Contractors Payment,702.18,0.00,COMMERCIAL SUPPLIER 
 22-09-2023,People - Ageing Well,Lodge Group Care UK Ltd,Home Care - Private Contractors Payment,1115.33,0.00,COMMERCIAL SUPPLIER 
 22-09-2023,People - Ageing Well,Lodge Group Care UK Ltd,Home Care - Private Contractors Payment,1228.91,0.00,COMMERCIAL SUPPLIER 
 22-09-2023,People - Ageing Well,Lodge Group Care UK Ltd,Home Care - Private Contractors Payment,1300.25,0.00,COMMERCIAL SUPPLIER 
 22-09-2023,People - Ageing Well,Virgin Media Payments Ltd,Ict Software,4019.82,0.00,COMMERCIAL SUPPLIER 
 22-09-2023,People - Ageing Well,Virgin Media Payments Ltd,Responsive Repairs - Building,5332.74,0.00,COMMERCIAL SUPPLIER 
 22-09-2023,People - Ageing Well,Virgin Media Payments Ltd,Private Contractors Payment - Other,4965.66,0.00,COMMERCIAL SUPPLIER 
 22-09-2023,People - Ageing Well,Fountains Care Centre - Bondcare,Nursing Homes - Private Contractors Payment,3920.00,0.00,COMMERCIAL SUPPLIER 
 22-09-2023,People - Ageing Well,Fountains Care Centre - Bondcare,Nursing Homes - Private Contractors Payment,3010.32,0.00,COMMERCIAL SUPPLIER 
 22-09-2023,People - Ageing Well,Fountains Care Centre - Bondcare,Nursing Homes - Private Contractors Payment,902.86,0.00,COMMERCIAL SUPPLIER 
 22-09-2023,People - Ageing Well,Fountains Care Centre - Bondcare,Nursing Homes - Private Contractors Payment,3010.32,0.00,COMMERCIAL SUPPLIER 
 22-09-2023,People - Ageing Well,Fountains Care Centre - Bondcare,Nursing Homes - Private Contractors Payment,3010.32,0.00,COMMERCIAL SUPPLIER 
 22-09-2023,People - Ageing Well,Fountains Care Centre - Bondcare,Residential Placements - Private Contractors Payment,2802.40,0.00,COMMERCIAL SUPPLIER 
 22-09-2023,People - Ageing Well,Fountains Care Centre - Bondcare,Residential Placements - Private Contractors Payment,2802.40,0.00,COMMERCIAL SUPPLIER 
 22-09-2023,People - Ageing Well,Fountains Care Centre - Bondcare,Nursing Homes - Private Contractors Payment,3685.52,0.00,COMMERCIAL SUPPLIER 
 22-09-2023,People - Ageing Well,Fountains Care Centre - Bondcare,Nursing Homes - Private Contractors Payment,3010.32,0.00,COMMERCIAL SUPPLIER 
 22-09-2023,People - Ageing Well,Fountains Care Centre - Bondcare,Nursing Homes - Private Contractors Payment,3010.32,0.00,COMMERCIAL SUPPLIER 
 22-09-2023,People - Ageing Well,Fountains Care Centre - Bondcare,Nursing Homes - Private Contractors Payment,3920.00,0.00,COMMERCIAL SUPPLIER 
 22-09-2023,People - Ageing Well,Fountains Care Centre - Bondcare,Nursing Homes - Private Contractors Payment,3010.32,0.00,COMMERCIAL SUPPLIER 
 22-09-2023,People - Ageing Well,Fountains Care Centre - Bondcare,Nursing Homes - Private Contractors Payment,3010.32,0.00,COMMERCIAL SUPPLIER 
 22-09-2023,People - Ageing Well,Fountains Care Centre - Bondcare,Nursing Homes - Private Contractors Payment,3400.00,0.00,COMMERCIAL SUPPLIER 
 22-09-2023,People - Ageing Well,Fountains Care Centre - Bondcare,Nursing Homes - Private Contractors Payment,3010.32,0.00,COMMERCIAL SUPPLIER 
 22-09-2023,People - Ageing Well,Fountains Care Centre - Bondcare,Nursing Homes - Private Contractors Payment,612.94,0.00,COMMERCIAL SUPPLIER 
 22-09-2023,People - Ageing Well,Fountains Care Centre - Bondcare,Nursing Homes - Private Contractors Payment,3010.32,0.00,COMMERCIAL SUPPLIER 
 22-09-2023,People - Ageing Well,Fountains Care Centre - Bondcare,Residential Placements - Private Contractors Payment,3085.80,0.00,COMMERCIAL SUPPLIER 
 22-09-2023,People - Ageing Well,Fountains Care Centre - Bondcare,Nursing Homes - Private Contractors Payment,3010.32,0.00,COMMERCIAL SUPPLIER 
 22-09-2023,People - Ageing Well,Fountains Care Centre - Bondcare,Nursing Homes - Private Contractors Payment,3010.32,0.00,COMMERCIAL SUPPLIER 
 22-09-2023,People - Ageing Well,Fountains Care Centre - Bondcare,Nursing Homes - Private Contractors Payment,3010.32,0.00,COMMERCIAL SUPPLIER 
 22-09-2023,People - Ageing Well,Fountains Care Centre - Bondcare,Nursing Homes - Private Contractors Payment,3010.32,0.00,COMMERCIAL SUPPLIER 
 22-09-2023,People - Ageing Well,Fountains Care Centre - Bondcare,Nursing Homes - Private Contractors Payment,2856.64,0.00,COMMERCIAL SUPPLIER 
 22-09-2023,People - Ageing Well,Fountains Care Centre - Bondcare,Nursing Homes - Private Contractors Payment,2484.00,0.00,COMMERCIAL SUPPLIER 
 22-09-2023,People - Ageing Well,Fountains Care Centre - Bondcare,Nursing Homes - Private Contractors Payment,7728.00,0.00,COMMERCIAL SUPPLIER 
 22-09-2023,People - Ageing Well,Fountains Care Centre - Bondcare,Nursing Homes - Private Contractors Payment,5244.00,0.00,COMMERCIAL SUPPLIER 
 22-09-2023,People - Ageing Well,Fountains Care Centre - Bondcare,Nursing Homes - Private Contractors Payment,3010.32,0.00,COMMERCIAL SUPPLIER 
 22-09-2023,People - Ageing Well,Fountains Care Centre - Bondcare,Nursing Homes - Private Contractors Payment,3010.32,0.00,COMMERCIAL SUPPLIER 
 22-09-2023,People - Ageing Well,Fountains Care Centre - Bondcare,Nursing Homes - Private Contractors Payment,3920.00,0.00,COMMERCIAL SUPPLIER 
 22-09-2023,People - Ageing Well,Black Swan International Ltd - Belamacanda,Residential Placements - Private Contractors Payment,2859.20,0.00,COMMERCIAL SUPPLIER 
 22-09-2023,People - Ageing Well,Black Swan International Ltd - Belamacanda,Residential Placements - Private Contractors Payment,2752.28,0.00,COMMERCIAL SUPPLIER 
 22-09-2023,People - Ageing Well,Black Swan International Ltd - Belamacanda,Residential Placements - Private Contractors Payment,3843.36,0.00,COMMERCIAL SUPPLIER 
 22-09-2023,People - Ageing Well,Voyage Ltd - Solar-Grange Liss,Nursing Homes - Private Contractors Payment,5721.12,0.00,COMMERCIAL SUPPLIER 
 22-09-2023,People - Ageing Well,Havering Care Homes Ltd t/a Abbscross Nursing Home,Nursing Homes - Private Contractors Payment,3010.32,0.00,COMMERCIAL SUPPLIER 
 22-09-2023,People - Ageing Well,Havering Care Homes Ltd t/a Abbscross Nursing Home,Nursing Homes - Private Contractors Payment,3010.32,0.00,COMMERCIAL SUPPLIER 
 22-09-2023,People - Ageing Well,Havering Care Homes Ltd t/a Abbscross Nursing Home,Nursing Homes - Private Contractors Payment,4809.08,0.00,COMMERCIAL SUPPLIER 
 22-09-2023,People - Ageing Well,Havering Care Homes Ltd t/a Abbscross Nursing Home,Nursing Homes - Private Contractors Payment,2856.64,0.00,COMMERCIAL SUPPLIER 
 22-09-2023,People - Ageing Well,Havering Care Homes Ltd t/a Abbscross Nursing Home,Nursing Homes - Private Contractors Payment,3800.00,0.00,COMMERCIAL SUPPLIER 
 22-09-2023,People - Ageing Well,Havering Care Homes Ltd t/a Abbscross Nursing Home,Nursing Homes - Private Contractors Payment,3010.32,0.00,COMMERCIAL SUPPLIER 
 22-09-2023,People - Ageing Well,Havering Care Homes Ltd t/a Abbscross Nursing Home,Nursing Homes - Private Contractors Payment,4069.44,0.00,COMMERCIAL SUPPLIER 
 22-09-2023,People - Ageing Well,One Tree Estates Ltd t/a Ashbrook Nursing Home,Nursing Homes - Private Contractors Payment,2736.00,0.00,COMMERCIAL SUPPLIER 
 22-09-2023,People - Ageing Well,One Tree Estates Ltd t/a Ashbrook Nursing Home,Nursing Homes - Private Contractors Payment,8870.40,0.00,COMMERCIAL SUPPLIER 
 22-09-2023,People - Ageing Well,One Tree Estates Ltd t/a Ashbrook Nursing Home,Nursing Homes - Private Contractors Payment,5200.00,0.00,COMMERCIAL SUPPLIER 
 22-09-2023,People - Ageing Well,One Tree Estates Ltd t/a Ashbrook Nursing Home,Nursing Homes - Private Contractors Payment,6600.00,0.00,COMMERCIAL SUPPLIER 
 22-09-2023,People - Ageing Well,One Tree Estates Ltd t/a Ashbrook Nursing Home,Nursing Homes - Private Contractors Payment,6600.00,0.00,COMMERCIAL SUPPLIER 
 22-09-2023,People - Ageing Well,One Tree Estates Ltd t/a Ashbrook Nursing Home,Nursing Homes - Private Contractors Payment,5512.00,0.00,COMMERCIAL SUPPLIER 
 22-09-2023,People - Ageing Well,One Tree Estates Ltd t/a Ashbrook Nursing Home,Nursing Homes - Private Contractors Payment,4000.00,0.00,COMMERCIAL SUPPLIER 
 22-09-2023,People - Ageing Well,One Tree Estates Ltd t/a Ashbrook Nursing Home,Nursing Homes - Private Contractors Payment,3010.32,0.00,COMMERCIAL SUPPLIER 
 22-09-2023,People - Ageing Well,One Tree Estates Ltd t/a Ashbrook Nursing Home,Nursing Homes - Private Contractors Payment,3298.72,0.00,COMMERCIAL SUPPLIER 
 22-09-2023,People - Ageing Well,One Tree Estates Ltd t/a Ashbrook Nursing Home,Nursing Homes - Private Contractors Payment,3604.00,0.00,COMMERCIAL SUPPLIER 
 22-09-2023,People - Ageing Well,One Tree Estates Ltd t/a Ashbrook Nursing Home,Nursing Homes - Private Contractors Payment,3010.32,0.00,COMMERCIAL SUPPLIER 
 22-09-2023,People - Ageing Well,One Tree Estates Ltd t/a Ashbrook Nursing Home,Nursing Care Income,555.46,0.00,COMMERCIAL SUPPLIER 
 22-09-2023,People - Ageing Well,One Tree Estates Ltd t/a Ashbrook Nursing Home,Nursing Homes - Private Contractors Payment,3392.00,0.00,COMMERCIAL SUPPLIER 
 22-09-2023,People - Ageing Well,One Tree Estates Ltd t/a Ashbrook Nursing Home,Nursing Homes - Private Contractors Payment,8064.00,0.00,COMMERCIAL SUPPLIER 
 22-09-2023,People - Ageing Well,One Tree Estates Ltd t/a Ashbrook Nursing Home,Nursing Homes - Private Contractors Payment,3010.32,0.00,COMMERCIAL SUPPLIER 
 22-09-2023,People - Ageing Well,One Tree Estates Ltd t/a Ashbrook Nursing Home,Nursing Homes - Private Contractors Payment,3243.84,0.00,COMMERCIAL SUPPLIER 
 22-09-2023,People - Ageing Well,One Tree Estates Ltd t/a Ashbrook Nursing Home,Nursing Homes - Private Contractors Payment,15456.00,0.00,COMMERCIAL SUPPLIER 
 22-09-2023,People - Ageing Well,One Tree Estates Ltd t/a Ashbrook Nursing Home,Nursing Homes - Private Contractors Payment,3816.00,0.00,COMMERCIAL SUPPLIER 
 22-09-2023,People - Ageing Well,One Tree Estates Ltd t/a Ashbrook Nursing Home,Nursing Homes - Private Contractors Payment,3010.32,0.00,COMMERCIAL SUPPLIER 
 22-09-2023,People - Ageing Well,One Tree Estates Ltd t/a Ashbrook Nursing Home,Nursing Homes - Private Contractors Payment,3125.12,0.00,COMMERCIAL SUPPLIER 
 22-09-2023,People - Ageing Well,One Tree Estates Ltd t/a Ashbrook Nursing Home,Nursing Homes - Private Contractors Payment,4452.00,0.00,COMMERCIAL SUPPLIER 
 22-09-2023,People - Ageing Well,One Tree Estates Ltd t/a Ashbrook Nursing Home,Nursing Homes - Private Contractors Payment,15456.00,0.00,COMMERCIAL SUPPLIER 
 22-09-2023,People - Ageing Well,One Tree Estates Ltd t/a Ashbrook Nursing Home,Nursing Homes - Private Contractors Payment,4400.00,0.00,COMMERCIAL SUPPLIER 
 22-09-2023,People - Ageing Well,One Tree Estates Ltd t/a Ashbrook Nursing Home,Nursing Homes - Private Contractors Payment,3259.52,0.00,COMMERCIAL SUPPLIER 
 22-09-2023,People - Ageing Well,One Tree Estates Ltd t/a Ashbrook Nursing Home,Nursing Homes - Private Contractors Payment,5649.80,0.00,COMMERCIAL SUPPLIER 
 22-09-2023,People - Ageing Well,One Tree Estates Ltd t/a Ashbrook Nursing Home,Nursing Homes - Private Contractors Payment,14784.00,0.00,COMMERCIAL SUPPLIER 
 22-09-2023,People - Ageing Well,One Tree Estates Ltd t/a Ashbrook Nursing Home,Nursing Homes - Private Contractors Payment,3604.00,0.00,COMMERCIAL SUPPLIER 
 22-09-2023,People - Ageing Well,One Tree Estates Ltd t/a Ashbrook Nursing Home,Nursing Homes - Private Contractors Payment,4600.00,0.00,COMMERCIAL SUPPLIER 
 22-09-2023,People - Ageing Well,One Tree Estates Ltd t/a Ashbrook Nursing Home,Nursing Homes - Private Contractors Payment,3600.00,0.00,COMMERCIAL SUPPLIER 
 22-09-2023,People - Ageing Well,One Tree Estates Ltd t/a Ashbrook Nursing Home,Nursing Homes - Private Contractors Payment,3010.32,0.00,COMMERCIAL SUPPLIER 
 22-09-2023,People - Ageing Well,One Tree Estates Ltd t/a Ashbrook Nursing Home,Nursing Homes - Private Contractors Payment,3694.12,0.00,COMMERCIAL SUPPLIER 
 22-09-2023,People - Ageing Well,One Tree Estates Ltd t/a Ashbrook Nursing Home,Nursing Homes - Private Contractors Payment,3800.00,0.00,COMMERCIAL SUPPLIER 
 22-09-2023,People - Ageing Well,One Tree Estates Ltd t/a Ashbrook Nursing Home,Nursing Homes - Private Contractors Payment,4800.00,0.00,COMMERCIAL SUPPLIER 
 22-09-2023,People - Ageing Well,One Tree Estates Ltd t/a Ashbrook Nursing Home,Nursing Homes - Private Contractors Payment,2826.11,0.00,COMMERCIAL SUPPLIER 
 22-09-2023,People - Ageing Well,One Tree Estates Ltd t/a Ashbrook Nursing Home,Nursing Homes - Private Contractors Payment,753.63,0.00,COMMERCIAL SUPPLIER 
 22-09-2023,People - Ageing Well,One Tree Estates Ltd t/a Ashbrook Nursing Home,Nursing Homes - Private Contractors Payment,8400.00,0.00,COMMERCIAL SUPPLIER 
 22-09-2023,People - Ageing Well,One Tree Estates Ltd t/a Ashbrook Nursing Home,Nursing Homes - Private Contractors Payment,3100.52,0.00,COMMERCIAL SUPPLIER 
 22-09-2023,People - Ageing Well,One Tree Estates Ltd t/a Ashbrook Nursing Home,Nursing Homes - Private Contractors Payment,3800.00,0.00,COMMERCIAL SUPPLIER 
 22-09-2023,People - Ageing Well,One Tree Estates Ltd t/a Ashbrook Nursing Home,Nursing Homes - Private Contractors Payment,3259.52,0.00,COMMERCIAL SUPPLIER 
 22-09-2023,People - Ageing Well,Highfield Care Homes Ltd t/a Romford Grange Care Home,Nursing Homes - Private Contractors Payment,2856.64,0.00,COMMERCIAL SUPPLIER 
 22-09-2023,People - Ageing Well,Highfield Care Homes Ltd t/a Romford Grange Care Home,Nursing Homes - Private Contractors Payment,2856.64,0.00,COMMERCIAL SUPPLIER 
 22-09-2023,People - Ageing Well,Highfield Care Homes Ltd t/a Romford Grange Care Home,Nursing Homes - Private Contractors Payment,2856.64,0.00,COMMERCIAL SUPPLIER 
 22-09-2023,People - Ageing Well,Highfield Care Homes Ltd t/a Romford Grange Care Home,Residential Placements - Private Contractors Payment,2530.96,0.00,COMMERCIAL SUPPLIER 
 22-09-2023,People - Ageing Well,Highfield Care Homes Ltd t/a Romford Grange Care Home,Residential Placements - Private Contractors Payment,3085.80,0.00,COMMERCIAL SUPPLIER 
 22-09-2023,People - Ageing Well,Highfield Care Homes Ltd t/a Romford Grange Care Home,Nursing Homes - Private Contractors Payment,3010.32,0.00,COMMERCIAL SUPPLIER 
 22-09-2023,People - Ageing Well,Highfield Care Homes Ltd t/a Romford Grange Care Home,Nursing Homes - Private Contractors Payment,2670.68,0.00,COMMERCIAL SUPPLIER 
 22-09-2023,People - Ageing Well,Highfield Care Homes Ltd t/a Romford Grange Care Home,Nursing Homes - Private Contractors Payment,2856.64,0.00,COMMERCIAL SUPPLIER 
 22-09-2023,People - Ageing Well,Highfield Care Homes Ltd t/a Romford Grange Care Home,Nursing Homes - Private Contractors Payment,3010.32,0.00,COMMERCIAL SUPPLIER 
 22-09-2023,People - Ageing Well,Highfield Care Homes Ltd t/a Romford Grange Care Home,Nursing Homes - Private Contractors Payment,3010.32,0.00,COMMERCIAL SUPPLIER 
 22-09-2023,People - Ageing Well,Highfield Care Homes Ltd t/a Romford Grange Care Home,Residential Placements - Private Contractors Payment,2802.40,0.00,COMMERCIAL SUPPLIER 
 22-09-2023,People - Ageing Well,Highfield Care Homes Ltd t/a Romford Grange Care Home,Nursing Homes - Private Contractors Payment,3010.32,0.00,COMMERCIAL SUPPLIER 
 22-09-2023,People - Ageing Well,Highfield Care Homes Ltd t/a Romford Grange Care Home,Nursing Homes - Private Contractors Payment,3010.32,0.00,COMMERCIAL SUPPLIER 
 22-09-2023,People - Ageing Well,Bupa Care Homes (HVC) - Havering Court,Nursing Homes - Private Contractors Payment,4252.44,0.00,COMMERCIAL SUPPLIER 
 22-09-2023,People - Ageing Well,Bupa Care Homes (HVC) - Havering Court,Nursing Homes - Private Contractors Payment,4201.96,0.00,COMMERCIAL SUPPLIER 
 22-09-2023,People - Ageing Well,Bupa Care Homes (HVC) - Havering Court,Nursing Homes - Private Contractors Payment,4623.72,0.00,COMMERCIAL SUPPLIER 
 22-09-2023,People - Ageing Well,Bupa Care Homes (HVC) - Havering Court,Nursing Homes - Private Contractors Payment,4553.88,0.00,COMMERCIAL SUPPLIER 
 22-09-2023,People - Ageing Well,Bupa Care Homes (HVC) - Havering Court,Nursing Homes - Private Contractors Payment,3661.08,0.00,COMMERCIAL SUPPLIER 
 22-09-2023,People - Ageing Well,Bupa Care Homes (HVC) - Havering Court,Nursing Homes - Private Contractors Payment,3874.00,0.00,COMMERCIAL SUPPLIER 
 22-09-2023,People - Ageing Well,Bupa Care Homes (HVC) - Havering Court,Nursing Homes - Private Contractors Payment,6604.20,0.00,COMMERCIAL SUPPLIER 
 22-09-2023,People - Ageing Well,Bupa Care Homes (HVC) - Havering Court,Nursing Homes - Private Contractors Payment,5300.16,0.00,COMMERCIAL SUPPLIER 
 22-09-2023,People - Ageing Well,Bupa Care Homes (HVC) - Havering Court,Nursing Homes - Private Contractors Payment,4260.68,0.00,COMMERCIAL SUPPLIER 
 22-09-2023,People - Ageing Well,Bupa Care Homes (HVC) - Havering Court,Nursing Homes - Private Contractors Payment,5206.80,0.00,COMMERCIAL SUPPLIER 
 22-09-2023,People - Ageing Well,Bupa Care Homes (HVC) - Havering Court,Nursing Homes - Private Contractors Payment,3010.32,0.00,COMMERCIAL SUPPLIER 
 22-09-2023,People - Ageing Well,2 Peel Way - Outlook Care,Supported Other Accommodation - Private Contractors Payment,2532.56,0.00,NON COMMERCIAL SUPPLIER 
 22-09-2023,People - Ageing Well,2 Peel Way - Outlook Care,Supported Other Accommodation - Private Contractors Payment,4255.24,0.00,NON COMMERCIAL SUPPLIER 
 22-09-2023,People - Ageing Well,2 Peel Way - Outlook Care,Supported Other Accommodation - Private Contractors Payment,3298.24,0.00,NON COMMERCIAL SUPPLIER 
 22-09-2023,People - Ageing Well,2 Peel Way - Outlook Care,Supported Other Accommodation - Private Contractors Payment,1041.04,0.00,NON COMMERCIAL SUPPLIER 
 22-09-2023,People - Ageing Well,2 Peel Way - Outlook Care,Supported Other Accommodation - Private Contractors Payment,1858.68,0.00,NON COMMERCIAL SUPPLIER 
 22-09-2023,People - Ageing Well,2 Peel Way - Outlook Care,Supported Other Accommodation - Private Contractors Payment,3106.80,0.00,NON COMMERCIAL SUPPLIER 
 22-09-2023,People - Ageing Well,Outlook Care - 4 Peel Way,Supported Other Accommodation - Private Contractors Payment,3553.40,0.00,COMMERCIAL SUPPLIER 
 22-09-2023,People - Ageing Well,Outlook Care - 4 Peel Way,Supported Other Accommodation - Private Contractors Payment,3773.52,0.00,COMMERCIAL SUPPLIER 
 22-09-2023,People - Ageing Well,Outlook Care - 4 Peel Way,Supported Other Accommodation - Private Contractors Payment,1117.88,0.00,COMMERCIAL SUPPLIER 
 22-09-2023,People - Ageing Well,Outlook Care - 4 Peel Way,Supported Other Accommodation - Private Contractors Payment,1939.76,0.00,COMMERCIAL SUPPLIER 
 22-09-2023,People - Ageing Well,Outlook Care - 4 Peel Way,Supported Other Accommodation - Private Contractors Payment,991.00,0.00,COMMERCIAL SUPPLIER 
 22-09-2023,People - Ageing Well,Outlook Care - 4 Peel Way,Supported Other Accommodation - Private Contractors Payment,1857.40,0.00,COMMERCIAL SUPPLIER 
 22-09-2023,People - Ageing Well,Outlook Care - 4 Peel Way,Supported Other Accommodation - Private Contractors Payment,3090.84,0.00,COMMERCIAL SUPPLIER 
 22-09-2023,People - Ageing Well,Outlook Care - 4 Peel Way,Supported Other Accommodation - Private Contractors Payment,1696.48,0.00,COMMERCIAL SUPPLIER 
 22-09-2023,People - Ageing Well,Outlook Care - 4 Peel Way,Supported Other Accommodation - Private Contractors Payment,1939.76,0.00,COMMERCIAL SUPPLIER 
 22-09-2023,People - Ageing Well,The Avenues Trust - 6 Peel Way,Residential Placements - Private Contractors Payment,6584.60,0.00,COMMERCIAL SUPPLIER 
 22-09-2023,People - Ageing Well,The Avenues Trust - 6 Peel Way,Residential Placements - Private Contractors Payment,6584.60,0.00,COMMERCIAL SUPPLIER 
 22-09-2023,People - Ageing Well,The Avenues Trust - 6 Peel Way,Residential Placements - Private Contractors Payment,6584.60,0.00,COMMERCIAL SUPPLIER 
 22-09-2023,People - Ageing Well,The Avenues Trust - 6 Peel Way,Residential Placements - Private Contractors Payment,6584.60,0.00,COMMERCIAL SUPPLIER 
 22-09-2023,People - Ageing Well,Voyage Ltd - Solar Care Melbreck,Nursing Homes - Private Contractors Payment,4536.24,0.00,COMMERCIAL SUPPLIER 
 22-09-2023,People - Ageing Well,Fitzroy Support,Residential Placements - Private Contractors Payment,5746.04,0.00,COMMERCIAL SUPPLIER 
 22-09-2023,People - Ageing Well,St Michaels Homes Ltd,Residential Placements - Private Contractors Payment,3085.80,0.00,COMMERCIAL SUPPLIER 
 22-09-2023,People - Ageing Well,St Michaels Homes Ltd,Residential Placements - Private Contractors Payment,3085.80,0.00,COMMERCIAL SUPPLIER 
 22-09-2023,People - Ageing Well,Bupa Care Homes - Hutton Village,Nursing Homes - Private Contractors Payment,3010.32,0.00,COMMERCIAL SUPPLIER 
 22-09-2023,People - Ageing Well,Havering Care Homes Ltd t/a Upminster Nursing Home,Residential Placements - Private Contractors Payment,3085.80,0.00,COMMERCIAL SUPPLIER 
 22-09-2023,People - Ageing Well,Havering Care Homes Ltd t/a Upminster Nursing Home,Nursing Homes - Private Contractors Payment,3010.32,0.00,COMMERCIAL SUPPLIER 
 22-09-2023,People - Ageing Well,Havering Care Homes Ltd t/a Upminster Nursing Home,Nursing Homes - Private Contractors Payment,4134.00,0.00,COMMERCIAL SUPPLIER 
 22-09-2023,People - Ageing Well,Havering Care Homes Ltd t/a Upminster Nursing Home,Nursing Homes - Private Contractors Payment,3010.32,0.00,COMMERCIAL SUPPLIER 
 22-09-2023,People - Ageing Well,Havering Care Homes Ltd t/a Upminster Nursing Home,Nursing Homes - Private Contractors Payment,3010.32,0.00,COMMERCIAL SUPPLIER 
 22-09-2023,People - Ageing Well,Havering Care Homes Ltd t/a Upminster Nursing Home,Nursing Homes - Private Contractors Payment,2856.64,0.00,COMMERCIAL SUPPLIER 
 22-09-2023,People - Ageing Well,Havering Care Homes Ltd t/a Upminster Nursing Home,Nursing Homes - Private Contractors Payment,2856.64,0.00,COMMERCIAL SUPPLIER 
 22-09-2023,People - Ageing Well,Havering Care Homes Ltd t/a Upminster Nursing Home,Nursing Homes - Private Contractors Payment,3010.32,0.00,COMMERCIAL SUPPLIER 
 22-09-2023,People - Ageing Well,Havering Care Homes Ltd t/a Upminster Nursing Home,Nursing Homes - Private Contractors Payment,2856.64,0.00,COMMERCIAL SUPPLIER 
 22-09-2023,People - Ageing Well,Havering Care Homes Ltd t/a Upminster Nursing Home,Nursing Homes - Private Contractors Payment,3132.00,0.00,COMMERCIAL SUPPLIER 
 22-09-2023,People - Ageing Well,Essex Care Consortium Ltd_a,Residential Placements - Private Contractors Payment,4759.24,0.00,COMMERCIAL SUPPLIER 
 22-09-2023,People - Ageing Well,Mundy House,Residential Placements - Private Contractors Payment,2734.64,0.00,COMMERCIAL SUPPLIER 
 22-09-2023,People - Ageing Well,Mundy House,Residential Placements - Private Contractors Payment,3085.80,0.00,COMMERCIAL SUPPLIER 
 22-09-2023,People - Ageing Well,St Michaels Homes Ltd,Residential Placements - Private Contractors Payment,4560.00,0.00,COMMERCIAL SUPPLIER 
 22-09-2023,People - Ageing Well,St Michaels Homes Ltd,Respite Care - Private Contractors Payment,1728.57,0.00,COMMERCIAL SUPPLIER 
 22-09-2023,People - Ageing Well,St Michaels Homes Ltd,Residential Placements - Private Contractors Payment,4400.00,0.00,COMMERCIAL SUPPLIER 
 22-09-2023,People - Ageing Well,St Michaels Homes Ltd,Residential Placements - Private Contractors Payment,3928.57,0.00,COMMERCIAL SUPPLIER 
 22-09-2023,People - Ageing Well,St Michaels Homes Ltd,Respite Care - Private Contractors Payment,4400.00,0.00,COMMERCIAL SUPPLIER 
 22-09-2023,People - Ageing Well,St Michaels Homes Ltd,Residential Placements - Private Contractors Payment,2605.71,0.00,COMMERCIAL SUPPLIER 
 22-09-2023,People - Ageing Well,St Michaels Homes Ltd,Residential Placements - Private Contractors Payment,607.44,0.00,COMMERCIAL SUPPLIER 
 22-09-2023,People - Ageing Well,St Michaels Homes Ltd,Residential Placements - Private Contractors Payment,993.99,0.00,COMMERCIAL SUPPLIER 
 22-09-2023,People - Ageing Well,Lukka Care Homes Ltd - Ravenscourt,Nursing Homes - Private Contractors Payment,3010.32,0.00,COMMERCIAL SUPPLIER 
 22-09-2023,People - Ageing Well,Lukka Care Homes Ltd - Ravenscourt,Respite Care - Private Contractors Payment,991.86,0.00,COMMERCIAL SUPPLIER 
 22-09-2023,People - Ageing Well,Lukka Care Homes Ltd - Ravenscourt,Respite Care - Private Contractors Payment,551.04,0.00,COMMERCIAL SUPPLIER 
 22-09-2023,People - Ageing Well,Lukka Care Homes Ltd - Ravenscourt,Nursing Homes - Private Contractors Payment,3232.56,0.00,COMMERCIAL SUPPLIER 
 22-09-2023,People - Ageing Well,Lukka Care Homes Ltd - Ravenscourt,Nursing Homes - Private Contractors Payment,3800.00,0.00,COMMERCIAL SUPPLIER 
 22-09-2023,People - Ageing Well,Lukka Care Homes Ltd - Ravenscourt,Nursing Homes - Private Contractors Payment,542.86,0.00,COMMERCIAL SUPPLIER 
 22-09-2023,People - Ageing Well,Lukka Care Homes Ltd - Ravenscourt,Nursing Homes - Private Contractors Payment,4320.00,0.00,COMMERCIAL SUPPLIER 
 22-09-2023,People - Ageing Well,Lukka Care Homes Ltd - Ravenscourt,Nursing Homes - Private Contractors Payment,3125.12,0.00,COMMERCIAL SUPPLIER 
 22-09-2023,People - Ageing Well,Lukka Care Homes Ltd - Ravenscourt,Nursing Homes - Private Contractors Payment,4028.00,0.00,COMMERCIAL SUPPLIER 
 22-09-2023,People - Ageing Well,Lukka Care Homes Ltd - Ravenscourt,Nursing Homes - Private Contractors Payment,3800.00,0.00,COMMERCIAL SUPPLIER 
 22-09-2023,People - Ageing Well,Lukka Care Homes Ltd - Ravenscourt,Nursing Homes - Private Contractors Payment,1357.14,0.00,COMMERCIAL SUPPLIER 
 22-09-2023,People - Ageing Well,Lukka Care Homes Ltd - Ravenscourt,Nursing Homes - Private Contractors Payment,3600.00,0.00,COMMERCIAL SUPPLIER 
 22-09-2023,People - Ageing Well,Lukka Care Homes Ltd - Ravenscourt,Nursing Homes - Private Contractors Payment,3800.00,0.00,COMMERCIAL SUPPLIER 
 22-09-2023,People - Ageing Well,Lukka Care Homes Ltd - Ravenscourt,Nursing Homes - Private Contractors Payment,4399.88,0.00,COMMERCIAL SUPPLIER 
 22-09-2023,People - Ageing Well,Lukka Care Homes Ltd - Ravenscourt,Nursing Homes - Private Contractors Payment,3530.68,0.00,COMMERCIAL SUPPLIER 
 22-09-2023,People - Ageing Well,Lukka Care Homes Ltd - Ravenscourt,Nursing Homes - Private Contractors Payment,3257.14,0.00,COMMERCIAL SUPPLIER 
